Workbook

Sheet Sheet1
A1: 111 | B1: =CH_N_TO_TEXT(A1) -> فقط مائة وأحدى وعشرة ريال يمني لاغير
A4: 11111 | B4: =CH_N_TO_TEXT(A4) -> فقط احدى عشرة ألف ومائة وأحدى وعشرة ريال يمني لاغير

Sheet Sheet2
A1: م | B1: اسم المشترك | C1: رقم العداد | D1: السابقة | E1: الحالية | F1: فارق القراءة | G1: قيمة المياه | H1: الرصيد السابق | I1: اشتراك شهري | J1: اخرى | K1: المدفوع حتى30/4/2018 | L1: إجمالي المبلغ | M1: المدفوع | N1: المتبقي
A2: 1 | B2: زيد عمر ناجي محمد | C2: 211117 | D2: 8106 | E2: 8106 | F2: =(E2-D2) -> 0 | G2: =(200*F2) -> 0 | H2: 1100 | I2: 100 | J2: 0 | K2: 1100 | L2: =(G2+H2+I2+J2) -> 1200 | M2: =K2 -> 1100 | N2: =(L2-M2) -> 100 | IV2: =SUM(A2:IU2) -> 232030
A3: 2 | B3: زيد عمر ناجي محمد | C3: 38203 | D3: 2840 | E3: 3013 | F3: =(E3-D3) -> 173 | G3: =(200*F3) -> 34600 | H3: 14500 | I3: 100 | J3: 0 | K3: 14500 | L3: =(G3+H3+I3+J3) -> 49200 | M3: =K3 -> 14500 | N3: =(L3-M3) -> 34700
A4: 3 | B4: زيد عمر ناجي محمد | C4: 214929 | D4: 3423 | E4: 3609 | F4: 186 | G4: 37200 | H4: 19900 | I4: 100 | J4: 0 | K4: 19900 | L4: 57200 | M4: 19900 | N4: 37300
A5: 4 | B5: زيد عمر ناجي محمد | C5: 11841 | D5: 6680 | E5: 6716 | F5: 36 | G5: 7200 | H5: 5700 | I5: 100 | J5: 0 | K5: 5700 | L5: 13000 | M5: 5700 | N5: 7300
A6: 5 | B6: زيد عمر ناجي محمد | C6: 213121 | D6: 34045 | E6: 34045 | F6: 0 | G6: 0 | H6: 500 | I6: 100 | J6: 0 | K6: 500 | L6: 600 | M6: 500 | N6: 100
A7: 6 | B7: مختار عمر ناجي محمد | C7: 210780 | D7: 1054 | E7: 1082 | F7: 28 | G7: 5600 | H7: 3300 | I7: 100 | J7: 0 | K7: 3300 | L7: 9000 | M7: 3300 | N7: 5700
A8: 7 | B8: صالح عمر ناجي محمد | C8: 210954 | D8: 1211 | E8: 1361 | F8: 150 | G8: 30000 | H8: 6900 | I8: 100 | J8: 0 | K8: 6900 | L8: 37000 | M8: 6900 | N8: 30100
A9: 8 | B9: صلاح عمر ناجي محمد | C9: 0 | D9: 0 | E9: 0 | F9: 0 | G9: 0 | H9: 100 | I9: 100 | J9: 0 | K9: 100 | L9: 200 | M9: 100 | N9: 100
A10: 9 | B10: سعيد عباد سراجي | C10: 215329 | D10: 2123 | E10: 2153 | F10: 30 | G10: 6000 | H10: 4100 | I10: 100 | J10: 0 | K10: 4100 | L10: 10200 | M10: 4100 | N10: 6100
A11: 10 | B11: احمد علي ناجي محمد | C11: 214222 | D11: 683 | E11: 683 | F11: 0 | G11: 0 | H11: 1100 | I11: 100 | J11: 0 | K11: 1100 | L11: 1200 | M11: 1100 | N11: 100
A12: 11 | B12: عبده علي ناجي محمد | C12: 210918 | D12: 1119 | E12: 1134 | F12: 15 | G12: 3000 | H12: 2700 | I12: 100 | J12: 0 | K12: 2700 | L12: 5800 | M12: 2700 | N12: 3100
A13: 12 | B13: علي بن علي ناجي محمد | C13: 210984 | D13: 1879 | E13: 1898 | F13: 19 | G13: 3800 | H13: 5300 | I13: 100 | J13: 0 | K13: 5300 | L13: 9200 | M13: 5300 | N13: 3900
A14: 13 | B14: صالح علي ناجي محمد | C14: 0 | D14: 7 | E14: 18 | F14: 11 | G14: 2200 | H14: 1500 | I14: 100 | J14: 0 | K14: 1500 | L14: 3800 | M14: 1500 | N14: 2300
A15: 14 | B15: عمرو ناجي علي ناجي | C15: 11356 | D15: 251 | E15: 252 | F15: 1 | G15: 200 | H15: 500 | I15: 100 | J15: 0 | K15: 500 | L15: 800 | M15: 500 | N15: 300
A16: 15 | B16: معاذ ناجي علي ناجي | C16: 0 | D16: 46 | E16: 53 | F16: 7 | G16: 1400 | H16: 1100 | I16: 100 | J16: 0 | K16: 1000 | L16: 2600 | M16: 1000 | N16: 1600
A17: 16 | B17: عماد ناجي علي ناجي | C17: 58146 | D17: 83 | E17: 87 | F17: 4 | G17: 800 | H17: 1300 | I17: 100 | J17: 0 | K17: 1300 | L17: 2200 | M17: 1300 | N17: 900
A18: 17 | B18: طارق ناجي علي ناجي | C18: 0 | D18: 35 | E18: 35 | F18: 0 | G18: 0 | H18: 500 | I18: 100 | J18: 0 | K18: 500 | L18: 600 | M18: 500 | N18: 100
A19: 18 | B19: محمد سالم احمد ناجي | C19: 0 | D19: 534 | E19: 599 | F19: 65 | G19: 13000 | H19: 1100 | I19: 100 | J19: 0 | K19: 1100 | L19: 14200 | M19: 1100 | N19: 13100
A20: 19 | B20: ناجي علي ناجي محمد | C20: 215095 | D20: 413 | E20: 420 | F20: 7 | G20: 1400 | H20: 1700 | I20: 100 | J20: 0 | K20: 1700 | L20: 3200 | M20: 1700 | N20: 1500
A21: 20 | B21: محمد ناجي علي ناجي | C21: 216316 | D21: 851 | E21: 861 | F21: 10 | G21: 2000 | H21: 3100 | I21: 100 | J21: 0 | K21: 3100 | L21: 5200 | M21: 3100 | N21: 2100
A22: 21 | B22: احمد ناجي علي ناجي | C22: 214892 | D22: 404 | E22: 409 | F22: 5 | G22: 1000 | H22: 500 | I22: 100 | J22: 0 | K22: 500 | L22: 1600 | M22: 500 | N22: 1100
A23: 22 | B23: علي ناجي علي ناجي | C23: 212438 | D23: 725 | E23: 730 | F23: 5 | G23: 1000 | H23: 1100 | I23: 100 | J23: 0 | K23: 1100 | L23: 2200 | M23: 1100 | N23: 1100
A24: 23 | B24: محمد علي ناجي محمد | C24: 212781 | D24: 1492 | E24: 1505 | F24: 13 | G24: 2600 | H24: 3100 | I24: 100 | J24: 0 | K24: 3100 | L24: 5800 | M24: 3100 | N24: 2700
A25: 24 | B25: نزار محمد علي ناجي | C25: 11381 | D25: 519 | E25: 559 | F25: 40 | G25: 8000 | H25: 3900 | I25: 100 | J25: 0 | K25: 3900 | L25: 12000 | M25: 3900 | N25: 8100
A26: 25 | B26: معتز محمد علي ناجي | C26: 215108 | D26: 1056 | E26: 1062 | F26: 6 | G26: 1200 | H26: 500 | I26: 100 | J26: 0 | K26: 500 | L26: 1800 | M26: 500 | N26: 1300
A27: 26 | B27: عبده احمد ناجي محمد | C27: 212822 | D27: 897 | E27: 898 | F27: 1 | G27: 200 | H27: 300 | I27: 100 | J27: 0 | K27: 0 | L27: 600 | M27: 0 | N27: 600
A28: 27 | B28: محمد احمد ناجي محمد | C28: 210912 | D28: 1096 | E28: 1110 | F28: 14 | G28: 2800 | H28: 4100 | I28: 100 | J28: 0 | K28: 4100 | L28: 7000 | M28: 4100 | N28: 2900
A29: 28 | B29: مصطفى سالم محمد ناجي | C29: 210833 | D29: 3019 | E29: 3019 | F29: 0 | G29: 0 | H29: 300 | I29: 100 | J29: 0 | K29: 300 | L29: 400 | M29: 300 | N29: 100
A30: 29 | B30: سعيد محمد ناجي محمد | C30: 213576 | D30: 263 | E30: 272 | F30: 9 | G30: 1800 | H30: 1900 | I30: 100 | J30: 0 | K30: 1900 | L30: 3800 | M30: 1900 | N30: 1900
A31: 30 | B31: علي ثابت حميدان | C31: 214446 | D31: 234 | E31: 250 | F31: 16 | G31: 3200 | H31: 3300 | I31: 100 | J31: 0 | K31: 3300 | L31: 6600 | M31: 3300 | N31: 3300
A32: 31 | B32: معذ محمد ثابت | C32: 210946 | D32: 21666 | E32: 21666 | F32: 0 | G32: 0 | H32: 300 | I32: 100 | J32: 0 | K32: 300 | L32: 400 | M32: 300 | N32: 100
A33: 32 | B33: علي سالم محمد ناجي | C33: 211161 | D33: 1092 | E33: 1113 | F33: 21 | G33: 4200 | H33: 4900 | I33: 100 | J33: 0 | K33: 4900 | L33: 9200 | M33: 4900 | N33: 4300
A34: 33 | B34: محمد سالم محمد ناجي | C34: 216243 | D34: 592 | E34: 605 | F34: 13 | G34: 2600 | H34: 900 | I34: 100 | J34: 0 | K34: 900 | L34: 3600 | M34: 900 | N34: 2700
A35: 34 | B35: محمد سالم محمد ناجي | C35: 4617 | D35: 40172 | E35: 40172 | F35: 0 | G35: 0 | H35: 100 | I35: 100 | J35: 0 | K35: 100 | L35: 200 | M35: 100 | N35: 100
A36: 35 | B36: علي محمد طبيلي | C36: 214210 | D36: 1647 | E36: 1673 | F36: 26 | G36: 5200 | H36: 4300 | I36: 100 | J36: 0 | K36: 4300 | L36: 9600 | M36: 4300 | N36: 5300
A37: 36 | B37: ربيع علي محمد طبيلي | C37: 211153 | D37: 262 | E37: 265 | F37: 3 | G37: 600 | H37: 1100 | I37: 100 | J37: 0 | K37: 0 | L37: 1800 | M37: 0 | N37: 1800
A38: 37 | B38: صلاح علي محمد طبيلي | C38: 59875 | D38: 46 | E38: 48 | F38: 2 | G38: 400 | H38: 500 | I38: 100 | J38: 0 | K38: 500 | L38: 1000 | M38: 500 | N38: 500
A39: 38 | B39: ناجي محمد ناجي محمد | C39: 0 | D39: 1249 | E39: 1281 | F39: 32 | G39: 6400 | H39: 4500 | I39: 100 | J39: 0 | K39: 4500 | L39: 11000 | M39: 4500 | N39: 6500
A40: 39 | B40: خالد محمد ناجي محمد | C40: 0 | D40: 1744 | E40: 1754 | F40: 10 | G40: 2000 | H40: 2700 | I40: 100 | J40: 0 | K40: 2700 | L40: 4800 | M40: 2700 | N40: 2100
A41: 40 | B41: مصطفى سالم محمد ناجي | C41: 0 | D41: 319 | E41: 328 | F41: 9 | G41: 1800 | H41: 1900 | I41: 100 | J41: 0 | K41: 1900 | L41: 3800 | M41: 1900 | N41: 1900
A42: 41 | B42: احمد سعيد علي ناجي | C42: 0 | D42: 977 | E42: 977 | F42: 0 | G42: 0 | H42: 100 | I42: 100 | J42: 0 | K42: 100 | L42: 200 | M42: 100 | N42: 100
A43: 42 | B43: فضل صالح علي موذي | C43: 0 | D43: 787 | E43: 792 | F43: 5 | G43: 1000 | H43: 1500 | I43: 100 | J43: 0 | K43: 1500 | L43: 2600 | M43: 1500 | N43: 1100
A44: 43 | B44: محمد صالح علي موذي | C44: 212401 | D44: 450 | E44: 450 | F44: 0 | G44: 0 | H44: 100 | I44: 100 | J44: 0 | K44: 100 | L44: 200 | M44: 100 | N44: 100
A45: 44 | B45: صالح علي عوض موذي | C45: 216184 | D45: 1054 | E45: 1074 | F45: 20 | G45: 4000 | H45: 2300 | I45: 100 | J45: 0 | K45: 2300 | L45: 6400 | M45: 2300 | N45: 4100
A46: 45 | B46: علي صالح علي موذي | C46: 24307 | D46: 211 | E46: 215 | F46: 4 | G46: 800 | H46: 700 | I46: 100 | J46: 0 | K46: 700 | L46: 1600 | M46: 700 | N46: 900
A47: 46 | B47: علي عبدالله عوض موذي | C47: 213044 | D47: 947 | E47: 960 | F47: 13 | G47: 2600 | H47: 2300 | I47: 100 | J47: 0 | K47: 2300 | L47: 5000 | M47: 2300 | N47: 2700
A48: 47 | B48: محمد عبدالله عوض موذي | C48: 212574 | D48: 673 | E48: 675 | F48: 2 | G48: 400 | H48: 2100 | I48: 100 | J48: 0 | K48: 2100 | L48: 2600 | M48: 2100 | N48: 500
A49: 48 | B49: احمد علي محمد مدردر | C49: 10323 | D49: 8 | E49: 15 | F49: 7 | G49: 1400 | H49: 1700 | I49: 100 | J49: 0 | K49: 1500 | L49: 3200 | M49: 1500 | N49: 1700 | P49: مشروع مياه الخضراء
A50: 49 | B50: عبدالله علي عوض موذي | C50: 213252 | D50: 609 | E50: 618 | F50: 9 | G50: 1800 | H50: 100 | I50: 100 | J50: 0 | K50: 100 | L50: 2000 | M50: 100 | N50: 1900 | P50: محافظة تعز / مديرية المخاء
A51: 50 | B51: عبده علي عوض موذي | C51: 216268 | D51: 1196 | E51: 1199 | F51: 3 | G51: 600 | H51: 100 | I51: 100 | J51: 0 | K51: 100 | L51: 800 | M51: 100 | N51: 700 | T51: فاتورة رقــم : | U51: 14
A52: 51 | B52: ابراهيم سعيد عوض موذي | C52: 8222 | D52: 552 | E52: 598 | F52: 46 | G52: 9200 | H52: 4500 | I52: 100 | J52: 0 | K52: 2000 | L52: 13800 | M52: 2000 | N52: 11800 | P52: المطلوب من الأخ / | R52: =VLOOKUP(U51,A1:N232,2,0) -> عمرو ناجي علي ناجي
A53: 52 | B53: عبده ابراهيم سعيد موذي | C53: 0 | D53: 41 | E53: 41 | F53: 0 | G53: 0 | H53: 100 | I53: 100 | J53: 0 | L53: 200 | M53: 0 | N53: 200 | P53: العنوان / الخضراء | T53: رقم العداد : | U53: =VLOOKUP(U51,A1:N212,3,0) -> 11356
A54: 53 | B54: سعيد صالح صديفي | C54: 0 | D54: 206 | E54: 219 | F54: 13 | G54: 2600 | H54: 2100 | I54: 100 | J54: 0 | K54: 2100 | L54: 4800 | M54: 2100 | N54: 2700 | T54: عن شهر : | U54: مايو / 2018م
A55: 54 | B55: محمد ابراهيم سعيد موذي | C55: 0 | D55: 7 | E55: 15 | F55: 8 | G55: 1600 | H55: 1500 | I55: 100 | J55: 0 | K55: 1500 | L55: 3200 | M55: 1500 | N55: 1700 | P55: قراءة العداد | R55: الاستهلاك | S55: قيمة المياه | T55: الرصيد السابق | U55: المبلغ المستحق
A56: 55 | B56: زيد محمد موذي | C56: 153 | D56: 18 | E56: 23 | F56: 5 | G56: 1000 | H56: 900 | I56: 100 | J56: 0 | K56: 900 | L56: 2000 | M56: 900 | N56: 1100 | P56: الحالية | Q56: السابقة | S56: ريال | T56: ريال | U56: ريال
A57: 56 | B57: محفوظ احمد مدردر | C57: 213003 | D57: 742 | E57: 744 | F57: 2 | G57: 400 | H57: 1100 | I57: 100 | J57: 0 | K57: 1100 | L57: 1600 | M57: 1100 | N57: 500 | P57: =VLOOKUP(U51,A1:N232,4,0) -> 251 | Q57: =VLOOKUP(U51,A1:N232,5,0) -> 252 | R57: =VLOOKUP(U51,A1:N212,6,0) -> 1 | S57: =VLOOKUP(U51,A1:N212,7,0) -> 200 | T57: =VLOOKUP(U51,A1:N212,8,0) -> 500 | U57: =(S57+T57) -> 700
A58: 57 | B58: علي سالم علي عبيدي | C58: 17080303 | D58: 8 | E58: 22 | F58: 14 | G58: 2800 | H58: 1700 | I58: 100 | J58: 0 | K58: 1700 | L58: 4600 | M58: 1700 | N58: 2900 | S58: المدفوع حتى 30 /04/ 2018م | U58: =VLOOKUP(U51,A1:N212,11,0) -> 500
A59: 58 | B59: احمد عوض احمد موذي | C59: 216135 | D59: 90318 | E59: 90330 | F59: 12 | G59: 2400 | H59: 1700 | I59: 100 | J59: 0 | K59: 1500 | L59: 4200 | M59: 1500 | N59: 2700 | S59: اشتراك شهري : | U59: =VLOOKUP(U51,A1:N212,9,0) -> 100
A60: 59 | B60: عوض احمد عوض موذي | C60: 213297 | D60: 0 | E60: 0 | F60: 0 | G60: 0 | H60: 100 | I60: 100 | J60: 0 | K60: 100 | L60: 200 | M60: 100 | N60: 100 | S60: خدمات أخرى : | U60: =VLOOKUP(U51,A1:N212,10,0) -> 0
A61: 60 | B61: راجح عوض احمد موذي | C61: 216278 | D61: 357 | E61: 366 | F61: 9 | G61: 1800 | H61: 1100 | I61: 100 | J61: 0 | K61: 1100 | L61: 3000 | M61: 1100 | N61: 1900 | P61: =CH_N_TO_TEXT(U61) -> فقط ثلاثمائة ريال يمني لاغير | T61: الإجمالي : | U61: =((U57-U58)+U59+U60) -> 300
A62: 61 | B62: علي محمد علي عبيدي | C62: 4991 | D62: 316 | E62: 318 | F62: 2 | G62: 400 | H62: 500 | I62: 100 | J62: 0 | K62: 500 | L62: 1000 | M62: 500 | N62: 500
A63: 62 | B63: فيصل محمد علي عبيدي | C63: 214816 | D63: 883 | E63: 890 | F63: 7 | G63: 1400 | H63: 1100 | I63: 100 | J63: 0 | K63: 1100 | L63: 2600 | M63: 1100 | N63: 1500
A64: 63 | B64: راجح علي عبده صبيحي | C64: 0 | D64: 155 | E64: 161 | F64: 6 | G64: 1200 | H64: 700 | I64: 100 | J64: 0 | K64: 700 | L64: 2000 | M64: 700 | N64: 1300 | P64: مشروع مياه الخضراء | T64: فاتورة رقــم : | U64: =(U51) -> 14
A65: 64 | B65: احمد عبده زهوي | C65: 23829 | D65: 663 | E65: 665 | F65: 2 | G65: 400 | H65: 700 | I65: 100 | J65: 0 | K65: 700 | L65: 1200 | M65: 700 | N65: 500 | P65: محافظة تعز / مديرية المخاء | T65: رقم العداد : | U65: =U53 -> 11356
A66: 65 | B66: جميل عبده احمد موذي | C66: 215266 | D66: 316 | E66: 324 | F66: 8 | G66: 1600 | H66: 2500 | I66: 100 | J66: 0 | K66: 2500 | L66: 4200 | M66: 2500 | N66: 1700 | P66: المطلوب من الأخ / | R66: =R52 -> عمرو ناجي علي ناجي | T66: عن شهر : | U66: مايو / 2018م
A67: 66 | B67: عبده احمد عوض موذي | C67: 0 | D67: 165 | E67: 170 | F67: =(E67-D67) -> 5 | G67: =(200*F67) -> 1000 | H67: 100 | I67: 100 | J67: 0 | K67: 100 | L67: =(G67+H67+I67+J67) -> 1200 | M67: =K67 -> 100 | N67: =(L67-M67) -> 1100 | P67: =P61 -> فقط ثلاثمائة ريال يمني لاغير | T67: الإجمالي : | U67: =U61 -> 300
A68: 67 | B68: امين عبده احمد موذي | C68: 0 | D68: 149 | E68: 152 | F68: 3 | G68: 600 | H68: 900 | I68: 100 | J68: 0 | K68: 900 | L68: 1600 | M68: 900 | N68: 700
A69: 68 | B69: سالم محمد احمد موذي | C69: 66944 | D69: 0 | E69: 0 | F69: 0 | G69: 0 | H69: 100 | I69: 100 | J69: 0 | L69: 200 | M69: 0 | N69: 200 | P69: مشروع مياه الخضراء | AF69: ح
A70: 69 | B70: علي محمد صديفي | C70: 205746 | D70: 20313 | E70: 20320 | F70: 7 | G70: 1400 | H70: 1700 | I70: 100 | J70: 0 | K70: 1700 | L70: 3200 | M70: 1700 | N70: 1500 | P70: محافظة تعز / مديرية المخاء
A71: 70 | B71: عبده علي محمد صديفي | C71: 0 | D71: 585 | E71: 595 | F71: 10 | G71: 2000 | H71: 1700 | I71: 100 | J71: 0 | L71: 3800 | M71: 0 | N71: 3800 | T71: فاتورة رقــم : | U71: 17
A72: 71 | B72: محمد صالح احمد موذي | C72: 205680 | D72: 452 | E72: 454 | F72: 2 | G72: 400 | H72: 2100 | I72: 100 | J72: 0 | K72: 1000 | L72: 2600 | M72: 1000 | N72: 1600 | P72: المطلوب من الأخ / | R72: =VLOOKUP(U71,A1:N212,2,0) -> طارق ناجي علي ناجي
A73: 72 | B73: ابراهيم صالح احمد عوض موذي | C73: 216134 | D73: 404 | E73: 410 | F73: 6 | G73: 1200 | H73: 1100 | I73: 100 | J73: 0 | K73: 1100 | L73: 2400 | M73: 1100 | N73: 1300 | P73: العنوان / الخضراء | T73: رقم العداد : | U73: =VLOOKUP(U71,A1:N212,3,0) -> 0
A74: 73 | B74: علي صالح علي صديفي | C74: 225811 | D74: 212 | E74: 215 | F74: 3 | G74: 600 | H74: 100 | I74: 100 | J74: 0 | L74: 800 | M74: 0 | N74: 800 | T74: عن شهر : | U74: مايو / 2018م
A75: 74 | B75: عبده محمد عبدالله عميرة | C75: 0 | D75: 1848 | E75: 1863 | F75: 15 | G75: 3000 | H75: 2100 | I75: 100 | J75: 0 | K75: 2100 | L75: 5200 | M75: 2100 | N75: 3100 | P75: قراءة العداد | R75: الاستهلاك | S75: قيمة المياه | T75: الرصيد السابق | U75: المبلغ المستحق
A76: 75 | B76: احمد محمد عبدالله عميرة | C76: 0 | D76: 92885 | E76: 92895 | F76: 10 | G76: 2000 | H76: 2100 | I76: 100 | J76: 0 | K76: 2100 | L76: 4200 | M76: 2100 | N76: 2100 | P76: الحالية | Q76: السابقة | S76: ريال | T76: ريال | U76: ريال
A77: 76 | B77: راجح احمد محمد عميرة | C77: 0 | D77: 844 | E77: 844 | F77: 0 | G77: 0 | H77: 1100 | I77: 100 | J77: 0 | K77: 1100 | L77: 1200 | M77: 1100 | N77: 100 | P77: =VLOOKUP(U71,A1:N232,4,0) -> 35 | Q77: =VLOOKUP(U71,A1:N232,5,0) -> 35 | R77: =VLOOKUP(U71,A1:N232,6,0) -> 0 | S77: =VLOOKUP(U71,A1:N232,7,0) -> 0 | T77: =VLOOKUP(U71,A1:N212,8,0) -> 500 | U77: =(T77+S77) -> 500
A78: 77 | B78: محمد احمد محمد عميرة | C78: 0 | D78: 225 | E78: 227 | F78: 2 | G78: 400 | H78: 500 | I78: 100 | J78: 0 | K78: 500 | L78: 1000 | M78: 500 | N78: 500 | S78: المدفوع حتى 30 /04/ 2018م | U78: =VLOOKUP(U71,A1:N212,11,0) -> 500
A79: 78 | B79: عبدالله محمد عبدالله عميرة | C79: 214829 | D79: 822 | E79: 825 | F79: 3 | G79: 600 | H79: 1100 | I79: 100 | J79: 0 | K79: 1100 | L79: 1800 | M79: 1100 | N79: 700 | S79: اشتراك شهري : | U79: =VLOOKUP(U71,A1:N212,9,0) -> 100
A80: 79 | B80: علي محمد عبدالله عميرة | C80: 0 | D80: 1633 | E80: 1652 | F80: 19 | G80: 3800 | H80: 3100 | I80: 100 | J80: 0 | K80: 3100 | L80: 7000 | M80: 3100 | N80: 3900 | S80: خدمات أخرى : | U80: =VLOOKUP(U71,A1:N212,10,0) -> 0
A81: 80 | B81: حيدر علي محمد عميرة | C81: 0 | D81: 549 | E81: 549 | F81: 0 | G81: 0 | H81: 900 | I81: 100 | J81: 0 | K81: 900 | L81: 1000 | M81: 900 | N81: 100 | P81: =CH_N_TO_TEXT(U81) -> فقط مائة ريال يمني لاغير | T81: الإجمالي : | U81: =((U77-U78)+U79+U80) -> 100
A82: 81 | B82: عايش عبدالله محمد عميرة | C82: 0 | D82: 811 | E82: 831 | F82: 20 | G82: 4000 | H82: 1100 | I82: 100 | J82: 0 | L82: 5200 | M82: 0 | N82: 5200
A83: 82 | B83: علي عبدالله محمد عميرة | C83: 0 | D83: 877 | E83: 881 | F83: 4 | G83: 800 | H83: 500 | I83: 100 | J83: 0 | K83: 500 | L83: 1400 | M83: 500 | N83: 900
A84: 83 | B84: امين عبدالله محمد عميرة | C84: 0 | D84: 80 | E84: 83 | F84: 3 | G84: 600 | H84: 500 | I84: 100 | J84: 0 | K84: 500 | L84: 1200 | M84: 500 | N84: 700 | P84: مشروع مياه الخضراء | T84: فاتورة رقــم : | U84: =U71 -> 17
A85: 84 | B85: ابراهيم محمد عبدالله عميرة | C85: 0 | D85: 1344 | E85: 1350 | F85: 6 | G85: 1200 | H85: 4100 | I85: 100 | J85: 0 | K85: 4100 | L85: 5400 | M85: 4100 | N85: 1300 | P85: محافظة تعز / مديرية المخاء | T85: رقم العداد : | U85: =U73 -> 0
A86: 85 | B86: جميل ابراهيم محمد عميرة | C86: 0 | D86: 792 | E86: 799 | F86: 7 | G86: 1400 | H86: 1900 | I86: 100 | J86: 0 | K86: 1900 | L86: 3400 | M86: 1900 | N86: 1500 | P86: المطلوب من الأخ / | R86: =R72 -> طارق ناجي علي ناجي | T86: عن شهر : | U86: مايو / 2018م
A87: 86 | B87: فواز علي محمد صديفي | C87: 205676 | D87: 895 | E87: 895 | F87: 0 | G87: 0 | H87: 300 | I87: 100 | J87: 0 | K87: 300 | L87: 400 | M87: 300 | N87: 100 | P87: =P81 -> فقط مائة ريال يمني لاغير | T87: الإجمالي : | U87: =U81 -> 100
A88: 87 | B88: علي يحيى محمد عميرة | C88: 0 | D88: 212 | E88: 213 | F88: 1 | G88: 200 | H88: 500 | I88: 100 | J88: 0 | L88: 800 | M88: 0 | N88: 800
A89: 88 | B89: عبده محمد زايد سعيد | C89: 215847 | D89: 1749 | E89: 1749 | F89: 0 | G89: 0 | H89: 4500 | I89: 100 | J89: 0 | K89: 4500 | L89: 4600 | M89: 4500 | N89: 100
A90: 89 | B90: خالد محمد زايد سعيد | C90: 0 | D90: 614 | E90: 620 | F90: 6 | G90: 1200 | H90: 1300 | I90: 100 | J90: 0 | K90: 1300 | L90: 2600 | M90: 1300 | N90: 1300
A91: 90 | B91: محرم سعيد زايد سعيد | C91: 0 | D91: 20 | E91: 40 | F91: 20 | G91: 4000 | H91: 4100 | I91: 100 | J91: 0 | K91: 4100 | L91: 8200 | M91: 4100 | N91: 4100
A92: 91 | B92: هائل سعيد زايد سعيد | C92: 0 | D92: 7 | E92: 16 | F92: 9 | G92: 1800 | H92: 1500 | I92: 100 | J92: 0 | K92: 1500 | L92: 3400 | M92: 1500 | N92: 1900
A93: 92 | B93: حمود سعيد زايد سعيد | C93: 0 | D93: 1011 | E93: 1011 | F93: 0 | G93: 0 | H93: 100 | I93: 100 | J93: 0 | K93: 100 | L93: 200 | M93: 100 | N93: 100
A94: 93 | B94: سعيد سليمان محمد سليمان | C94: 0 | D94: 768 | E94: 778 | F94: 10 | G94: 2000 | H94: 2900 | I94: 100 | J94: 0 | K94: 2900 | L94: 5000 | M94: 2900 | N94: 2100
A95: 94 | B95: محمد سليمان محمد سليمان | C95: 213414 | D95: 833 | E95: 841 | F95: 8 | G95: 1600 | H95: 1100 | I95: 100 | J95: 0 | K95: 1100 | L95: 2800 | M95: 1100 | N95: 1700
A96: 95 | B96: أحمد سليمان محمد سليمان | C96: 215807 | D96: 640 | E96: 647 | F96: 7 | G96: 1400 | H96: 1700 | I96: 100 | J96: 0 | K96: 1700 | L96: 3200 | M96: 1700 | N96: 1500
A97: 96 | B97: سليمان محمد سليمان | C97: 216297 | D97: 963 | E97: 963 | F97: 0 | G97: 0 | H97: 1300 | I97: 100 | J97: 0 | K97: 1300 | L97: 1400 | M97: 1300 | N97: 100
A98: 97 | B98: صالح محمد سليمان | C98: 213404 | D98: 1107 | E98: 1107 | F98: 0 | G98: 0 | H98: 500 | I98: 100 | J98: 0 | K98: 500 | L98: 600 | M98: 500 | N98: 100
A99: 98 | B99: نبيل صالح محمد سليمان | C99: 0 | D99: 652 | E99: 652 | F99: 0 | G99: 0 | H99: 900 | I99: 100 | J99: 0 | K99: 900 | L99: 1000 | M99: 900 | N99: 100
A100: 99 | B100: فضل صالح محمد سليمان | C100: 0 | D100: 306 | E100: 310 | F100: 4 | G100: 800 | H100: 900 | I100: 100 | J100: 0 | K100: 900 | L100: 1800 | M100: 900 | N100: 900
A101: 100 | B101: عبدالله صالح محمد سليمان | C101: 2778 | D101: 383 | E101: 387 | F101: 4 | G101: 800 | H101: 900 | I101: 100 | J101: 0 | K101: 900 | L101: 1800 | M101: 900 | N101: 900
A102: 101 | B102: بسام صالح محمد سليمان | C102: 28049 | D102: 284 | E102: 299 | F102: 15 | G102: 3000 | H102: 1300 | I102: 100 | J102: 0 | K102: 1300 | L102: 4400 | M102: 1300 | N102: 3100
A103: 102 | B103: علي صالح محمد سليمان | C103: 212566 | D103: 746 | E103: 750 | F103: 4 | G103: 800 | H103: 1500 | I103: 100 | J103: 0 | K103: 1500 | L103: 2400 | M103: 1500 | N103: 900
A104: 103 | B104: اسماعيل صالح محمد سليمان | C104: 0 | D104: 135 | E104: 137 | F104: 2 | G104: 400 | H104: 500 | I104: 100 | J104: 0 | K104: 500 | L104: 1000 | M104: 500 | N104: 500
A105: 104 | B105: فهد عبده محمد سليمان | C105: 210659 | D105: 623 | E105: 628 | F105: 5 | G105: 1000 | H105: 1700 | I105: 100 | J105: 0 | K105: 1700 | L105: 2800 | M105: 1700 | N105: 1100
A106: 105 | B106: جميل عبده محمد سليمان | C106: 0 | D106: 730 | E106: 748 | F106: 18 | G106: 3600 | H106: 1100 | I106: 100 | J106: 0 | K106: 1100 | L106: 4800 | M106: 1100 | N106: 3700
A107: 106 | B107: خالد عبده محمد سليمان | C107: 0 | D107: 6 | E107: 13 | F107: 7 | G107: 1400 | H107: 1300 | I107: 100 | J107: 0 | K107: 1300 | L107: 2800 | M107: 1300 | N107: 1500
A108: 107 | B108: رياض علي محمد سليمان | C108: 210906 | D108: 785 | E108: 789 | F108: 4 | G108: 800 | H108: 1500 | I108: 100 | J108: 0 | K108: 1500 | L108: 2400 | M108: 1500 | N108: 900
A109: 108 | B109: أحمد محمد محمد زوقري | C109: 216560 | D109: 890 | E109: 890 | F109: 0 | G109: 0 | H109: 1900 | I109: 100 | J109: 0 | K109: 1900 | L109: 2000 | M109: 1900 | N109: 100
A110: 109 | B110: فهبم أحمد محمد زوقري | C110: 120662 | D110: 1001 | E110: 1019 | F110: 18 | G110: 3600 | H110: 2900 | I110: 100 | J110: 0 | K110: 2900 | L110: 6600 | M110: 2900 | N110: 3700
A111: 110 | B111: صالح أحمد محمد زوقري | C111: 23286 | D111: 437 | E111: 452 | F111: 15 | G111: 3000 | H111: 3100 | I111: 100 | J111: 0 | L111: 6200 | M111: 0 | N111: 6200
A112: 111 | B112: خالد أحمد محمد زوقري | C112: 212318 | D112: 456 | E112: 468 | F112: 12 | G112: 2400 | H112: 1900 | I112: 100 | J112: 0 | K112: 1900 | L112: 4400 | M112: 1900 | N112: 2500
A113: 112 | B113: سعيد أحمد زوقري | C113: 211208 | D113: 928 | E113: 944 | F113: 16 | G113: 3200 | H113: 2300 | I113: 100 | J113: 0 | K113: 2300 | L113: 5600 | M113: 2300 | N113: 3300
A114: 113 | B114: منير أحمد محمد زوقري | C114: 12298 | D114: 564 | E114: 573 | F114: 9 | G114: 1800 | H114: 1500 | I114: 100 | J114: 0 | K114: 1500 | L114: 3400 | M114: 1500 | N114: 1900
A115: 114 | B115: محمد علي محمد زوقري | C115: 212906 | D115: 10506 | E115: 10513 | F115: 7 | G115: 1400 | H115: 1300 | I115: 100 | J115: 0 | K115: 1300 | L115: 2800 | M115: 1300 | N115: 1500
A116: 115 | B116: سعيد محمد زوقري | C116: 216864 | D116: 633 | E116: 640 | F116: 7 | G116: 1400 | H116: 1700 | I116: 100 | J116: 0 | K116: 1700 | L116: 3200 | M116: 1700 | N116: 1500
A117: 116 | B117: عوض عبدالله زوقري | C117: 211821 | D117: 484 | E117: 493 | F117: 9 | G117: 1800 | H117: 1500 | I117: 100 | J117: 0 | K117: 1500 | L117: 3400 | M117: 1500 | N117: 1900
A118: 117 | B118: محمد عبدالله زوقري | C118: 0 | D118: 12 | E118: 28 | F118: 16 | G118: 3200 | H118: 2500 | I118: 100 | J118: 0 | K118: 2500 | L118: 5800 | M118: 2500 | N118: 3300
A119: 118 | B119: عبدالله محمد زوقري | C119: 215874 | D119: 519 | E119: 528 | F119: 9 | G119: 1800 | H119: 1300 | I119: 100 | J119: 0 | K119: 1300 | L119: 3200 | M119: 1300 | N119: 1900
A120: 119 | B120: عايد علي محمد زوقري | C120: 210997 | D120: 526 | E120: 536 | F120: 10 | G120: 2000 | H120: 2100 | I120: 100 | J120: 0 | K120: 2100 | L120: 4200 | M120: 2100 | N120: 2100
A121: 120 | B121: نبيل علي محمد زوقري | C121: 213803 | D121: 953 | E121: 961 | F121: 8 | G121: 1600 | H121: 1300 | I121: 100 | J121: 0 | K121: 1300 | L121: 3000 | M121: 1300 | N121: 1700
A122: 121 | B122: أحمد علي محمد زوقري | C122: 210930 | D122: 693 | E122: 702 | F122: 9 | G122: 1800 | H122: 1700 | I122: 100 | J122: 0 | K122: 1700 | L122: 3600 | M122: 1700 | N122: 1900
A123: 122 | B123: عبدالعزيز محمد سكندر | C123: 215304 | D123: 601 | E123: 610 | F123: 9 | G123: 1800 | H123: 2100 | I123: 100 | J123: 0 | K123: 2100 | L123: 4000 | M123: 2100 | N123: 1900
A124: 123 | B124: عبدالله محمد سكندر | C124: 212503 | D124: 459 | E124: 462 | F124: 3 | G124: 600 | H124: 900 | I124: 100 | J124: 0 | K124: 900 | L124: 1600 | M124: 900 | N124: 700
A125: 124 | B125: أحمد محمد سكندر | C125: 883 | D125: 1 | E125: 4 | F125: 3 | G125: 600 | H125: 300 | I125: 100 | J125: 0 | K125: 300 | L125: 1000 | M125: 300 | N125: 700
A126: 125 | B126: محمد عبده علي زوقري | C126: 212981 | D126: 442 | E126: 446 | F126: 4 | G126: 800 | H126: 1500 | I126: 100 | J126: 0 | K126: 1500 | L126: 2400 | M126: 1500 | N126: 900
A127: 126 | B127: محمد أحمد قبصي | C127: 212367 | D127: 686 | E127: 694 | F127: 8 | G127: 1600 | H127: 1100 | I127: 100 | J127: 0 | K127: 1100 | L127: 2800 | M127: 1100 | N127: 1700
A128: 127 | B128: علي محمد أحمد قبصي | C128: 211376 | D128: 485 | E128: 490 | F128: 5 | G128: 1000 | H128: 700 | I128: 100 | J128: 0 | L128: 1800 | M128: 0 | N128: 1800
A129: 128 | B129: أحمد محمد أحمد قبصي | C129: 354 | D129: 205 | E129: 213 | F129: 8 | G129: 1600 | H129: 900 | I129: 100 | J129: 0 | K129: 900 | L129: 2600 | M129: 900 | N129: 1700
A130: 129 | B130: نشوان محمد أحمد قبصي | C130: 205948 | D130: 567 | E130: 575 | F130: 8 | G130: 1600 | H130: 1300 | I130: 100 | J130: 0 | K130: 1300 | L130: 3000 | M130: 1300 | N130: 1700
A131: 130 | B131: رزق محمد قبصي | C131: 0 | D131: 198 | E131: 203 | F131: =(E131-D131) -> 5 | G131: =(200*F131) -> 1000 | H131: 1500 | I131: 100 | J131: 0 | K131: 1500 | L131: =(G131+H131+I131+J131) -> 2600 | M131: =K131 -> 1500 | N131: =(L131-M131) -> 1100
A132: 131 | B132: سمير محمد قبصي | C132: 320319 | D132: 79 | E132: 92 | F132: 13 | G132: 2600 | H132: 2100 | I132: 100 | J132: 0 | L132: 4800 | M132: 0 | N132: 4800
A133: 132 | B133: إ[راهيم سعيد زيد | C133: 0 | D133: 210 | E133: 210 | F133: 0 | G133: 0 | H133: 300 | I133: 100 | J133: 0 | L133: 400 | M133: 0 | N133: 400
A134: 133 | B134: محمد عبدالله زيد | C134: 0 | D134: 159 | E134: 171 | F134: 12 | G134: 2400 | H134: 2700 | I134: 100 | J134: 0 | K134: 2500 | L134: 5200 | M134: 2500 | N134: 2700
A135: 134 | B135: محمد عبدالله زيد | C135: 215226 | D135: 11406 | E135: 11407 | F135: 1 | G135: 200 | H135: 100 | I135: 100 | J135: 0 | K135: 100 | L135: 400 | M135: 100 | N135: 300
A136: 135 | B136: أحمد عبدالله زيد | C136: 12064 | D136: 10330 | E136: 10331 | F136: 1 | G136: 200 | H136: 100 | I136: 100 | J136: 0 | K136: 100 | L136: 400 | M136: 100 | N136: 300
A137: 136 | B137: عوض محمد قاسم قحيم | C137: 204006 | D137: 1249 | E137: 1249 | F137: 0 | G137: 0 | H137: 100 | I137: 100 | J137: 0 | L137: 200 | M137: 0 | N137: 200
A138: 137 | B138: مجيد محمد قاسم قحيم | C138: 2959 | D138: 513 | E138: 520 | F138: 7 | G138: 1400 | H138: 1700 | I138: 100 | J138: 0 | L138: 3200 | M138: 0 | N138: 3200
A139: 138 | B139: صدام محمد قاسم | C139: 210984 | D139: 609 | E139: 613 | F139: 4 | G139: 800 | H139: 300 | I139: 100 | J139: 0 | L139: 1200 | M139: 0 | N139: 1200
A140: 139 | B140: أحمد زيد حكيمي | C140: 206063 | D140: 714 | E140: 718 | F140: 4 | G140: 800 | H140: 1100 | I140: 100 | J140: 0 | L140: 2000 | M140: 0 | N140: 2000
A141: 140 | B141: علي عبدالله زيد | C141: 213406 | D141: 930 | E141: 942 | F141: 12 | G141: 2400 | H141: 1700 | I141: 100 | J141: 0 | L141: 4200 | M141: 0 | N141: 4200
A142: 141 | B142: عبدالله محمد علي قحيم | C142: 214766 | D142: 1433 | E142: 1437 | F142: 4 | G142: 800 | H142: 1900 | I142: 100 | J142: 0 | K142: 1900 | L142: 2800 | M142: 1900 | N142: 900
A143: 142 | B143: علي بن علي عوض مدردر | C143: 0 | D143: 3 | E143: 8 | F143: 5 | G143: 1000 | H143: 700 | I143: 100 | J143: 0 | K143: 700 | L143: 1800 | M143: 700 | N143: 1100
A144: 143 | B144: بديع عوض علي مدردر | C144: 212529 | D144: 997 | E144: 1008 | F144: 11 | G144: 2200 | H144: 1300 | I144: 100 | J144: 0 | K144: 1300 | L144: 3600 | M144: 1300 | N144: 2300
A145: 144 | B145: حبيب أحمد علي مدردر | C145: 214623 | D145: 840 | E145: 847 | F145: 7 | G145: 1400 | H145: 100 | I145: 100 | J145: 0 | K145: 100 | L145: 1600 | M145: 100 | N145: 1500
A146: 145 | B146: محمد أحمد علي مدردر | C146: 210452 | D146: 337 | E146: 348 | F146: 11 | G146: 2200 | H146: 700 | I146: 100 | J146: 0 | K146: 700 | L146: 3000 | M146: 700 | N146: 2300
A147: 146 | B147: مصعب سعيد مدردر | C147: 210916 | D147: 542 | E147: 548 | F147: 6 | G147: 1200 | H147: 1100 | I147: 100 | J147: 0 | L147: 2400 | M147: 0 | N147: 2400
A148: 147 | B148: علي عبدالله علي قحيم | C148: 8102008 | D148: 17 | E148: 35 | F148: 18 | G148: 3600 | H148: 3500 | I148: 100 | J148: 0 | K148: 3500 | L148: 7200 | M148: 3500 | N148: 3700
A149: 148 | B149: تقي محمد علي قحيم | C149: 140887 | D149: 9 | E149: 25 | F149: 16 | G149: 3200 | H149: 1900 | I149: 100 | J149: 0 | K149: 1900 | L149: 5200 | M149: 1900 | N149: 3300
A150: 149 | B150: صلاح محمد علي قحيم | C150: 211616 | D150: 661 | E150: 671 | F150: 10 | G150: 2000 | H150: 1100 | I150: 100 | J150: 0 | K150: 1000 | L150: 3200 | M150: 1000 | N150: 2200
A151: 150 | B151: علي أحمد عليقحيم | C151: 214699 | D151: 1269 | E151: 1273 | F151: 4 | G151: 800 | H151: 2900 | I151: 100 | J151: 0 | K151: 2900 | L151: 3800 | M151: 2900 | N151: 900
A152: 151 | B152: عبده علي هواش | C152: 4980 | D152: 210 | E152: 213 | F152: 3 | G152: 600 | H152: 500 | I152: 100 | J152: 0 | K152: 500 | L152: 1200 | M152: 500 | N152: 700
A153: 152 | B153: سعيدعلي علي محلي | C153: 215707 | D153: 1043 | E153: 1050 | F153: 7 | G153: 1400 | H153: 900 | I153: 100 | J153: 0 | K153: 900 | L153: 2400 | M153: 900 | N153: 1500
A154: 153 | B154: أحمد علي علي محلي | C154: 210766 | D154: 1474 | E154: 1476 | F154: 2 | G154: 400 | H154: 300 | I154: 100 | J154: 0 | K154: 300 | L154: 800 | M154: 300 | N154: 500
A155: 154 | B155: محمد علي علي محلي | C155: 215439 | D155: 399 | E155: 413 | F155: 14 | G155: 2800 | H155: 3300 | I155: 100 | J155: 0 | L155: 6200 | M155: 0 | N155: 6200
A156: 155 | B156: عبده سعيد سراجي | C156: 215549 | D156: 681 | E156: 691 | F156: 10 | G156: 2000 | H156: 1300 | I156: 100 | J156: 0 | K156: 1300 | L156: 3400 | M156: 1300 | N156: 2100
A157: 156 | B157: عبدالله علي علي محلي | C157: 214676 | D157: 706 | E157: 706 | F157: 0 | G157: 0 | H157: 1300 | I157: 100 | J157: 0 | K157: 1300 | L157: 1400 | M157: 1300 | N157: 100
A158: 157 | B158: محمد حيدر علي محلي | C158: 213116 | D158: 21120 | E158: 21149 | F158: 29 | G158: 5800 | H158: 2100 | I158: 100 | J158: 0 | K158: 2100 | L158: 8000 | M158: 2100 | N158: 5900
A159: 158 | B159: فضل يوسف محلي | C159: 11480 | D159: 480 | E159: 484 | F159: 4 | G159: 800 | H159: 900 | I159: 100 | J159: 0 | K159: 900 | L159: 1800 | M159: 900 | N159: 900
A160: 159 | B160: علي زيد حكيمي | C160: 212538 | D160: 816 | E160: 833 | F160: 17 | G160: 3400 | H160: 3300 | I160: 100 | J160: 0 | K160: 3000 | L160: 6800 | M160: 3000 | N160: 3800
A161: 160 | B161: يوسف علي محلي | C161: 211683 | D161: 461 | E161: 476 | F161: 15 | G161: 3000 | H161: 1300 | I161: 100 | J161: 0 | L161: 4400 | M161: 0 | N161: 4400
A162: 161 | B162: أحمد حيدر علي محلي | C162: 888990 | D162: 230 | E162: 243 | F162: 13 | G162: 2600 | H162: 1900 | I162: 100 | J162: 0 | K162: 1900 | L162: 4600 | M162: 1900 | N162: 2700
A163: 162 | B163: علي حيدر علي محلي | C163: 215295 | D163: 771 | E163: 773 | F163: 2 | G163: 400 | H163: 100 | I163: 100 | J163: 0 | L163: 600 | M163: 0 | N163: 600
A164: 163 | B164: مسجد أحمد حيدر علي | C164: 0 | D164: 10 | E164: 26 | F164: 16 | G164: 3200 | H164: 2100 | I164: 100 | J164: 0 | K164: 2100 | L164: 5400 | M164: 2100 | N164: 3300
A165: 164 | B165: نبيل عبدالله زايد | C165: 12153 | D165: 169 | E165: 185 | F165: 16 | G165: 3200 | H165: 2100 | I165: 100 | J165: 0 | K165: 2100 | L165: 5400 | M165: 2100 | N165: 3300
A166: 165 | B166: حيدر سعيد سالم حكيمي | C166: 205778 | D166: 1204 | E166: 1219 | F166: 15 | G166: 3000 | H166: 2500 | I166: 100 | J166: 0 | K166: 2500 | L166: 5600 | M166: 2500 | N166: 3100
A167: 166 | B167: عبدالله علي عميره | C167: 705591 | D167: 854 | E167: 900 | F167: 46 | G167: 9200 | H167: 2100 | I167: 100 | J167: 0 | K167: 2000 | L167: 11400 | M167: 2000 | N167: 9400
A168: 167 | B168: محمد علي عبدالله عميره | C168: 705527 | D168: 1028 | E168: 1075 | F168: 47 | G168: 9400 | H168: 1900 | I168: 100 | J168: 0 | K168: 1900 | L168: 11400 | M168: 1900 | N168: 9500
A169: 168 | B169: علي سعيد عميره | C169: 700869 | D169: 258 | E169: 260 | F169: 2 | G169: 400 | H169: 1700 | I169: 100 | J169: 0 | K169: 1500 | L169: 2200 | M169: 1500 | N169: 700
A170: 169 | B170: صديق هايل عميره | C170: 705530 | D170: 143 | E170: 161 | F170: 18 | G170: 3600 | H170: 1700 | I170: 100 | J170: 0 | K170: 1500 | L170: 5400 | M170: 1500 | N170: 3900
A171: 170 | B171: بديع علي عبدالله عميره | C171: 0 | D171: 108 | E171: 110 | F171: 2 | G171: 400 | H171: 1700 | I171: 100 | J171: 0 | L171: 2200 | M171: 0 | N171: 2200
A172: 171 | B172: محمد ناجي عميره | C172: 0 | D172: 23 | E172: 28 | F172: 5 | G172: 1000 | H172: 4700 | I172: 100 | J172: 0 | K172: 3000 | L172: 5800 | M172: 3000 | N172: 2800
A173: 172 | B173: فؤاد سعيد عميره | C173: 708088 | D173: 990 | E173: 1000 | F173: 10 | G173: 2000 | H173: 100 | I173: 100 | J173: 0 | L173: 2200 | M173: 0 | N173: 2200
A174: 173 | B174: سعيد يحيى صديفي | C174: 0 | D174: 1393 | E174: 1399 | F174: 6 | G174: 1200 | H174: 900 | I174: 100 | J174: 0 | L174: 2200 | M174: 0 | N174: 2200
A175: 174 | B175: واتح يحيى صديفي | C175: 215666 | D175: 11361 | E175: 11368 | F175: 7 | G175: 1400 | H175: 1100 | I175: 100 | J175: 0 | K175: 500 | L175: 2600 | M175: 500 | N175: 2100
A176: 175 | B176: عبداللطيف يحيى صديفي | C176: 0 | D176: 17 | E176: 30 | F176: 13 | G176: 2600 | H176: 3500 | I176: 100 | J176: 0 | K176: 3500 | L176: 6200 | M176: 3500 | N176: 2700
A177: 176 | B177: سالم راجح محمد صديفي | C177: 211249 | D177: 1121 | E177: 1138 | F177: 17 | G177: 3400 | H177: 2100 | I177: 100 | J177: 0 | K177: 2100 | L177: 5600 | M177: 2100 | N177: 3500
A178: 177 | B178: الزراعي راجح محمد صديفي | C178: 211665 | D178: 952 | E178: 960 | F178: 8 | G178: 1600 | H178: 1700 | I178: 100 | J178: 0 | K178: 1700 | L178: 3400 | M178: 1700 | N178: 1700
A179: 178 | B179: سعيد راجح صديفي | C179: 0 | D179: 1 | E179: 3 | F179: 2 | G179: 400 | H179: 300 | I179: 100 | J179: 0 | K179: 300 | L179: 800 | M179: 300 | N179: 500
A180: 179 | B180: عبده يحيى صديفي | C180: 214829 | D180: 873 | E180: 873 | F180: 0 | G180: 0 | H180: 300 | I180: 100 | J180: 0 | L180: 400 | M180: 0 | N180: 400
A181: 180 | B181: همام يحيى صديفي | C181: 0 | D181: 80061 | E181: 80069 | F181: 8 | G181: 1600 | H181: 2500 | I181: 100 | J181: 0 | K181: 1500 | L181: 4200 | M181: 1500 | N181: 2700
A182: 181 | B182: عبدالله محمد حكيمي | C182: 3738237 | D182: 388 | E182: 388 | F182: 0 | G182: 0 | H182: 2300 | I182: 100 | J182: 0 | L182: 2400 | M182: 0 | N182: 2400
A183: 182 | B183: خليل سالم خشب | C183: 215354 | D183: 385 | E183: 385 | F183: 0 | G183: 0 | H183: 1500 | I183: 100 | J183: 0 | L183: 1600 | M183: 0 | N183: 1600
A184: 183 | B184: علاوي سعيد حكيمي | C184: 3738220 | D184: 445 | E184: 445 | F184: 0 | G184: 0 | H184: 3100 | I184: 100 | J184: 0 | L184: 3200 | M184: 0 | N184: 3200
A185: 184 | B185: أحمد علي هكي | C185: 215226 | D185: 1143 | E185: 1144 | F185: 1 | G185: 200 | H185: 900 | I185: 100 | J185: 0 | L185: 1200 | M185: 0 | N185: 1200
A186: 185 | B186: أنور حمادي قحيم | C186: 0 | D186: 2 | E186: 5 | F186: 3 | G186: 600 | H186: 500 | I186: 100 | J186: 0 | K186: 500 | L186: 1200 | M186: 500 | N186: 700
A187: 186 | B187: محمد محمد ثابت قحيم | C187: 0 | D187: 2 | E187: 3 | F187: 1 | G187: 200 | H187: 500 | I187: 100 | J187: 0 | K187: 500 | L187: 800 | M187: 500 | N187: 300
A188: 187 | B188: أحمد علي قلقلي | C188: 211687 | D188: 610 | E188: 614 | F188: 4 | G188: 800 | H188: 900 | I188: 100 | J188: 0 | K188: 900 | L188: 1800 | M188: 900 | N188: 900
A189: 188 | B189: محمد علي قلقلي | C189: 0 | D189: 6 | E189: 13 | F189: 7 | G189: 1400 | H189: 1300 | I189: 100 | J189: 0 | K189: 1300 | L189: 2800 | M189: 1300 | N189: 1500
A190: 189 | B190: علي عبدالله زوقري | C190: 1470295 | D190: 3 | E190: 10 | F190: 7 | G190: 1400 | H190: 700 | I190: 100 | J190: 0 | K190: 700 | L190: 2200 | M190: 700 | N190: 1500
A191: 190 | B191: محمد بن محمد زوقري | C191: 215360 | D191: 588 | E191: 591 | F191: 3 | G191: 600 | H191: 700 | I191: 100 | J191: 0 | K191: 700 | L191: 1400 | M191: 700 | N191: 700
A192: 191 | B192: حمدي أحمد علي زوقري | C192: 26812 | D192: 58 | E192: 59 | F192: 1 | G192: 200 | H192: 100 | I192: 100 | J192: 0 | L192: 400 | M192: 0 | N192: 400
A193: 192 | B193: ذاكر يحيى محمد زوقري | C193: 1134 | D193: 140 | E193: 148 | F193: 8 | G193: 1600 | H193: 1900 | I193: 100 | J193: 0 | L193: 3600 | M193: 0 | N193: 3600
A194: 193 | B194: عبده محمد زوقري | C194: 211236 | D194: 965 | E194: 978 | F194: 13 | G194: 2600 | H194: 2500 | I194: 100 | J194: 0 | K194: 2500 | L194: 5200 | M194: 2500 | N194: 2700
A195: 194 | B195: يحيى محمد زوقري | C195: 211088 | D195: 81189 | E195: 81201 | F195: =(E195-D195) -> 12 | G195: =(200*F195) -> 2400 | H195: 2300 | I195: 100 | J195: 0 | L195: =(G195+H195+I195+J195) -> 4800 | M195: =K195 -> 0 | N195: =(L195-M195) -> 4800
A196: 195 | B196: عبده يحيى محمد زوقري | C196: 211397 | D196: 431 | E196: 433 | F196: 2 | G196: 400 | H196: 300 | I196: 100 | J196: 0 | L196: 800 | M196: 0 | N196: 800
A197: 196 | B197: مجد علي زوقري | C197: 24470 | D197: 360 | E197: 371 | F197: 11 | G197: 2200 | H197: 1900 | I197: 100 | J197: 0 | K197: 1900 | L197: 4200 | M197: 1900 | N197: 2300
A198: 197 | B198: عبدالله علي محمد زوقري | C198: 24067 | D198: 141 | E198: 145 | F198: 4 | G198: 800 | H198: 700 | I198: 100 | J198: 0 | K198: 700 | L198: 1600 | M198: 700 | N198: 900
A199: 198 | B199: علي عبدالله زوقري | C199: 212844 | D199: 304 | E199: 306 | F199: 2 | G199: 400 | H199: 100 | I199: 100 | J199: 0 | K199: 100 | L199: 600 | M199: 100 | N199: 500
A200: 199 | B200: عبدالله علي محمد زوقري | C200: 212932 | D200: 727 | E200: 727 | F200: 0 | G200: 0 | H200: 1500 | I200: 100 | J200: 0 | L200: 1600 | M200: 0 | N200: 1600
... 13 more rows

Sheet Sheet3
A2: مشروع مياه الخضراء
A3: محافظة تعز / مديرية المخاء
E4: فاتورة رقــم : | F4: 1
A5: المطلوب من الأخ / | C5: زيد عمر ناجي
A6: العنوان / الخضراء | E6: رقم العداد : | F6: 214929
E7: عن شهر : | F7: مارس / 2015م
A8: قراءة العداد | C8: الاستهلاك | D8: قيمة المياه | E8: الرصيد السابق | F8: المبلغ المستحق
A9: الحالية | B9: السابقة | D9: ريال | E9: ريال | F9: ريال
A10: 3173 | B10: 3153 | C10: 20 | D10: 3300 | E10: 4390 | F10: 7690
D11: المدفوع حتى 28 /02/ 2015م | F11: 4390
D12: اشتراك شهري : | F12: 100
D13: خدمات أخرى : | F13: 0
A14: فقط ثلاثة ألف وأربعمائة ريال يمني لاغير | E14: الإجمالي : | F14: 3400
A17: مشروع مياه الخضراء | E17: فاتورة رقــم : | F17: 1
A18: محافظة تعز / مديرية المخاء | E18: رقم العداد : | F18: 214929
A19: المطلوب من الأخ / | C19: زيد عمر ناجي | E19: عن شهر : | F19: مارس / 2015م
A20: فقط ثلاثة ألف وأربعمائة ريال يمني لاغير | E20: الإجمالي : | F20: 3400
A22: مشروع مياه الخضراء
A23: محافظة تعز / مديرية المخاء
E24: فاتورة رقــم : | F24: 2
A25: المطلوب من الأخ / | C25: زيد عمر ناجي
A26: العنوان / الخضراء | E26: رقم العداد : | F26: 211117
E27: عن شهر : | F27: مارس / 2015م
A28: قراءة العداد | C28: الاستهلاك | D28: قيمة المياه | E28: الرصيد السابق | F28: المبلغ المستحق
A29: الحالية | B29: السابقة | D29: ريال | E29: ريال | F29: ريال
A30: 8047 | B30: 8041 | C30: 6 | D30: 990 | E30: 1255 | F30: 2245
D31: المدفوع حتى 28 /02/ 2015م | F31: 1255
D32: اشتراك شهري : | F32: 100
D33: خدمات أخرى : | F33: 0
A34: فقط ألف و تسعين ريال يمني لاغير | E34: الإجمالي : | F34: 1090
A37: مشروع مياه الخضراء | E37: فاتورة رقــم : | F37: 2
A38: محافظة تعز / مديرية المخاء | E38: رقم العداد : | F38: 211117
A39: المطلوب من الأخ / | C39: زيد عمر ناجي | E39: عن شهر : | F39: مارس / 2015م
A40: فقط ألف و تسعين ريال يمني لاغير | E40: الإجمالي : | F40: 1090

Sheet Sheet2 (2)
A1: م | B1: اسم المشترك | C1: رقم العداد | D1: السابقة | E1: الحالية | F1: فارق القراءة | G1: قيمة المياه | H1: الرصيد السابق | I1: اشتراك شهري | J1: اخرى | K1: المدفوع حتى31-5-2018 | L1: إجمالي المبلغ | M1: المدفوع | N1: المتبقي
A2: 1 | B2: زيد عمر ناجي محمد | C2: 211117 | D2: 8106 | E2: 8106 | F2: =(E2-D2) -> 0 | G2: =(200*F2) -> 0 | H2: 100 | I2: 100 | J2: 0 | K2: 100 | L2: =(G2+H2+I2+J2) -> 200 | M2: =K2 -> 100 | N2: =(L2-M2) -> 100 | IV2: =SUM(A2:IU2) -> 228030
A3: 2 | B3: زيد عمر ناجي محمد | C3: 38203 | D3: 3013 | E3: 3013 | F3: =(E3-D3) -> 0 | G3: =(200*F3) -> 0 | H3: 34700 | I3: 100 | J3: 0 | K3: 34700 | L3: =(G3+H3+I3+J3) -> 34800 | M3: =K3 -> 34700 | N3: =(L3-M3) -> 100
A4: 3 | B4: زيد عمر ناجي محمد | C4: 214929 | D4: 3609 | E4: 3712 | F4: 103 | G4: 20600 | H4: 37300 | I4: 100 | J4: 0 | K4: 37300 | L4: 58000 | M4: 37300 | N4: 20700
A5: 4 | B5: زيد عمر ناجي محمد | C5: 11841 | D5: 6716 | E5: 6731 | F5: 15 | G5: 3000 | H5: 7300 | I5: 100 | J5: 0 | K5: 7300 | L5: 10400 | M5: 7300 | N5: 3100
A6: 5 | B6: زيد عمر ناجي محمد | C6: 213121 | D6: 34045 | E6: 34045 | F6: 0 | G6: 0 | H6: 100 | I6: 100 | J6: 0 | K6: 100 | L6: 200 | M6: 100 | N6: 100
A7: 6 | B7: مختار عمر ناجي محمد | C7: 210780 | D7: 1082 | E7: 1082 | F7: 0 | G7: 0 | H7: 5700 | I7: 100 | J7: 0 | K7: 5700 | L7: 5800 | M7: 5700 | N7: 100
A8: 7 | B8: صالح عمر ناجي محمد | C8: 210954 | D8: 1361 | E8: 1361 | F8: 0 | G8: 0 | H8: 30100 | I8: 100 | J8: 0 | K8: 30100 | L8: 30200 | M8: 30100 | N8: 100
A9: 8 | B9: صلاح عمر ناجي محمد | C9: 3738 | D9: 3100 | E9: 3224 | F9: 124 | G9: 24800 | H9: 100 | I9: 100 | J9: 0 | K9: 100 | L9: 25000 | M9: 100 | N9: 24900
A10: 9 | B10: سعيد عباد سراجي | C10: 215329 | D10: 2153 | E10: 2153 | F10: 0 | G10: 0 | H10: 6100 | I10: 100 | J10: 0 | K10: 6100 | L10: 6200 | M10: 6100 | N10: 100
A11: 10 | B11: احمد علي ناجي محمد | C11: 214222 | D11: 683 | E11: 689 | F11: 6 | G11: 1200 | H11: 100 | I11: 100 | J11: 0 | K11: 100 | L11: 1400 | M11: 100 | N11: 1300
A12: 11 | B12: عبده علي ناجي محمد | C12: 210918 | D12: 1134 | E12: 1147 | F12: 13 | G12: 2600 | H12: 3100 | I12: 100 | J12: 0 | K12: 3100 | L12: 5800 | M12: 3100 | N12: 2700
A13: 12 | B13: علي بن علي ناجي محمد | C13: 210984 | D13: 1898 | E13: 1948 | F13: 50 | G13: 10000 | H13: 3900 | I13: 100 | J13: 0 | K13: 3900 | L13: 14000 | M13: 3900 | N13: 10100
A14: 13 | B14: صالح علي ناجي محمد | C14: 0 | D14: 18 | E14: 34 | F14: 16 | G14: 3200 | H14: 2300 | I14: 100 | J14: 0 | K14: 2300 | L14: 5600 | M14: 2300 | N14: 3300
A15: 14 | B15: عمرو ناجي علي ناجي | C15: 11356 | D15: 252 | E15: 255 | F15: 3 | G15: 600 | H15: 300 | I15: 100 | J15: 0 | K15: 300 | L15: 1000 | M15: 300 | N15: 700
A16: 15 | B16: معاذ ناجي علي ناجي | C16: 0 | D16: 53 | E16: 55 | F16: 2 | G16: 400 | H16: 1600 | I16: 100 | J16: 0 | K16: 1600 | L16: 2100 | M16: 1600 | N16: 500
A17: 16 | B17: عماد ناجي علي ناجي | C17: 58146 | D17: 87 | E17: 90 | F17: 3 | G17: 600 | H17: 900 | I17: 100 | J17: 0 | K17: 900 | L17: 1600 | M17: 900 | N17: 700
A18: 17 | B18: طارق ناجي علي ناجي | C18: 0 | D18: 35 | E18: 35 | F18: 0 | G18: 0 | H18: 100 | I18: 100 | J18: 0 | K18: 100 | L18: 200 | M18: 100 | N18: 100
A19: 18 | B19: محمد سالم احمد ناجي | C19: 0 | D19: 599 | E19: 599 | F19: 0 | G19: 0 | H19: 13100 | I19: 100 | J19: 0 | K19: 0 | L19: 13200 | M19: 0 | N19: 13200
A20: 19 | B20: ناجي علي ناجي محمد | C20: 215095 | D20: 420 | E20: 426 | F20: 6 | G20: 1200 | H20: 1500 | I20: 100 | J20: 0 | K20: 1500 | L20: 2800 | M20: 1500 | N20: 1300
A21: 20 | B21: محمد ناجي علي ناجي | C21: 216316 | D21: 861 | E21: 874 | F21: 13 | G21: 2600 | H21: 2100 | I21: 100 | J21: 0 | K21: 2100 | L21: 4800 | M21: 2100 | N21: 2700
A22: 21 | B22: احمد ناجي علي ناجي | C22: 214892 | D22: 409 | E22: 413 | F22: 4 | G22: 800 | H22: 1100 | I22: 100 | J22: 0 | K22: 1100 | L22: 2000 | M22: 1100 | N22: 900
A23: 22 | B23: علي ناجي علي ناجي | C23: 212438 | D23: 730 | E23: 737 | F23: 7 | G23: 1400 | H23: 1100 | I23: 100 | J23: 0 | K23: 1100 | L23: 2600 | M23: 1100 | N23: 1500
A24: 23 | B24: محمد علي ناجي محمد | C24: 212781 | D24: 1505 | E24: 1517 | F24: 12 | G24: 2400 | H24: 2700 | I24: 100 | J24: 0 | K24: 2700 | L24: 5200 | M24: 2700 | N24: 2500
A25: 24 | B25: نزار محمد علي ناجي | C25: 11381 | D25: 559 | E25: 545 | F25: -14 | G25: -2800 | H25: 8100 | I25: 100 | J25: 0 | K25: 8100 | L25: 5400 | M25: 8100 | N25: -2700
A26: 25 | B26: معتز محمد علي ناجي | C26: 215108 | D26: 1062 | E26: 1066 | F26: 4 | G26: 800 | H26: 1300 | I26: 100 | J26: 0 | K26: 1300 | L26: 2200 | M26: 1300 | N26: 900
A27: 26 | B27: عبده احمد ناجي محمد | C27: 212822 | D27: 898 | E27: 901 | F27: 3 | G27: 600 | H27: 600 | I27: 100 | J27: 0 | K27: 600 | L27: 1300 | M27: 600 | N27: 700
A28: 27 | B28: محمد احمد ناجي محمد | C28: 210912 | D28: 1870 | E28: 1881 | F28: 11 | G28: 2200 | H28: 2900 | I28: 100 | J28: 0 | K28: 2900 | L28: 5200 | M28: 2900 | N28: 2300
A29: 28 | B29: مصطفى سالم محمد ناجي | C29: 210833 | D29: 3019 | E29: 3019 | F29: 0 | G29: 0 | H29: 100 | I29: 100 | J29: 0 | K29: 100 | L29: 200 | M29: 100 | N29: 100
A30: 29 | B30: سعيد محمد ناجي محمد | C30: 213576 | D30: 272 | E30: 281 | F30: 9 | G30: 1800 | H30: 1900 | I30: 100 | J30: 0 | K30: 1900 | L30: 3800 | M30: 1900 | N30: 1900
A31: 30 | B31: علي ثابت حميدان | C31: 214446 | D31: 250 | E31: 262 | F31: 12 | G31: 2400 | H31: 3300 | I31: 100 | J31: 0 | K31: 3300 | L31: 5800 | M31: 3300 | N31: 2500
A32: 31 | B32: معذ محمد ثابت | C32: 210946 | D32: 21666 | E32: 21683 | F32: 17 | G32: 3400 | H32: 100 | I32: 100 | J32: 0 | K32: 100 | L32: 3600 | M32: 100 | N32: 3500
A33: 32 | B33: علي سالم محمد ناجي | C33: 211161 | D33: 1113 | E33: 1132 | F33: 19 | G33: 3800 | H33: 4300 | I33: 100 | J33: 0 | K33: 4300 | L33: 8200 | M33: 4300 | N33: 3900
A34: 33 | B34: محمد سالم محمد ناجي | C34: 216243 | D34: 605 | E34: 615 | F34: 10 | G34: 2000 | H34: 2700 | I34: 100 | J34: 0 | K34: 2700 | L34: 4800 | M34: 2700 | N34: 2100
A35: 34 | B35: محمد سالم محمد ناجي | C35: 4617 | D35: 40172 | E35: 40173 | F35: 1 | G35: 200 | H35: 100 | I35: 100 | J35: 0 | K35: 100 | L35: 400 | M35: 100 | N35: 300
A36: 35 | B36: علي محمد طبيلي | C36: 214210 | D36: 1673 | E36: 1693 | F36: 20 | G36: 4000 | H36: 5300 | I36: 100 | J36: 0 | K36: 5300 | L36: 9400 | M36: 5300 | N36: 4100
A37: 36 | B37: ربيع علي محمد طبيلي | C37: 211153 | D37: 265 | E37: 270 | F37: 5 | G37: 1000 | H37: 1800 | I37: 100 | J37: 0 | K37: 1800 | L37: 2900 | M37: 1800 | N37: 1100
A38: 37 | B38: صلاح علي محمد طبيلي | C38: 59875 | D38: 48 | E38: 51 | F38: 3 | G38: 600 | H38: 500 | I38: 100 | J38: 0 | K38: 500 | L38: 1200 | M38: 500 | N38: 700
A39: 38 | B39: ناجي محمد ناجي محمد | C39: 0 | D39: 1281 | E39: 1306 | F39: 25 | G39: 5000 | H39: 6500 | I39: 100 | J39: 0 | K39: 6500 | L39: 11600 | M39: 6500 | N39: 5100
A40: 39 | B40: خالد محمد ناجي محمد | C40: 0 | D40: 1754 | E40: 1759 | F40: 5 | G40: 1000 | H40: 2100 | I40: 100 | J40: 0 | K40: 2100 | L40: 3200 | M40: 2100 | N40: 1100
A41: 40 | B41: مصطفى سالم محمد ناجي | C41: 0 | D41: 328 | E41: 332 | F41: 4 | G41: 800 | H41: 1900 | I41: 100 | J41: 0 | K41: 1900 | L41: 2800 | M41: 1900 | N41: 900
A42: 41 | B42: احمد سعيد علي ناجي | C42: 0 | D42: 977 | E42: 987 | F42: 10 | G42: 2000 | H42: 100 | I42: 100 | J42: 0 | K42: 100 | L42: 2200 | M42: 100 | N42: 2100
A43: 42 | B43: فضل صالح علي موذي | C43: 0 | D43: 792 | E43: 802 | F43: 10 | G43: 2000 | H43: 1100 | I43: 100 | J43: 0 | K43: 1100 | L43: 3200 | M43: 1100 | N43: 2100
A44: 43 | B44: محمد صالح علي موذي | C44: 212401 | D44: 450 | E44: 460 | F44: 10 | G44: 2000 | H44: 100 | I44: 100 | J44: 0 | K44: 0 | L44: 2200 | M44: 0 | N44: 2200
A45: 44 | B45: صالح علي عوض موذي | C45: 216184 | D45: 1074 | E45: 1077 | F45: 3 | G45: 600 | H45: 4100 | I45: 100 | J45: 0 | K45: 4100 | L45: 4800 | M45: 4100 | N45: 700
A46: 45 | B46: علي صالح علي موذي | C46: 24307 | D46: 215 | E46: 218 | F46: 3 | G46: 600 | H46: 900 | I46: 100 | J46: 0 | K46: 900 | L46: 1600 | M46: 900 | N46: 700
A47: 46 | B47: علي عبدالله عوض موذي | C47: 213044 | D47: 960 | E47: 973 | F47: 13 | G47: 2600 | H47: 2700 | I47: 100 | J47: 0 | K47: 2700 | L47: 5400 | M47: 2700 | N47: 2700
A48: 47 | B48: محمد عبدالله عوض موذي | C48: 212574 | D48: 675 | E48: 679 | F48: 4 | G48: 800 | H48: 500 | I48: 100 | J48: 0 | K48: 500 | L48: 1400 | M48: 500 | N48: 900
A49: 48 | B49: احمد علي محمد مدردر | C49: 10323 | D49: 15 | E49: 22 | F49: 7 | G49: 1400 | H49: 1700 | I49: 100 | J49: 0 | K49: 1700 | L49: 3200 | M49: 1700 | N49: 1500 | P49: مشروع مياه الخضراء
A50: 49 | B50: عبدالله علي عوض موذي | C50: 213252 | D50: 618 | E50: 628 | F50: 10 | G50: 2000 | H50: 1900 | I50: 100 | J50: 0 | K50: 1900 | L50: 4000 | M50: 1900 | N50: 2100 | P50: محافظة تعز / مديرية المخاء
A51: 50 | B51: عبده علي عوض موذي | C51: 216268 | D51: 1199 | E51: 1199 | F51: 0 | G51: 0 | H51: 700 | I51: 100 | J51: 0 | K51: 700 | L51: 800 | M51: 700 | N51: 100 | T51: فاتورة رقــم : | U51: 51
A52: 51 | B52: ابراهيم سعيد عوض موذي | C52: 8222 | D52: 598 | E52: 627 | F52: 29 | G52: 5800 | H52: 11800 | I52: 100 | J52: 0 | K52: 8000 | L52: 17700 | M52: 8000 | N52: 9700 | P52: المطلوب من الأخ / | R52: =VLOOKUP(U51,A1:N233,2,0) -> ابراهيم سعيد عوض موذي
A53: 52 | B53: عبده ابراهيم سعيد موذي | C53: 0 | D53: 41 | E53: 45 | F53: 4 | G53: 800 | H53: 200 | I53: 100 | J53: 0 | K53: 0 | L53: 1100 | M53: 0 | N53: 1100 | P53: العنوان / الخضراء | T53: رقم العداد : | U53: =VLOOKUP(U51,A1:N213,3,0) -> 8222
A54: 53 | B54: سعيد صالح صديفي | C54: 0 | D54: 219 | E54: 219 | F54: 0 | G54: 0 | H54: 2700 | I54: 100 | J54: 0 | K54: 0 | L54: 2800 | M54: 0 | N54: 2800 | T54: عن شهر : | U54: يونيو / 2018م
A55: 54 | B55: محمد ابراهيم سعيد موذي | C55: 0 | D55: 15 | E55: 25 | F55: 10 | G55: 2000 | H55: 1700 | I55: 100 | J55: 0 | K55: 1700 | L55: 3800 | M55: 1700 | N55: 2100 | P55: قراءة العداد | R55: الاستهلاك | S55: قيمة المياه | T55: الرصيد السابق | U55: المبلغ المستحق
A56: 55 | B56: زيد محمد موذي | C56: 153 | D56: 130 | E56: 138 | F56: 8 | G56: 1600 | H56: 1100 | I56: 100 | J56: 0 | K56: 1100 | L56: 2800 | M56: 1100 | N56: 1700 | P56: السابقة | Q56: الحالية | S56: ريال | T56: ريال | U56: ريال
A57: 56 | B57: محفوظ احمد مدردر | C57: 213003 | D57: 744 | E57: 746 | F57: 2 | G57: 400 | H57: 500 | I57: 100 | J57: 0 | K57: 500 | L57: 1000 | M57: 500 | N57: 500 | P57: =VLOOKUP(U51,A1:N233,4,0) -> 598 | Q57: =VLOOKUP(U51,A1:N233,5,0) -> 627 | R57: =VLOOKUP(U51,A1:N213,6,0) -> 29 | S57: =VLOOKUP(U51,A1:N213,7,0) -> 5800 | T57: =VLOOKUP(U51,A1:N213,8,0) -> 11800 | U57: =(S57+T57) -> 17600
A58: 57 | B58: علي سالم علي عبيدي | C58: 17080303 | D58: 22 | E58: 37 | F58: 15 | G58: 3000 | H58: 2900 | I58: 100 | J58: 0 | K58: 2000 | L58: 6000 | M58: 2000 | N58: 4000 | S58: المدفوع حتى 31 /05/ 2018م | U58: =VLOOKUP(U51,A1:N213,11,0) -> 8000
A59: 58 | B59: احمد عوض احمد موذي | C59: 216135 | D59: 90330 | E59: 90340 | F59: 10 | G59: 2000 | H59: 2700 | I59: 100 | J59: 0 | K59: 0 | L59: 4800 | M59: 0 | N59: 4800 | S59: اشتراك شهري : | U59: =VLOOKUP(U51,A1:N213,9,0) -> 100
A60: 59 | B60: عوض احمد عوض موذي | C60: 213297 | D60: 0 | E60: 1 | F60: 1 | G60: 200 | H60: 100 | I60: 100 | J60: 0 | K60: 0 | L60: 400 | M60: 0 | N60: 400 | S60: خدمات أخرى : | U60: =VLOOKUP(U51,A1:N213,10,0) -> 0
A61: 60 | B61: راجح عوض احمد موذي | C61: 216278 | D61: 366 | E61: 374 | F61: 8 | G61: 1600 | H61: 1900 | I61: 100 | J61: 0 | K61: 1900 | L61: 3600 | M61: 1900 | N61: 1700 | P61: =CH_N_TO_TEXT(U61) -> فقط تسعة ألف وسبعمائة ريال يمني لاغير | T61: الإجمالي : | U61: =((U57-U58)+U59+U60) -> 9700
A62: 61 | B62: علي محمد علي عبيدي | C62: 4991 | D62: 318 | E62: 319 | F62: 1 | G62: 200 | H62: 500 | I62: 100 | J62: 0 | K62: 0 | L62: 800 | M62: 0 | N62: 800
A63: 62 | B63: فيصل محمد علي عبيدي | C63: 214816 | D63: 890 | E63: 898 | F63: 8 | G63: 1600 | H63: 1500 | I63: 100 | J63: 0 | K63: 0 | L63: 3200 | M63: 0 | N63: 3200
A64: 63 | B64: راجح علي عبده صبيحي | C64: 0 | D64: 161 | E64: 171 | F64: 10 | G64: 2000 | H64: 1300 | I64: 100 | J64: 0 | K64: 1300 | L64: 3400 | M64: 1300 | N64: 2100 | P64: مشروع مياه الخضراء | T64: فاتورة رقــم : | U64: =(U51) -> 51
A65: 64 | B65: احمد عبده زهوي | C65: 23829 | D65: 665 | E65: 667 | F65: 2 | G65: 400 | H65: 500 | I65: 100 | J65: 0 | K65: 500 | L65: 1000 | M65: 500 | N65: 500 | P65: محافظة تعز / مديرية المخاء | T65: رقم العداد : | U65: =U53 -> 8222
A66: 65 | B66: جميل عبده احمد موذي | C66: 215266 | D66: 324 | E66: 340 | F66: 16 | G66: 3200 | H66: 1700 | I66: 100 | J66: 0 | K66: 1700 | L66: 5000 | M66: 1700 | N66: 3300 | P66: المطلوب من الأخ / | R66: =R52 -> ابراهيم سعيد عوض موذي | T66: عن شهر : | U66: يونيو / 2018م
A67: 66 | B67: عبده احمد عوض موذي | C67: 0 | D67: 170 | E67: 170 | F67: =(E67-D67) -> 0 | G67: =(200*F67) -> 0 | H67: 1100 | I67: 100 | J67: 0 | K67: 1100 | L67: =(G67+H67+I67+J67) -> 1200 | M67: =K67 -> 1100 | N67: =(L67-M67) -> 100 | P67: =P61 -> فقط تسعة ألف وسبعمائة ريال يمني لاغير | T67: الإجمالي : | U67: =U61 -> 9700
A68: 67 | B68: امين عبده احمد موذي | C68: 0 | D68: 152 | E68: 154 | F68: 2 | G68: 400 | H68: 700 | I68: 100 | J68: 0 | K68: 700 | L68: 1200 | M68: 700 | N68: 500
A69: 68 | B69: سالم محمد احمد موذي | C69: 66944 | D69: 0 | E69: 0 | F69: 0 | G69: 0 | H69: 200 | I69: 100 | J69: 0 | K69: 0 | L69: 300 | M69: 0 | N69: 300 | P69: مشروع مياه الخضراء | AF69: ح
A70: 69 | B70: علي محمد صديفي | C70: 205746 | D70: 20320 | E70: 20320 | F70: 0 | G70: 0 | H70: 1500 | I70: 100 | J70: 0 | K70: 0 | L70: 1600 | M70: 0 | N70: 1600 | P70: محافظة تعز / مديرية المخاء
A71: 70 | B71: عبده علي محمد صديفي | C71: 0 | D71: 595 | E71: 605 | F71: 10 | G71: 2000 | H71: 3800 | I71: 100 | J71: 0 | K71: 0 | L71: 5900 | M71: 0 | N71: 5900 | T71: فاتورة رقــم : | U71: 52
A72: 71 | B72: محمد صالح احمد موذي | C72: 205680 | D72: 454 | E72: 457 | F72: 3 | G72: 600 | H72: 1600 | I72: 100 | J72: 0 | K72: 1600 | L72: 2300 | M72: 1600 | N72: 700 | P72: المطلوب من الأخ / | R72: =VLOOKUP(U71,A1:N213,2,0) -> عبده ابراهيم سعيد موذي
A73: 72 | B73: ابراهيم صالح احمد عوض موذي | C73: 216134 | D73: 410 | E73: 418 | F73: 8 | G73: 1600 | H73: 1300 | I73: 100 | J73: 0 | K73: 1300 | L73: 3000 | M73: 1300 | N73: 1700 | P73: العنوان / الخضراء | T73: رقم العداد : | U73: =VLOOKUP(U71,A1:N213,3,0) -> 0
A74: 73 | B74: علي صالح علي صديفي | C74: 225811 | D74: 215 | E74: 215 | F74: 0 | G74: 0 | H74: 800 | I74: 100 | J74: 0 | K74: 800 | L74: 900 | M74: 800 | N74: 100 | T74: عن شهر : | U74: يونيو / 2018م
A75: 74 | B75: عبده محمد عبدالله عميرة | C75: 0 | D75: 1863 | E75: 1881 | F75: 18 | G75: 3600 | H75: 3100 | I75: 100 | J75: 0 | K75: 0 | L75: 6800 | M75: 0 | N75: 6800 | P75: قراءة العداد | R75: الاستهلاك | S75: قيمة المياه | T75: الرصيد السابق | U75: المبلغ المستحق
A76: 75 | B76: احمد محمد عبدالله عميرة | C76: 0 | D76: 2920 | E76: 2931 | F76: 11 | G76: 2200 | H76: 2100 | I76: 100 | J76: 0 | K76: 0 | L76: 4400 | M76: 0 | N76: 4400 | P76: السابقة | Q76: الحالية | S76: ريال | T76: ريال | U76: ريال
A77: 76 | B77: راجح احمد محمد عميرة | C77: 0 | D77: 844 | E77: 844 | F77: 0 | G77: 0 | H77: 100 | I77: 100 | J77: 0 | K77: 0 | L77: 200 | M77: 0 | N77: 200 | P77: =VLOOKUP(U71,A1:N233,4,0) -> 41 | Q77: =VLOOKUP(U71,A1:N233,5,0) -> 45 | R77: =VLOOKUP(U71,A1:N233,6,0) -> 4 | S77: =VLOOKUP(U71,A1:N233,7,0) -> 800 | T77: =VLOOKUP(U71,A1:N213,8,0) -> 200 | U77: =(T77+S77) -> 1000
A78: 77 | B78: محمد احمد محمد عميرة | C78: 0 | D78: 227 | E78: 227 | F78: 0 | G78: 0 | H78: 500 | I78: 100 | J78: 0 | K78: 0 | L78: 600 | M78: 0 | N78: 600 | S78: المدفوع حتى 31 /05/ 2018م | U78: =VLOOKUP(U71,A1:N213,11,0) -> 0
A79: 78 | B79: عبدالله محمد عبدالله عميرة | C79: 214829 | D79: 1618 | E79: 1622 | F79: 4 | G79: 800 | H79: 700 | I79: 100 | J79: 0 | K79: 0 | L79: 1600 | M79: 0 | N79: 1600 | S79: اشتراك شهري : | U79: =VLOOKUP(U71,A1:N213,9,0) -> 100
A80: 79 | B80: علي محمد عبدالله عميرة | C80: 0 | D80: 1652 | E80: 1659 | F80: 7 | G80: 1400 | H80: 3900 | I80: 100 | J80: 0 | K80: 0 | L80: 5400 | M80: 0 | N80: 5400 | S80: خدمات أخرى : | U80: =VLOOKUP(U71,A1:N213,10,0) -> 0
A81: 80 | B81: حيدر علي محمد عميرة | C81: 0 | D81: 549 | E81: 550 | F81: 1 | G81: 200 | H81: 100 | I81: 100 | J81: 0 | K81: 0 | L81: 400 | M81: 0 | N81: 400 | P81: =CH_N_TO_TEXT(U81) -> فقط ألف ومائة ريال يمني لاغير | T81: الإجمالي : | U81: =((U77-U78)+U79+U80) -> 1100
A82: 81 | B82: عايش عبدالله محمد عميرة | C82: 0 | D82: 831 | E82: 831 | F82: 0 | G82: 0 | H82: 5200 | I82: 100 | J82: 0 | K82: 0 | L82: 5300 | M82: 0 | N82: 5300
A83: 82 | B83: علي عبدالله محمد عميرة | C83: 0 | D83: 881 | E83: 890 | F83: 9 | G83: 1800 | H83: 900 | I83: 100 | J83: 0 | K83: 0 | L83: 2800 | M83: 0 | N83: 2800
A84: 83 | B84: امين عبدالله محمد عميرة | C84: 0 | D84: 83 | E84: 85 | F84: 2 | G84: 400 | H84: 700 | I84: 100 | J84: 0 | K84: 0 | L84: 1200 | M84: 0 | N84: 1200 | P84: مشروع مياه الخضراء | T84: فاتورة رقــم : | U84: =U71 -> 52
A85: 84 | B85: ابراهيم محمد عبدالله عميرة | C85: 0 | D85: 1350 | E85: 1350 | F85: 0 | G85: 0 | H85: 1300 | I85: 100 | J85: 0 | K85: 0 | L85: 1400 | M85: 0 | N85: 1400 | P85: محافظة تعز / مديرية المخاء | T85: رقم العداد : | U85: =U73 -> 0
A86: 85 | B86: جميل ابراهيم محمد عميرة | C86: 0 | D86: 799 | E86: 799 | F86: 0 | G86: 0 | H86: 1500 | I86: 100 | J86: 0 | K86: 0 | L86: 1600 | M86: 0 | N86: 1600 | P86: المطلوب من الأخ / | R86: =R72 -> عبده ابراهيم سعيد موذي | T86: عن شهر : | U86: يونيو / 2018م
A87: 86 | B87: فواز علي محمد صديفي | C87: 205676 | D87: 895 | E87: 899 | F87: 4 | G87: 800 | H87: 100 | I87: 100 | J87: 0 | K87: 0 | L87: 1000 | M87: 0 | N87: 1000 | P87: =P81 -> فقط ألف ومائة ريال يمني لاغير | T87: الإجمالي : | U87: =U81 -> 1100
A88: 87 | B88: علي يحيى محمد عميرة | C88: 0 | D88: 213 | E88: 214 | F88: 1 | G88: 200 | H88: 800 | I88: 100 | J88: 0 | K88: 0 | L88: 1100 | M88: 0 | N88: 1100
A89: 88 | B89: عبده محمد زايد سعيد | C89: 215847 | D89: 1749 | E89: 1788 | F89: 39 | G89: 7800 | H89: 100 | I89: 100 | J89: 0 | K89: 100 | L89: 8000 | M89: 100 | N89: 7900
A90: 89 | B90: خالد محمد زايد سعيد | C90: 0 | D90: 620 | E90: 628 | F90: 8 | G90: 1600 | H90: 1300 | I90: 100 | J90: 0 | K90: 1300 | L90: 3000 | M90: 1300 | N90: 1700
A91: 90 | B91: محرم سعيد زايد سعيد | C91: 0 | D91: 40 | E91: 50 | F91: 10 | G91: 2000 | H91: 4100 | I91: 100 | J91: 0 | K91: 4100 | L91: 6200 | M91: 4100 | N91: 2100
A92: 91 | B92: هائل سعيد زايد سعيد | C92: 0 | D92: 16 | E92: 18 | F92: 2 | G92: 400 | H92: 1900 | I92: 100 | J92: 0 | K92: 1900 | L92: 2400 | M92: 1900 | N92: 500
A93: 92 | B93: حمود سعيد زايد سعيد | C93: 0 | D93: 1011 | E93: 1013 | F93: 2 | G93: 400 | H93: 100 | I93: 100 | J93: 0 | K93: 100 | L93: 600 | M93: 100 | N93: 500
A94: 93 | B94: سعيد سليمان محمد سليمان | C94: 0 | D94: 778 | E94: 786 | F94: 8 | G94: 1600 | H94: 2100 | I94: 100 | J94: 0 | K94: 0 | L94: 3800 | M94: 0 | N94: 3800
A95: 94 | B95: محمد سليمان محمد سليمان | C95: 213414 | D95: 841 | E95: 848 | F95: 7 | G95: 1400 | H95: 1700 | I95: 100 | J95: 0 | K95: 1700 | L95: 3200 | M95: 1700 | N95: 1500
A96: 95 | B96: أحمد سليمان محمد سليمان | C96: 215807 | D96: 647 | E96: 654 | F96: 7 | G96: 1400 | H96: 1500 | I96: 100 | J96: 0 | K96: 1500 | L96: 3000 | M96: 1500 | N96: 1500
A97: 96 | B97: سليمان محمد سليمان | C97: 216297 | D97: 963 | E97: 970 | F97: 7 | G97: 1400 | H97: 100 | I97: 100 | J97: 0 | K97: 100 | L97: 1600 | M97: 100 | N97: 1500
A98: 97 | B98: صالح محمد سليمان | C98: 213404 | D98: 1107 | E98: 1113 | F98: 6 | G98: 1200 | H98: 100 | I98: 100 | J98: 0 | K98: 100 | L98: 1400 | M98: 100 | N98: 1300
A99: 98 | B99: نبيل صالح محمد سليمان | C99: 0 | D99: 652 | E99: 657 | F99: 5 | G99: 1000 | H99: 100 | I99: 100 | J99: 0 | K99: 100 | L99: 1200 | M99: 100 | N99: 1100
A100: 99 | B100: فضل صالح محمد سليمان | C100: 0 | D100: 310 | E100: 315 | F100: 5 | G100: 1000 | H100: 900 | I100: 100 | J100: 0 | K100: 900 | L100: 2000 | M100: 900 | N100: 1100
A101: 100 | B101: عبدالله صالح محمد سليمان | C101: 2778 | D101: 387 | E101: 391 | F101: 4 | G101: 800 | H101: 900 | I101: 100 | J101: 0 | K101: 900 | L101: 1800 | M101: 900 | N101: 900
A102: 101 | B102: بسام صالح محمد سليمان | C102: 28049 | D102: 299 | E102: 302 | F102: 3 | G102: 600 | H102: 3100 | I102: 100 | J102: 0 | K102: 3100 | L102: 3800 | M102: 3100 | N102: 700
A103: 102 | B103: علي صالح محمد سليمان | C103: 212566 | D103: 750 | E103: 753 | F103: 3 | G103: 600 | H103: 900 | I103: 100 | J103: 0 | K103: 900 | L103: 1600 | M103: 900 | N103: 700
A104: 103 | B104: اسماعيل صالح محمد سليمان | C104: 0 | D104: 137 | E104: 139 | F104: 2 | G104: 400 | H104: 500 | I104: 100 | J104: 0 | K104: 500 | L104: 1000 | M104: 500 | N104: 500
A105: 104 | B105: فهد عبده محمد سليمان | C105: 210659 | D105: 628 | E105: 633 | F105: 5 | G105: 1000 | H105: 1100 | I105: 100 | J105: 0 | K105: 1100 | L105: 2200 | M105: 1100 | N105: 1100
A106: 105 | B106: جميل عبده محمد سليمان | C106: 0 | D106: 748 | E106: 763 | F106: 15 | G106: 3000 | H106: 3700 | I106: 100 | J106: 0 | K106: 3700 | L106: 6800 | M106: 3700 | N106: 3100
A107: 106 | B107: خالد عبده محمد سليمان | C107: 0 | D107: 13 | E107: 19 | F107: 6 | G107: 1200 | H107: 1500 | I107: 100 | J107: 0 | K107: 1500 | L107: 2800 | M107: 1500 | N107: 1300
A108: 107 | B108: رياض علي محمد سليمان | C108: 210906 | D108: 789 | E108: 792 | F108: 3 | G108: 600 | H108: 900 | I108: 100 | J108: 0 | K108: 900 | L108: 1600 | M108: 900 | N108: 700
A109: 108 | B109: أحمد محمد محمد زوقري | C109: 216560 | D109: 890 | E109: 890 | F109: 0 | G109: 0 | H109: 100 | I109: 100 | J109: 0 | K109: 100 | L109: 200 | M109: 100 | N109: 100
A110: 109 | B110: فهبم أحمد محمد زوقري | C110: 120662 | D110: 1019 | E110: 1035 | F110: 16 | G110: 3200 | H110: 3700 | I110: 100 | J110: 0 | K110: 3700 | L110: 7000 | M110: 3700 | N110: 3300
A111: 110 | B111: صالح أحمد محمد زوقري | C111: 23286 | D111: 452 | E111: 465 | F111: 13 | G111: 2600 | H111: 6200 | I111: 100 | J111: 0 | K111: 6000 | L111: 8900 | M111: 6000 | N111: 2900
A112: 111 | B112: خالد أحمد محمد زوقري | C112: 212318 | D112: 468 | E112: 477 | F112: 9 | G112: 1800 | H112: 2500 | I112: 100 | J112: 0 | K112: 2500 | L112: 4400 | M112: 2500 | N112: 1900
A113: 112 | B113: سعيد أحمد زوقري | C113: 211208 | D113: 944 | E113: 956 | F113: 12 | G113: 2400 | H113: 3300 | I113: 100 | J113: 0 | K113: 3300 | L113: 5800 | M113: 3300 | N113: 2500
A114: 113 | B114: منير أحمد محمد زوقري | C114: 12298 | D114: 573 | E114: 580 | F114: 7 | G114: 1400 | H114: 1900 | I114: 100 | J114: 0 | K114: 1900 | L114: 3400 | M114: 1900 | N114: 1500
A115: 114 | B115: محمد علي محمد زوقري | C115: 212906 | D115: 10513 | E115: 10519 | F115: 6 | G115: 1200 | H115: 1500 | I115: 100 | J115: 0 | K115: 1500 | L115: 2800 | M115: 1500 | N115: 1300
A116: 115 | B116: سعيد محمد زوقري | C116: 216864 | D116: 640 | E116: 648 | F116: 8 | G116: 1600 | H116: 1500 | I116: 100 | J116: 0 | K116: 1500 | L116: 3200 | M116: 1500 | N116: 1700
A117: 116 | B117: عوض عبدالله زوقري | C117: 211821 | D117: 493 | E117: 501 | F117: 8 | G117: 1600 | H117: 1900 | I117: 100 | J117: 0 | K117: 1900 | L117: 3600 | M117: 1900 | N117: 1700
A118: 117 | B118: محمد عبدالله زوقري | C118: 0 | D118: 28 | E118: 39 | F118: 11 | G118: 2200 | H118: 3300 | I118: 100 | J118: 0 | K118: 3300 | L118: 5600 | M118: 3300 | N118: 2300
A119: 118 | B119: عبدالله محمد زوقري | C119: 215874 | D119: 528 | E119: 535 | F119: 7 | G119: 1400 | H119: 1900 | I119: 100 | J119: 0 | K119: 1900 | L119: 3400 | M119: 1900 | N119: 1500
A120: 119 | B120: عايد علي محمد زوقري | C120: 210997 | D120: 536 | E120: 536 | F120: 0 | G120: 0 | H120: 2100 | I120: 100 | J120: 0 | K120: 2100 | L120: 2200 | M120: 2100 | N120: 100
A121: 120 | B121: نبيل علي محمد زوقري | C121: 213803 | D121: 961 | E121: 970 | F121: 9 | G121: 1800 | H121: 1700 | I121: 100 | J121: 0 | K121: 0 | L121: 3600 | M121: 0 | N121: 3600
A122: 121 | B122: أحمد علي محمد زوقري | C122: 210930 | D122: 702 | E122: 710 | F122: 8 | G122: 1600 | H122: 1900 | I122: 100 | J122: 0 | K122: 1900 | L122: 3600 | M122: 1900 | N122: 1700
A123: 122 | B123: عبدالعزيز محمد سكندر | C123: 215304 | D123: 610 | E123: 621 | F123: 11 | G123: 2200 | H123: 1900 | I123: 100 | J123: 0 | K123: 1900 | L123: 4200 | M123: 1900 | N123: 2300
A124: 123 | B124: عبدالله محمد سكندر | C124: 212503 | D124: 462 | E124: 464 | F124: 2 | G124: 400 | H124: 700 | I124: 100 | J124: 0 | K124: 700 | L124: 1200 | M124: 700 | N124: 500
A125: 124 | B125: أحمد محمد سكندر | C125: 883 | D125: 4 | E125: 8 | F125: 4 | G125: 800 | H125: 700 | I125: 100 | J125: 0 | K125: 700 | L125: 1600 | M125: 700 | N125: 900
A126: 125 | B126: محمد عبده علي زوقري | C126: 212981 | D126: 446 | E126: 451 | F126: 5 | G126: 1000 | H126: 900 | I126: 100 | J126: 0 | K126: 900 | L126: 2000 | M126: 900 | N126: 1100
A127: 126 | B127: محمد أحمد قبصي | C127: 212367 | D127: 694 | E127: 699 | F127: 5 | G127: 1000 | H127: 1700 | I127: 100 | J127: 0 | K127: 0 | L127: 2800 | M127: 0 | N127: 2800
A128: 127 | B128: علي محمد أحمد قبصي | C128: 211376 | D128: 490 | E128: 494 | F128: 4 | G128: 800 | H128: 1800 | I128: 100 | J128: 0 | K128: 0 | L128: 2700 | M128: 0 | N128: 2700
A129: 128 | B129: أحمد محمد أحمد قبصي | C129: 354 | D129: 213 | E129: 278 | F129: 65 | G129: 13000 | H129: 1700 | I129: 100 | J129: 0 | K129: 0 | L129: 14800 | M129: 0 | N129: 14800
A130: 129 | B130: نشوان محمد أحمد قبصي | C130: 205948 | D130: 575 | E130: 582 | F130: 7 | G130: 1400 | H130: 1700 | I130: 100 | J130: 0 | K130: 1700 | L130: 3200 | M130: 1700 | N130: 1500
A131: 130 | B131: رزق محمد قبصي | C131: 0 | D131: 203 | E131: 209 | F131: =(E131-D131) -> 6 | G131: =(200*F131) -> 1200 | H131: 1100 | I131: 100 | J131: 0 | K131: 1100 | L131: =(G131+H131+I131+J131) -> 2400 | M131: =K131 -> 1100 | N131: =(L131-M131) -> 1300
A132: 131 | B132: سمير محمد قبصي | C132: 320319 | D132: 92 | E132: 100 | F132: 8 | G132: 1600 | H132: 4800 | I132: 100 | J132: 0 | K132: 4800 | L132: 6500 | M132: 4800 | N132: 1700
A133: 132 | B133: إ[راهيم سعيد زيد | C133: 0 | D133: 210 | E133: 210 | F133: 0 | G133: 0 | H133: 400 | I133: 100 | J133: 0 | K133: 0 | L133: 500 | M133: 0 | N133: 500
A134: 133 | B134: محمد عبدالله زيد | C134: 0 | D134: 171 | E134: 181 | F134: 10 | G134: 2000 | H134: 2700 | I134: 100 | J134: 0 | K134: 0 | L134: 4800 | M134: 0 | N134: 4800
A135: 134 | B135: سعيد زيد حكيمي | C135: 215226 | D135: 11407 | E135: 11411 | F135: 4 | G135: 800 | H135: 300 | I135: 100 | J135: 0 | K135: 0 | L135: 1200 | M135: 0 | N135: 1200
A136: 135 | B136: أحمد عبدالله زيد | C136: 12064 | D136: 10331 | E136: 10332 | F136: 1 | G136: 200 | H136: 300 | I136: 100 | J136: 0 | K136: 0 | L136: 600 | M136: 0 | N136: 600
A137: 136 | B137: عوض محمد قاسم قحيم | C137: 204006 | D137: 1249 | E137: 1249 | F137: 0 | G137: 0 | H137: 200 | I137: 100 | J137: 0 | K137: 0 | L137: 300 | M137: 0 | N137: 300
A138: 137 | B138: مجيد محمد قاسم قحيم | C138: 2959 | D138: 520 | E138: 520 | F138: 0 | G138: 0 | H138: 3200 | I138: 100 | J138: 0 | K138: 1700 | L138: 3300 | M138: 1700 | N138: 1600
A139: 138 | B139: صدام محمد قاسم | C139: 210984 | D139: 613 | E139: 621 | F139: 8 | G139: 1600 | H139: 1200 | I139: 100 | J139: 0 | K139: 300 | L139: 2900 | M139: 300 | N139: 2600
A140: 139 | B140: أحمد زيد حكيمي | C140: 206063 | D140: 718 | E140: 723 | F140: 5 | G140: 1000 | H140: 2000 | I140: 100 | J140: 0 | K140: 1100 | L140: 3100 | M140: 1100 | N140: 2000
A141: 140 | B141: علي عبدالله زيد | C141: 213406 | D141: 942 | E141: 952 | F141: 10 | G141: 2000 | H141: 4200 | I141: 100 | J141: 0 | K141: 1500 | L141: 6300 | M141: 1500 | N141: 4800
A142: 141 | B142: عبدالله محمد علي قحيم | C142: 214766 | D142: 1437 | E142: 1450 | F142: 13 | G142: 2600 | H142: 900 | I142: 100 | J142: 0 | K142: 900 | L142: 3600 | M142: 900 | N142: 2700
A143: 142 | B143: علي بن علي عوض مدردر | C143: 0 | D143: 8 | E143: 13 | F143: 5 | G143: 1000 | H143: 1100 | I143: 100 | J143: 0 | K143: 1100 | L143: 2200 | M143: 1100 | N143: 1100
A144: 143 | B144: بديع عوض علي مدردر | C144: 212529 | D144: 1008 | E144: 1017 | F144: 9 | G144: 1800 | H144: 2300 | I144: 100 | J144: 0 | K144: 2300 | L144: 4200 | M144: 2300 | N144: 1900
A145: 144 | B145: حبيب أحمد علي مدردر | C145: 214623 | D145: 847 | E145: 854 | F145: 7 | G145: 1400 | H145: 1500 | I145: 100 | J145: 0 | K145: 1500 | L145: 3000 | M145: 1500 | N145: 1500
A146: 145 | B146: محمد أحمد علي مدردر | C146: 210452 | D146: 348 | E146: 357 | F146: 9 | G146: 1800 | H146: 2300 | I146: 100 | J146: 0 | K146: 2300 | L146: 4200 | M146: 2300 | N146: 1900
A147: 146 | B147: مصعب سعيد مدردر | C147: 210916 | D147: 548 | E147: 554 | F147: 6 | G147: 1200 | H147: 2400 | I147: 100 | J147: 0 | K147: 2400 | L147: 3700 | M147: 2400 | N147: 1300
A148: 147 | B148: علي عبدالله علي قحيم | C148: 8102008 | D148: 35 | E148: 59 | F148: 24 | G148: 4800 | H148: 3700 | I148: 100 | J148: 0 | K148: 3700 | L148: 8600 | M148: 3700 | N148: 4900
A149: 148 | B149: تقي محمد علي قحيم | C149: 140887 | D149: 25 | E149: 35 | F149: 10 | G149: 2000 | H149: 3300 | I149: 100 | J149: 0 | K149: 2000 | L149: 5400 | M149: 2000 | N149: 3400
A150: 149 | B150: صلاح محمد علي قحيم | C150: 211616 | D150: 671 | E150: 680 | F150: 9 | G150: 1800 | H150: 2200 | I150: 100 | J150: 0 | K150: 2200 | L150: 4100 | M150: 2200 | N150: 1900
A151: 150 | B151: علي أحمد عليقحيم | C151: 214699 | D151: 1273 | E151: 1273 | F151: 0 | G151: 0 | H151: 900 | I151: 100 | J151: 0 | K151: 900 | L151: 1000 | M151: 900 | N151: 100
A152: 151 | B152: عبده علي هواش | C152: 4980 | D152: 213 | E152: 220 | F152: 7 | G152: 1400 | H152: 700 | I152: 100 | J152: 0 | K152: 700 | L152: 2200 | M152: 700 | N152: 1500
A153: 152 | B153: سعيدعلي علي محلي | C153: 215707 | D153: 1050 | E153: 1056 | F153: 6 | G153: 1200 | H153: 1500 | I153: 100 | J153: 0 | K153: 0 | L153: 2800 | M153: 0 | N153: 2800
A154: 153 | B154: أحمد علي علي محلي | C154: 210766 | D154: 1476 | E154: 1480 | F154: 4 | G154: 800 | H154: 500 | I154: 100 | J154: 0 | K154: 500 | L154: 1400 | M154: 500 | N154: 900
A155: 154 | B155: محمد علي علي محلي | C155: 215439 | D155: 413 | E155: 421 | F155: 8 | G155: 1600 | H155: 6200 | I155: 100 | J155: 0 | K155: 3250 | L155: 7900 | M155: 3250 | N155: 4650
A156: 155 | B156: عبده سعيد سراجي | C156: 215549 | D156: 691 | E156: 709 | F156: 18 | G156: 3600 | H156: 2100 | I156: 100 | J156: 0 | K156: 2100 | L156: 5800 | M156: 2100 | N156: 3700
A157: 156 | B157: عبدالله علي علي محلي | C157: 214676 | D157: 706 | E157: 713 | F157: 7 | G157: 1400 | H157: 100 | I157: 100 | J157: 0 | K157: 0 | L157: 1600 | M157: 0 | N157: 1600
A158: 157 | B158: محمد حيدر علي محلي | C158: 213116 | D158: 21149 | E158: 21149 | F158: 0 | G158: 0 | H158: 5900 | I158: 100 | J158: 0 | K158: 5900 | L158: 6000 | M158: 5900 | N158: 100
A159: 158 | B159: فضل يوسف محلي | C159: 11480 | D159: 484 | E159: 488 | F159: 4 | G159: 800 | H159: 900 | I159: 100 | J159: 0 | K159: 900 | L159: 1800 | M159: 900 | N159: 900
A160: 159 | B160: علي زيد حكيمي | C160: 212538 | D160: 833 | E160: 843 | F160: 10 | G160: 2000 | H160: 3800 | I160: 100 | J160: 0 | K160: 0 | L160: 5900 | M160: 0 | N160: 5900
A161: 160 | B161: يوسف علي محلي | C161: 211683 | D161: 476 | E161: 483 | F161: 7 | G161: 1400 | H161: 4400 | I161: 100 | J161: 0 | K161: 1300 | L161: 5900 | M161: 1300 | N161: 4600
A162: 161 | B162: أحمد حيدر علي محلي | C162: 888990 | D162: 243 | E162: 251 | F162: 8 | G162: 1600 | H162: 2700 | I162: 100 | J162: 0 | K162: 2700 | L162: 4400 | M162: 2700 | N162: 1700
A163: 162 | B163: علي حيدر علي محلي | C163: 215295 | D163: 773 | E163: 775 | F163: 2 | G163: 400 | H163: 600 | I163: 100 | J163: 0 | K163: 600 | L163: 1100 | M163: 600 | N163: 500
A164: 163 | B164: مسجد أحمد حيدر علي | C164: 0 | D164: 26 | E164: 48 | F164: 22 | G164: 4400 | H164: 3300 | I164: 100 | J164: 0 | K164: 3300 | L164: 7800 | M164: 3300 | N164: 4500
A165: 164 | B165: نبيل عبدالله زايد | C165: 12153 | D165: 185 | E165: 196 | F165: 11 | G165: 2200 | H165: 3300 | I165: 100 | J165: 0 | K165: 0 | L165: 5600 | M165: 0 | N165: 5600
A166: 165 | B166: حيدر سعيد سالم حكيمي | C166: 205778 | D166: 1219 | E166: 1231 | F166: 12 | G166: 2400 | H166: 3100 | I166: 100 | J166: 0 | K166: 0 | L166: 5600 | M166: 0 | N166: 5600
A167: 166 | B167: عبدالله علي عميره | C167: 705591 | D167: 900 | E167: 900 | F167: 0 | G167: 0 | H167: 9400 | I167: 100 | J167: 0 | K167: 0 | L167: 9500 | M167: 0 | N167: 9500
A168: 167 | B168: محمد علي عبدالله عميره | C168: 705527 | D168: 1075 | E168: 1075 | F168: 0 | G168: 0 | H168: 9500 | I168: 100 | J168: 0 | K168: 0 | L168: 9600 | M168: 0 | N168: 9600
A169: 168 | B169: علي سعيد عميره | C169: 700869 | D169: 260 | E169: 260 | F169: 0 | G169: 0 | H169: 700 | I169: 100 | J169: 0 | K169: 0 | L169: 800 | M169: 0 | N169: 800
A170: 169 | B170: صديق هايل عميره | C170: 705530 | D170: 161 | E170: 176 | F170: 15 | G170: 3000 | H170: 3900 | I170: 100 | J170: 0 | K170: 0 | L170: 7000 | M170: 0 | N170: 7000
A171: 170 | B171: بديع علي عبدالله عميره | C171: 0 | D171: 110 | E171: 110 | F171: 0 | G171: 0 | H171: 2200 | I171: 100 | J171: 0 | K171: 0 | L171: 2300 | M171: 0 | N171: 2300
A172: 171 | B172: محمد ناجي عميره | C172: 0 | D172: 28 | E172: 28 | F172: 0 | G172: 0 | H172: 2800 | I172: 100 | J172: 0 | K172: 0 | L172: 2900 | M172: 0 | N172: 2900
A173: 172 | B173: فؤاد سعيد عميره | C173: 708088 | D173: 1000 | E173: 1000 | F173: 0 | G173: 0 | H173: 2200 | I173: 100 | J173: 0 | K173: 0 | L173: 2300 | M173: 0 | N173: 2300
A174: 173 | B174: سعيد يحيى صديفي | C174: 0 | D174: 1399 | E174: 1409 | F174: 10 | G174: 2000 | H174: 2200 | I174: 100 | J174: 0 | K174: 2200 | L174: 4300 | M174: 2200 | N174: 2100
A175: 174 | B175: واتح يحيى صديفي | C175: 215666 | D175: 11368 | E175: 11368 | F175: 0 | G175: 0 | H175: 2100 | I175: 100 | J175: 0 | K175: 0 | L175: 2200 | M175: 0 | N175: 2200
A176: 175 | B176: عبداللطيف يحيى صديفي | C176: 0 | D176: 30 | E176: 34 | F176: 4 | G176: 800 | H176: 2700 | I176: 100 | J176: 0 | K176: 2000 | L176: 3600 | M176: 2000 | N176: 1600
A177: 176 | B177: سالم راجح محمد صديفي | C177: 211249 | D177: 1138 | E177: 1154 | F177: 16 | G177: 3200 | H177: 3500 | I177: 100 | J177: 0 | K177: 3500 | L177: 6800 | M177: 3500 | N177: 3300
A178: 177 | B178: الزراعي راجح محمد صديفي | C178: 211665 | D178: 960 | E178: 967 | F178: 7 | G178: 1400 | H178: 1700 | I178: 100 | J178: 0 | K178: 1700 | L178: 3200 | M178: 1700 | N178: 1500
A179: 178 | B179: سعيد راجح صديفي | C179: 0 | D179: 3 | E179: 6 | F179: 3 | G179: 600 | H179: 500 | I179: 100 | J179: 0 | K179: 500 | L179: 1200 | M179: 500 | N179: 700
A180: 179 | B180: عبده يحيى صديفي | C180: 214829 | D180: 873 | E180: 873 | F180: 0 | G180: 0 | H180: 400 | I180: 100 | J180: 0 | K180: 400 | L180: 500 | M180: 400 | N180: 100
A181: 180 | B181: همام يحيى صديفي | C181: 0 | D181: 80069 | E181: 80075 | F181: 6 | G181: 1200 | H181: 2700 | I181: 100 | J181: 0 | K181: 1000 | L181: 4000 | M181: 1000 | N181: 3000
A182: 181 | B182: عبدالله محمد حكيمي | C182: 3738237 | D182: 388 | E182: 389 | F182: 1 | G182: 200 | H182: 2400 | I182: 100 | J182: 0 | K182: 0 | L182: 2700 | M182: 0 | N182: 2700
A183: 182 | B183: خليل سالم خشب | C183: 215354 | D183: 385 | E183: 385 | F183: 0 | G183: 0 | H183: 1600 | I183: 100 | J183: 0 | K183: 0 | L183: 1700 | M183: 0 | N183: 1700
A184: 183 | B184: علاوي سعيد حكيمي | C184: 3738220 | D184: 445 | E184: 445 | F184: 0 | G184: 0 | H184: 3200 | I184: 100 | J184: 0 | K184: 0 | L184: 3300 | M184: 0 | N184: 3300
A185: 184 | B185: أحمد علي هكي | C185: 215226 | D185: 1144 | E185: 1150 | F185: 6 | G185: 1200 | H185: 1200 | I185: 100 | J185: 0 | K185: 0 | L185: 2500 | M185: 0 | N185: 2500
A186: 185 | B186: أنور حمادي قحيم | C186: 0 | D186: 5 | E186: 7 | F186: 2 | G186: 400 | H186: 700 | I186: 100 | J186: 0 | K186: 0 | L186: 1200 | M186: 0 | N186: 1200
A187: 186 | B187: محمد محمد ثابت قحيم | C187: 0 | D187: 3 | E187: 7 | F187: 4 | G187: 800 | H187: 300 | I187: 100 | J187: 0 | K187: 0 | L187: 1200 | M187: 0 | N187: 1200
A188: 187 | B188: أحمد علي قلقلي | C188: 211687 | D188: 614 | E188: 618 | F188: 4 | G188: 800 | H188: 900 | I188: 100 | J188: 0 | K188: 900 | L188: 1800 | M188: 900 | N188: 900
A189: 188 | B189: محمد علي قلقلي | C189: 0 | D189: 13 | E189: 19 | F189: 6 | G189: 1200 | H189: 1500 | I189: 100 | J189: 0 | K189: 1500 | L189: 2800 | M189: 1500 | N189: 1300
A190: 189 | B190: علي عبدالله زوقري | C190: 1470295 | D190: 10 | E190: 16 | F190: 6 | G190: 1200 | H190: 1500 | I190: 100 | J190: 0 | K190: 1500 | L190: 2800 | M190: 1500 | N190: 1300
A191: 190 | B191: محمد بن محمد زوقري | C191: 215360 | D191: 591 | E191: 594 | F191: 3 | G191: 600 | H191: 700 | I191: 100 | J191: 0 | K191: 700 | L191: 1400 | M191: 700 | N191: 700
A192: 191 | B192: حمدي أحمد علي زوقري | C192: 26812 | D192: 59 | E192: 59 | F192: 0 | G192: 0 | H192: 400 | I192: 100 | J192: 0 | K192: 400 | L192: 500 | M192: 400 | N192: 100
A193: 192 | B193: ذاكر يحيى محمد زوقري | C193: 1134 | D193: 148 | E193: 155 | F193: 7 | G193: 1400 | H193: 3600 | I193: 100 | J193: 0 | K193: 3600 | L193: 5100 | M193: 3600 | N193: 1500
A194: 193 | B194: عبده محمد زوقري | C194: 211236 | D194: 978 | E194: 989 | F194: 11 | G194: 2200 | H194: 2700 | I194: 100 | J194: 0 | K194: 2700 | L194: 5000 | M194: 2700 | N194: 2300
A195: 194 | B195: يحيى محمد زوقري | C195: 211088 | D195: 81201 | E195: 81213 | F195: =(E195-D195) -> 12 | G195: =(200*F195) -> 2400 | H195: 4800 | I195: 100 | J195: 0 | K195: 0 | L195: =(G195+H195+I195+J195) -> 7300 | M195: =K195 -> 0 | N195: =(L195-M195) -> 7300
A196: 195 | B196: عبده يحيى محمد زوقري | C196: 211397 | D196: 433 | E196: 435 | F196: 2 | G196: 400 | H196: 800 | I196: 100 | J196: 0 | K196: 800 | L196: 1300 | M196: 800 | N196: 500
A197: 196 | B197: مجد علي زوقري | C197: 24470 | D197: 371 | E197: 382 | F197: 11 | G197: 2200 | H197: 2300 | I197: 100 | J197: 0 | K197: 2000 | L197: 4600 | M197: 2000 | N197: 2600
A198: 197 | B198: عبدالله علي محمد زوقري | C198: 24067 | D198: 145 | E198: 149 | F198: 4 | G198: 800 | H198: 900 | I198: 100 | J198: 0 | K198: 900 | L198: 1800 | M198: 900 | N198: 900
A199: 198 | B199: علي عبدالله زوقري | C199: 212844 | D199: 306 | E199: 306 | F199: 0 | G199: 0 | H199: 500 | I199: 100 | J199: 0 | K199: 500 | L199: 600 | M199: 500 | N199: 100
A200: 199 | B200: عبده علي محمد زوقري | C200: 212932 | D200: 727 | E200: 739 | F200: 12 | G200: 2400 | H200: 1600 | I200: 100 | J200: 0 | K200: 0 | L200: 4100 | M200: 0 | N200: 4100
... 14 more rows

Sheet كشف قراءه يوليو
A1: م | B1: اسم المشترك | C1: رقم العداد | D1: السابقة | E1: الحالية | F1: فارق القراءة | G1: قيمة المياه | H1: الرصيد السابق | I1: اشتراك شهري | J1: اخرى | K1: المدفوع حتى31-7-2018 | L1: إجمالي المبلغ | M1: المدفوع | N1: المتبقي
A2: 1 | B2: زيد عمر ناجي محمد | C2: 211117 | D2: 8108 | E2: 8108 | H2: 100 | I2: 100 | J2: 0 | K2: 500 | IV2: =SUM(A2:IU2) -> 228034
A3: 2 | B3: زيد عمر ناجي محمد | C3: 38203 | D3: 3061 | E3: 3437 | H3: 100 | I3: 100 | J3: 0 | K3: 69600
A4: 3 | B4: زيد عمر ناجي محمد | C4: 214929 | D4: 3755 | E4: 3801 | H4: 20700 | I4: 100 | J4: 0 | K4: 8700
A5: 4 | B5: زيد عمر ناجي محمد | C5: 11841 | D5: 6754 | E5: 6789 | H5: 3100 | I5: 100 | J5: 0 | K5: 4700
A6: 5 | B6: زيد عمر ناجي محمد | C6: 213121 | D6: 34045 | E6: 34045 | H6: 100 | I6: 100 | J6: 0 | K6: 100
A7: 6 | B7: مختار عمر ناجي محمد | C7: 210780 | D7: 1082 | E7: 1082 | H7: 100 | I7: 100 | J7: 0 | K7: 100
A8: 7 | B8: صالح عمر ناجي محمد | C8: 210954 | D8: 1361 | E8: 1361 | H8: 100 | I8: 100 | J8: 0 | K8: 100
A9: 8 | B9: صلاح عمر ناجي محمد | C9: 3738 | D9: 3224 | H9: 24900 | I9: 100 | J9: 0 | K9: 100
A10: 9 | B10: سعيد عباد سراجي | C10: 215329 | D10: 2153 | E10: 2153 | H10: 100 | I10: 100 | J10: 0 | K10: 100
A11: 10 | B11: احمد علي ناجي محمد | C11: 214222 | D11: 689 | E11: 689 | H11: 1300 | I11: 100 | J11: 0
A12: 11 | B12: عبده علي ناجي محمد | C12: 210918 | D12: 1151 | E12: 1153 | H12: 2700 | I12: 100 | J12: 0
A13: 12 | B13: علي بن علي ناجي محمد | C13: 210984 | D13: 1966 | E13: 1982 | H13: 10100 | I13: 100 | J13: 0 | K13: 4000
A14: 13 | B14: صالح علي ناجي محمد | C14: 0 | D14: 55 | E14: 78 | H14: 3300 | I14: 100 | J14: 0 | K14: 4300
A15: 14 | B15: عمرو ناجي علي ناجي | C15: 11356 | D15: 257 | E15: 259 | H15: 700 | I15: 100 | J15: 0 | K15: 500
A16: 15 | B16: معاذ ناجي علي ناجي | C16: 0 | D16: 57 | E16: 58 | H16: 500 | I16: 100 | J16: 0 | K16: 1000
A17: 16 | B17: عماد ناجي علي ناجي | C17: 58146 | D17: 93 | E17: 95 | H17: 700 | I17: 100 | J17: 0 | K17: 700
A18: 17 | B18: طارق ناجي علي ناجي | C18: 0 | D18: 35 | E18: 33 | H18: 100 | I18: 100 | J18: 0
A19: 18 | B19: محمد سالم احمد ناجي | C19: 0 | D19: 599 | E19: 3 | H19: 13200 | I19: 100 | J19: 0 | K19: 13200
A20: 19 | B20: ناجي علي ناجي محمد | C20: 215095 | D20: 432 | E20: 441 | H20: 1300 | I20: 100 | J20: 0 | K20: 1300
A21: 20 | B21: محمد ناجي علي ناجي | C21: 216316 | D21: 882 | E21: 894 | H21: 2700 | I21: 100 | J21: 0 | K21: 1700
A22: 21 | B22: احمد ناجي علي ناجي | C22: 214892 | D22: 416 | E22: 419 | H22: 900 | I22: 100 | J22: 0 | K22: 700
A23: 22 | B23: علي ناجي علي ناجي | C23: 212438 | D23: 741 | E23: 747 | H23: 1500 | I23: 100 | J23: 0 | K23: 900
A24: 23 | B24: محمد علي ناجي محمد | C24: 212781 | D24: 1525 | E24: 1537 | H24: 2500 | I24: 100 | J24: 0 | K24: 1750
A25: 24 | B25: نزار محمد علي ناجي | C25: 11381 | D25: 551 | E25: 254 | H25: -2700 | I25: 100 | J25: 0
A26: 25 | B26: معتز محمد علي ناجي | C26: 215108 | D26: 1067 | E26: 1073 | H26: 900 | I26: 100 | J26: 0 | K26: 300
A27: 26 | B27: عبده احمد ناجي محمد | C27: 212822 | D27: 909 | E27: 921 | H27: 700 | I27: 100 | J27: 0 | K27: 1700
A28: 27 | B28: محمد احمد ناجي محمد | C28: 210912 | D28: 1890 | E28: 1897 | H28: 2300 | I28: 100 | J28: 0 | K28: 1900
A29: 28 | B29: مصطفى سالم محمد ناجي | C29: 210833 | D29: 3019 | E29: 3034 | H29: 100 | I29: 100 | J29: 0
A30: 29 | B30: سعيد محمد ناجي محمد | C30: 213576 | D30: 285 | E30: 285 | H30: 1900 | I30: 100 | J30: 0
A31: 30 | B31: علي ثابت حميدان | C31: 214446 | D31: 277 | E31: 290 | H31: 2500 | I31: 100 | J31: 0 | K31: 3000
A32: 31 | B32: معذ محمد ثابت | C32: 210946 | D32: 21700 | E32: 21718 | H32: 3500 | I32: 100 | J32: 0
A33: 32 | B33: علي سالم محمد ناجي | C33: 211161 | D33: 1142 | E33: 1158 | H33: 3900 | I33: 100 | J33: 0
A34: 33 | B34: محمد سالم محمد ناجي | C34: 216243 | D34: 622 | E34: 644 | H34: 2100 | I34: 100 | J34: 0 | K34: 2000
A35: 34 | B35: محمد سالم محمد ناجي | C35: 4617 | D35: 40173 | E35: 40173 | H35: 300 | I35: 100 | J35: 0
A36: 35 | B36: علي محمد طبيلي | C36: 214210 | D36: 1703 | E36: 1720 | H36: 4100 | I36: 100 | J36: 0 | K36: 6000
A37: 36 | B37: ربيع علي محمد طبيلي | C37: 211153 | D37: 275 | E37: 282 | H37: 1100 | I37: 100 | J37: 0 | K37: 2200
A38: 37 | B38: صلاح علي محمد طبيلي | C38: 59875 | D38: 57 | E38: 65 | H38: 700 | I38: 100 | J38: 0 | K38: 2000
A39: 38 | B39: ناجي محمد ناجي محمد | C39: 0 | D39: 1320 | E39: 1331 | H39: 5100 | I39: 100 | J39: 0
A40: 39 | B40: خالد محمد ناجي محمد | C40: 0 | D40: 1759 | E40: 1760 | H40: 1100 | I40: 100 | J40: 0
A41: 40 | B41: مصطفى سالم محمد ناجي | C41: 0 | D41: 332 | E41: 334 | H41: 900 | I41: 100 | J41: 0
A42: 41 | B42: احمد سعيد علي ناجي | C42: 0 | D42: 998 | E42: 1008 | H42: 2100 | I42: 100 | J42: 0 | K42: 2500
A43: 42 | B43: فضل صالح علي موذي | C43: 0 | D43: 814 | E43: 825 | H43: 2100 | I43: 100 | J43: 0 | K43: 2100
A44: 43 | B44: محمد صالح علي موذي | C44: 212401 | D44: 460 | E44: 450 | H44: 2200 | I44: 100 | J44: 0
A45: 44 | B45: صالح علي عوض موذي | C45: 216184 | D45: 1077 | E45: 1077 | H45: 700 | I45: 100 | J45: 0 | K45: 700
A46: 45 | B46: علي صالح علي موذي | C46: 24307 | D46: 221 | E46: 224 | H46: 700 | I46: 100 | J46: 0 | K46: 1400
A47: 46 | B47: علي عبدالله عوض موذي | C47: 213044 | D47: 984 | E47: 995 | H47: 2700 | I47: 100 | J47: 0 | K47: 5000
A48: 47 | B48: محمد عبدالله عوض موذي | C48: 212574 | D48: 687 | E48: 697 | H48: 900 | I48: 100 | J48: 0 | K48: 2600
A49: 48 | B49: احمد علي محمد مدردر | C49: 10323 | D49: 28 | E49: 33 | H49: 1500 | I49: 100 | J49: 0 | K49: 2800 | P49: مشروع مياه الخضراء
A50: 49 | B50: عبدالله علي عوض موذي | C50: 213252 | D50: 646 | E50: 646 | H50: 2100 | I50: 100 | J50: 0 | K50: 5700 | P50: محافظة تعز / مديرية المخاء
A51: 50 | B51: عبده علي عوض موذي | C51: 216268 | D51: 1199 | E51: 1199 | H51: 100 | I51: 100 | J51: 0 | K51: 100 | T51: فاتورة رقــم : | U51: 1
A52: 51 | B52: ابراهيم سعيد عوض موذي | C52: 8222 | D52: 643 | E52: 660 | H52: 9700 | I52: 100 | J52: 0 | K52: 9000 | P52: المطلوب من الأخ / | R52: =VLOOKUP(U51,A1:N244,2,0) -> زيد عمر ناجي محمد
A53: 52 | B53: عبده ابراهيم سعيد موذي | C53: 0 | D53: 50 | E53: 57 | H53: 1100 | I53: 100 | J53: 0 | K53: 2100 | P53: العنوان / الخضراء | T53: رقم العداد : | U53: =VLOOKUP(U51,A1:N224,3,0) -> 211117
A54: 53 | B54: سعيد صالح صديفي | C54: 0 | D54: 237 | E54: 243 | H54: 2800 | I54: 100 | J54: 0 | K54: 2800 | T54: عن شهر : | U54: يونيو / 2018م
A55: 54 | B55: محمد ابراهيم سعيد موذي | C55: 0 | D55: 25 | E55: 23 | H55: 2100 | I55: 100 | J55: 0 | K55: 2200 | P55: قراءة العداد | R55: الاستهلاك | S55: قيمة المياه | T55: الرصيد السابق | U55: المبلغ المستحق
A56: 55 | B56: زيد محمد موذي | C56: 153 | D56: 139 | E56: 139 | H56: 1700 | I56: 100 | J56: 0 | K56: 1700 | P56: السابقة | Q56: الحالية | S56: ريال | T56: ريال | U56: ريال
A57: 56 | B57: محفوظ احمد مدردر | C57: 213003 | D57: 748 | E57: 738 | H57: 500 | I57: 100 | J57: 0 | K57: 1000 | P57: =VLOOKUP(U51,A1:N244,4,0) -> 8108 | Q57: =VLOOKUP(U51,A1:N244,5,0) -> 8108 | R57: =VLOOKUP(U51,A1:N224,6,0) -> 0 | S57: =VLOOKUP(U51,A1:N224,7,0) -> 0 | T57: =VLOOKUP(U51,A1:N224,8,0) -> 100 | U57: =(S57+T57) -> 100
A58: 57 | B58: علي سالم علي عبيدي | C58: 17080303 | D58: 46 | E58: 53 | H58: 4000 | I58: 100 | J58: 0 | K58: 3000 | S58: المدفوع حتى 31 /05/ 2018م | U58: =VLOOKUP(U51,A1:N224,11,0) -> 500
A59: 58 | B59: احمد عوض احمد موذي | C59: 216135 | D59: 90350 | E59: 90359 | H59: 4800 | I59: 100 | J59: 0 | K59: 1000 | S59: اشتراك شهري : | U59: =VLOOKUP(U51,A1:N224,9,0) -> 100
A60: 59 | B60: عوض احمد عوض موذي | C60: 213297 | D60: 1 | E60: 2 | H60: 400 | I60: 100 | J60: 0 | S60: خدمات أخرى : | U60: =VLOOKUP(U51,A1:N224,10,0) -> 0
A61: 60 | B61: راجح عوض احمد موذي | C61: 216278 | D61: 379 | E61: 383 | H61: 1700 | I61: 100 | J61: 0 | K61: 1700 | P61: =CH_N_TO_TEXT(U61) ->  | T61: الإجمالي : | U61: =((U57-U58)+U59+U60) -> -300
A62: 61 | B62: علي محمد علي عبيدي | C62: 4991 | D62: 321 | E62: 321 | H62: 800 | I62: 100 | J62: 0
A63: 62 | B63: فيصل محمد علي عبيدي | C63: 214816 | D63: 898 | E63: 899 | H63: 3200 | I63: 100 | J63: 0
A64: 63 | B64: راجح علي عبده صبيحي | C64: 0 | D64: 172 | E64: 173 | H64: 2100 | I64: 100 | J64: 0 | K64: 2100 | P64: مشروع مياه الخضراء | T64: فاتورة رقــم : | U64: =(U51) -> 1
A65: 64 | B65: احمد عبده زهوي | C65: 23829 | D65: 668 | E65: 669 | H65: 500 | I65: 100 | J65: 0 | K65: 800 | P65: محافظة تعز / مديرية المخاء | T65: رقم العداد : | U65: =U53 -> 211117
A66: 65 | B66: جميل عبده احمد موذي | C66: 215266 | D66: 385 | E66: 396 | H66: 3300 | I66: 100 | J66: 0 | K66: 3500 | P66: المطلوب من الأخ / | R66: =R52 -> زيد عمر ناجي محمد | T66: عن شهر : | U66: يونيو / 2018م
A67: 66 | B67: عبده احمد عوض موذي | C67: 0 | D67: 170 | E67: 160 | H67: 100 | I67: 100 | J67: 0 | K67: 200 | P67: =P61 ->  | T67: الإجمالي : | U67: =U61 -> -300
A68: 67 | B68: امين عبده احمد موذي | C68: 0 | D68: 157 | E68: 161 | H68: 500 | I68: 100 | J68: 0 | K68: 1200
A69: 68 | B69: سالم محمد احمد موذي | C69: 66944 | D69: 0 | E69: 122 | H69: 300 | I69: 100 | J69: 0 | K69: 400 | P69: مشروع مياه الخضراء | AF69: ح
A70: 69 | B70: علي محمد صديفي | C70: 205746 | D70: 20320 | H70: 1600 | I70: 100 | J70: 0 | P70: محافظة تعز / مديرية المخاء
A71: 70 | B71: عبده علي محمد صديفي | C71: 0 | D71: 612 | E71: 617 | H71: 5900 | I71: 100 | J71: 0 | K71: 3000 | T71: فاتورة رقــم : | U71: 211
A72: 71 | B72: محمد صالح احمد موذي | C72: 205680 | D72: 459 | E72: 461 | H72: 700 | I72: 100 | J72: 0 | K72: 1200 | P72: المطلوب من الأخ / | R72: =VLOOKUP(U71,A1:N224,2,0) -> عماد عبدالله محمد عميرة
A73: 72 | B73: ابراهيم صالح احمد عوض موذي | C73: 216134 | D73: 422 | E73: 428 | H73: 1700 | I73: 100 | J73: 0 | K73: 2600 | P73: العنوان / الخضراء | T73: رقم العداد : | U73: =VLOOKUP(U71,A1:N224,3,0) -> 0
A74: 73 | B74: علي صالح علي صديفي | C74: 225811 | D74: 215 | E74: 214 | H74: 100 | I74: 100 | J74: 0 | T74: عن شهر : | U74: يونيو / 2018م
A75: 74 | B75: عبده محمد عبدالله عميرة | C75: 0 | D75: 1891 | E75: 1905 | H75: 6800 | I75: 100 | J75: 0 | K75: 2100 | P75: قراءة العداد | R75: الاستهلاك | S75: قيمة المياه | T75: الرصيد السابق | U75: المبلغ المستحق
A76: 75 | B76: احمد محمد عبدالله عميرة | C76: 0 | D76: 2945 | E76: 2965 | H76: 4400 | I76: 100 | J76: 0 | K76: 2900 | P76: السابقة | Q76: الحالية | S76: ريال | T76: ريال | U76: ريال
A77: 76 | B77: راجح احمد محمد عميرة | C77: 0 | D77: 844 | E77: 845 | H77: 200 | I77: 100 | J77: 0 | K77: 100 | P77: =VLOOKUP(U71,A1:N244,4,0) -> 18 | Q77: =VLOOKUP(U71,A1:N244,5,0) -> 21 | R77: =VLOOKUP(U71,A1:N244,6,0) -> 0 | S77: =VLOOKUP(U71,A1:N244,7,0) -> 0 | T77: =VLOOKUP(U71,A1:N224,8,0) -> 3100 | U77: =(T77+S77) -> 3100
A78: 77 | B78: محمد احمد محمد عميرة | C78: 0 | D78: 228 | E78: 229 | H78: 600 | I78: 100 | J78: 0 | K78: 300 | S78: المدفوع حتى 31 /05/ 2018م | U78: =VLOOKUP(U71,A1:N224,11,0) -> 1500
A79: 78 | B79: عبدالله محمد عبدالله عميرة | C79: 214829 | D79: 1622 | E79: 1622 | H79: 1600 | I79: 100 | J79: 0 | S79: اشتراك شهري : | U79: =VLOOKUP(U71,A1:N224,9,0) -> 100
A80: 79 | B80: علي محمد عبدالله عميرة | C80: 0 | D80: 1674 | E80: 1690 | H80: 5400 | I80: 100 | J80: 0 | K80: 3100 | S80: خدمات أخرى : | U80: =VLOOKUP(U71,A1:N224,10,0) -> 0
A81: 80 | B81: حيدر علي محمد عميرة | C81: 0 | D81: 550 | E81: 550 | H81: 400 | I81: 100 | J81: 0 | P81: =CH_N_TO_TEXT(U81) -> فقط ألف وسبعمائة ريال يمني لاغير | T81: الإجمالي : | U81: =((U77-U78)+U79+U80) -> 1700
A82: 81 | B82: عايش عبدالله محمد عميرة | C82: 0 | D82: 831 | E82: 865 | H82: 5300 | I82: 100 | J82: 0 | K82: 2000
A83: 82 | B83: علي عبدالله محمد عميرة | C83: 0 | D83: 894 | E83: 895 | H83: 2800 | I83: 100 | J83: 0 | K83: 2800
A84: 83 | B84: امين عبدالله محمد عميرة | C84: 0 | D84: 86 | E84: 88 | H84: 1200 | I84: 100 | J84: 0 | K84: 1500 | P84: مشروع مياه الخضراء | T84: فاتورة رقــم : | U84: =U71 -> 211
A85: 84 | B85: ابراهيم محمد عبدالله عميرة | C85: 0 | D85: 1350 | E85: 1350 | H85: 1400 | I85: 100 | J85: 0 | K85: 2000 | P85: محافظة تعز / مديرية المخاء | T85: رقم العداد : | U85: =U73 -> 0
A86: 85 | B86: جميل ابراهيم محمد عميرة | C86: 0 | D86: 799 | E86: 799 | H86: 1600 | I86: 100 | J86: 0 | P86: المطلوب من الأخ / | R86: =R72 -> عماد عبدالله محمد عميرة | T86: عن شهر : | U86: يونيو / 2018م
A87: 86 | B87: فواز علي محمد صديفي | C87: 205676 | D87: 903 | E87: 907 | H87: 1000 | I87: 100 | J87: 0 | P87: =P81 -> فقط ألف وسبعمائة ريال يمني لاغير | T87: الإجمالي : | U87: =U81 -> 1700
A88: 87 | B88: علي يحيى محمد عميرة | C88: 0 | D88: 230 | E88: 230 | H88: 1100 | I88: 100 | J88: 0
A89: 88 | B89: عبده محمد زايد سعيد | C89: 215847 | D89: 1802 | E89: 1823 | H89: 7900 | I89: 100 | J89: 0 | K89: 3000
A90: 89 | B90: خالد محمد زايد سعيد | C90: 0 | D90: 635 | E90: 641 | H90: 1700 | I90: 100 | J90: 0 | K90: 1500
A91: 90 | B91: محرم سعيد زايد سعيد | C91: 0 | D91: 50 | E91: 50 | H91: 2100 | I91: 100 | J91: 0
A92: 91 | B92: هائل سعيد زايد سعيد | C92: 0 | D92: 21 | E92: 32 | H92: 500 | I92: 100 | J92: 0
A93: 92 | B93: حمود سعيد زايد سعيد | C93: 0 | D93: 1013 | H93: 500 | I93: 100 | J93: 0
A94: 93 | B94: سعيد سليمان محمد سليمان | C94: 0 | D94: 794 | E94: 799 | H94: 3800 | I94: 100 | J94: 0 | K94: 3400
A95: 94 | B95: محمد سليمان محمد سليمان | C95: 213414 | D95: 855 | E95: 861 | H95: 1500 | I95: 100 | J95: 0 | K95: 1500
A96: 95 | B96: أحمد سليمان محمد سليمان | C96: 215807 | D96: 659 | E96: 666 | H96: 1500 | I96: 100 | J96: 0 | K96: 1100
A97: 96 | B97: سليمان محمد سليمان | C97: 216297 | D97: 976 | E97: 988 | H97: 1500 | I97: 100 | J97: 0 | K97: 1250
A98: 97 | B98: صالح محمد سليمان | C98: 213404 | D98: 1118 | E98: 1121 | H98: 1300 | I98: 100 | J98: 0 | K98: 1100
A99: 98 | B99: نبيل صالح محمد سليمان | C99: 0 | D99: 662 | E99: 668 | H99: 1100 | I99: 100 | J99: 0 | K99: 1000
A100: 99 | B100: فضل صالح محمد سليمان | C100: 0 | D100: 315 | E100: 315 | H100: 1100 | I100: 100 | J100: 0 | K100: 100
A101: 100 | B101: عبدالله صالح محمد سليمان | C101: 2778 | D101: 394 | E101: 399 | H101: 900 | I101: 100 | J101: 0 | K101: 700
A102: 101 | B102: بسام صالح محمد سليمان | C102: 28049 | D102: 311 | E102: 321 | H102: 700 | I102: 100 | J102: 0 | K102: 1900
A103: 102 | B103: علي صالح محمد سليمان | C103: 212566 | D103: 756 | E103: 761 | H103: 700 | I103: 100 | J103: 0 | K103: 700
A104: 103 | B104: اسماعيل صالح محمد سليمان | C104: 0 | D104: 143 | E104: 149 | H104: 500 | I104: 100 | J104: 0 | K104: 900
A105: 104 | B105: فهد عبده محمد سليمان | C105: 210659 | D105: 637 | E105: 642 | H105: 1100 | I105: 100 | J105: 0 | K105: 2000
A106: 105 | B106: جميل عبده محمد سليمان | C106: 0 | D106: 775 | E106: 793 | H106: 3100 | I106: 100 | J106: 0 | K106: 2500
A107: 106 | B107: خالد عبده محمد سليمان | C107: 0 | D107: 23 | E107: 29 | H107: 1300 | I107: 100 | J107: 0 | K107: 900
A108: 107 | B108: رياض علي محمد سليمان | C108: 210906 | D108: 798 | E108: 805 | H108: 700 | I108: 100 | J108: 0 | K108: 1300
A109: 108 | B109: أحمد محمد محمد زوقري | C109: 216560 | D109: 892 | E109: 899 | H109: 100 | I109: 100 | J109: 0
A110: 109 | B110: فهبم أحمد محمد زوقري | C110: 120662 | D110: 1047 | E110: 1062 | H110: 3300 | I110: 100 | J110: 0 | K110: 2500
A111: 110 | B111: صالح أحمد محمد زوقري | C111: 23286 | D111: 475 | E111: 489 | H111: 2900 | I111: 100 | J111: 0 | K111: 2100
A112: 111 | B112: خالد أحمد محمد زوقري | C112: 212318 | D112: 483 | E112: 489 | H112: 1900 | I112: 100 | J112: 0 | K112: 1300
A113: 112 | B113: سعيد أحمد زوقري | C113: 211208 | D113: 966 | E113: 979 | H113: 2500 | I113: 100 | J113: 0 | K113: 2100
A114: 113 | B114: منير أحمد محمد زوقري | C114: 12298 | D114: 588 | E114: 594 | H114: 1500 | I114: 100 | J114: 0 | K114: 1700
A115: 114 | B115: محمد علي محمد زوقري | C115: 212906 | D115: 10524 | E115: 10530 | H115: 1300 | I115: 100 | J115: 0 | K115: 1100
A116: 115 | B116: سعيد محمد زوقري | C116: 216864 | D116: 653 | E116: 660 | H116: 1700 | I116: 100 | J116: 0 | K116: 1100
A117: 116 | B117: عوض عبدالله زوقري | C117: 211821 | D117: 506 | E117: 512 | H117: 1700 | I117: 100 | J117: 0 | K117: 1100
A118: 117 | B118: محمد عبدالله زوقري | C118: 0 | D118: 59 | E118: 75 | H118: 2300 | I118: 100 | J118: 0 | K118: 6000
A119: 118 | B119: عبدالله محمد زوقري | C119: 215874 | D119: 541 | E119: 549 | H119: 1500 | I119: 100 | J119: 0 | K119: 1300
A120: 119 | B120: عايد علي محمد زوقري | C120: 210997 | D120: 552 | E120: 5560 | H120: 100 | I120: 100 | J120: 0
A121: 120 | B121: نبيل علي محمد زوقري | C121: 213803 | D121: 978 | E121: 986 | H121: 3600 | I121: 100 | J121: 0 | K121: 1700
A122: 121 | B122: أحمد علي محمد زوقري | C122: 210930 | D122: 716 | E122: 725 | H122: 1700 | I122: 100 | J122: 0 | K122: 1300
A123: 122 | B123: عبدالعزيز محمد سكندر | C123: 215304 | D123: 634 | E123: 643 | H123: 2300 | I123: 100 | J123: 0 | K123: 2700
A124: 123 | B124: عبدالله محمد سكندر | C124: 212503 | D124: 465 | E124: 467 | H124: 500 | I124: 100 | J124: 0
A125: 124 | B125: أحمد محمد سكندر | C125: 883 | D125: 10 | E125: 12 | H125: 900 | I125: 100 | J125: 0
A126: 125 | B126: محمد عبده علي زوقري | C126: 212981 | D126: 454 | E126: 459 | H126: 1100 | I126: 100 | J126: 0
A127: 126 | B127: محمد أحمد قبصي | C127: 212367 | D127: 704 | E127: 710 | H127: 2800 | I127: 100 | J127: 0 | K127: 1100
A128: 127 | B128: علي محمد أحمد قبصي | C128: 211376 | D128: 498 | E128: 502 | H128: 2700 | I128: 100 | J128: 0 | K128: 900
A129: 128 | B129: أحمد محمد أحمد قبصي | C129: 354 | D129: 223 | E129: 229 | H129: 1700 | I129: 100 | J129: 0 | K129: 400
A130: 129 | B130: نشوان محمد أحمد قبصي | C130: 205948 | D130: 591 | E130: 598 | H130: 1500 | I130: 100 | J130: 0 | K130: 1900
A131: 130 | B131: رزق محمد قبصي | C131: 0 | D131: 213 | E131: 215 | H131: 1300 | I131: 100 | J131: 0 | K131: 1100
A132: 131 | B132: سمير محمد قبصي | C132: 320319 | D132: 107 | E132: 109 | H132: 1700 | I132: 100 | J132: 0 | K132: 1500
A133: 132 | B133: إ[راهيم سعيد زيد | C133: 0 | D133: 210 | E133: 209 | H133: 500 | I133: 100 | J133: 0 | K133: 600
A134: 133 | B134: محمد عبدالله زيد | C134: 0 | D134: 191 | E134: 199 | H134: 4800 | I134: 100 | J134: 0 | K134: 3000
A135: 134 | B135: سعيد زيد حكيمي | C135: 215226 | D135: 11411 | E135: 11411 | H135: 1200 | I135: 100 | J135: 0
A136: 135 | B136: أحمد عبدالله زيد | C136: 12064 | D136: 10332 | E136: 10332 | H136: 600 | I136: 100 | J136: 0
A137: 136 | B137: عوض محمد قاسم قحيم | C137: 204006 | D137: 1249 | E137: 1249 | H137: 300 | I137: 100 | J137: 0
A138: 137 | B138: مجيد محمد قاسم قحيم | C138: 2959 | D138: 520 | E138: 521 | H138: 1600 | I138: 100 | J138: 0
A139: 138 | B139: صدام محمد قاسم | C139: 210984 | D139: 626 | E139: 628 | H139: 2600 | I139: 100 | J139: 0
A140: 139 | B140: أحمد زيد حكيمي | C140: 206063 | D140: 726 | E140: 728 | H140: 2000 | I140: 100 | J140: 0
A141: 140 | B141: علي عبدالله زيد | C141: 213406 | D141: 961 | E141: 969 | H141: 4800 | I141: 100 | J141: 0 | K141: 1500
A142: 141 | B142: عبدالله محمد علي قحيم | C142: 214766 | D142: 1450 | E142: 1462 | H142: 2700 | I142: 100 | J142: 0 | K142: 100
A143: 142 | B143: علي بن علي عوض مدردر | C143: 0 | D143: 16 | E143: 19 | H143: 1100 | I143: 100 | J143: 0 | K143: 700
A144: 143 | B144: بديع عوض علي مدردر | C144: 212529 | D144: 1025 | E144: 1036 | H144: 1900 | I144: 100 | J144: 0 | K144: 3600
A145: 144 | B145: حبيب أحمد علي مدردر | C145: 214623 | D145: 861 | E145: 867 | H145: 1500 | I145: 100 | J145: 0 | K145: 1500
A146: 145 | B146: محمد أحمد علي مدردر | C146: 210452 | D146: 365 | E146: 373 | H146: 1900 | I146: 100 | J146: 0 | K146: 3600
A147: 146 | B147: مصعب سعيد مدردر | C147: 210916 | D147: 562 | E147: 567 | H147: 1300 | I147: 100 | J147: 0 | K147: 3000
A148: 147 | B148: علي عبدالله علي قحيم | C148: 8102008 | D148: 80 | E148: 96 | H148: 4900 | I148: 100 | J148: 0 | K148: 9200
A149: 148 | B149: تقي محمد علي قحيم | C149: 140887 | D149: 44 | E149: 54 | H149: 3400 | I149: 100 | J149: 0 | K149: 1900
A150: 149 | B150: صلاح محمد علي قحيم | C150: 211616 | D150: 686 | E150: 693 | H150: 1900 | I150: 100 | J150: 0 | K150: 3200
A151: 150 | B151: علي أحمد عليقحيم | C151: 214699 | D151: 1273 | E151: 2 | H151: 100 | I151: 100 | J151: 0
A152: 151 | B152: عبده علي هواش | C152: 4980 | D152: 225 | E152: 229 | H152: 1500 | I152: 100 | J152: 0 | K152: 1100
A153: 152 | B153: سعيدعلي علي محلي | C153: 215707 | D153: 1063 | E153: 11068 | H153: 2800 | I153: 100 | J153: 0
A154: 153 | B154: أحمد علي علي محلي | C154: 210766 | D154: 1484 | E154: 2489 | H154: 900 | I154: 100 | J154: 0 | K154: 900
A155: 154 | B155: محمد علي علي محلي | C155: 215439 | D155: 425 | E155: 428 | H155: 4650 | I155: 100 | J155: 0 | K155: 1500
A156: 155 | B156: عبده سعيد سراجي | C156: 215549 | D156: 719 | E156: 728 | H156: 3700 | I156: 100 | J156: 0 | K156: 2100
A157: 156 | B157: عبدالله علي علي محلي | C157: 214676 | D157: 722 | E157: 730 | H157: 1600 | I157: 100 | J157: 0 | K157: 1900
A158: 157 | B158: محمد حيدر علي محلي | C158: 213116 | D158: 21149 | E158: 81149 | H158: 100 | I158: 100 | J158: 0
A159: 158 | B159: فضل يوسف محلي | C159: 11480 | D159: 491 | E159: 494 | H159: 900 | I159: 100 | J159: 0 | K159: 1400
A160: 159 | B160: علي زيد حكيمي | C160: 212538 | D160: 863 | E160: 879 | H160: 5900 | I160: 100 | J160: 0
A161: 160 | B161: يوسف علي محلي | C161: 211683 | D161: 488 | E161: 493 | H161: 4600 | I161: 100 | J161: 0
A162: 161 | B162: أحمد حيدر علي محلي | C162: 888990 | D162: 257 | E162: 266 | H162: 1700 | I162: 100 | J162: 0 | K162: 1300
A163: 162 | B163: علي حيدر علي محلي | C163: 215295 | D163: 780 | E163: 786 | H163: 500 | I163: 100 | J163: 0 | K163: 1100
A164: 163 | B164: مسجد أحمد حيدر علي | C164: 0 | D164: 50 | E164: 73 | H164: 4500 | I164: 100 | J164: 0 | K164: 500
A165: 164 | B165: نبيل عبدالله زايد | C165: 12153 | D165: 202 | E165: 215 | H165: 5600 | I165: 100 | J165: 0 | K165: 4000
A166: 165 | B166: حيدر سعيد سالم حكيمي | C166: 205778 | D166: 1242 | E166: 1254 | H166: 5600 | I166: 100 | J166: 0 | K166: 2000
A167: 166 | B167: عبدالله علي عميره | C167: 705591 | D167: 900 | E167: 900 | H167: 9500 | I167: 100 | J167: 0 | K167: 4000
A168: 167 | B168: محمد علي عبدالله عميره | C168: 705527 | D168: 1136 | E168: 5 | H168: 9600 | I168: 100 | J168: 0 | K168: 5000
A169: 168 | B169: علي سعيد عميره | C169: 700869 | D169: 260 | E169: 260 | H169: 800 | I169: 100 | J169: 0
A170: 169 | B170: صديق هايل عميره | C170: 705530 | D170: 190 | E170: 121 | H170: 7000 | I170: 100 | J170: 0 | K170: 2000
A171: 170 | B171: بديع علي عبدالله عميره | C171: 0 | D171: 110 | E171: 101 | H171: 2300 | I171: 100 | J171: 0 | K171: 2000
A172: 171 | B172: محمد ناجي عميره | C172: 0 | D172: 36 | E172: 49 | H172: 2900 | I172: 100 | J172: 0 | K172: 1500
A173: 172 | B173: فؤاد سعيد عميره | C173: 708088 | D173: 1029 | E173: 1029 | H173: 2300 | I173: 100 | J173: 0 | K173: 8200
A174: 173 | B174: سعيد يحيى صديفي | C174: 0 | D174: 1417 | E174: 1424 | H174: 2100 | I174: 100 | J174: 0
A175: 174 | B175: واتح يحيى صديفي | C175: 215666 | D175: 11368 | E175: 11368 | H175: 2200 | I175: 100 | J175: 0
A176: 175 | B176: عبداللطيف يحيى صديفي | C176: 0 | D176: 41 | E176: 52 | H176: 1600 | I176: 100 | J176: 0 | K176: 3100
A177: 176 | B177: سالم راجح محمد صديفي | C177: 211249 | D177: 1164 | E177: 1178 | H177: 3300 | I177: 100 | J177: 0 | K177: 5400
A178: 177 | B178: الزراعي راجح محمد صديفي | C178: 211665 | D178: 973 | E178: 977 | H178: 1500 | I178: 100 | J178: 0 | K178: 3000
A179: 178 | B179: سعيد راجح صديفي | C179: 0 | D179: 7 | E179: 10 | H179: 700 | I179: 100 | J179: 0 | K179: 1000
A180: 179 | B180: عبده يحيى صديفي | C180: 214829 | D180: 873 | E180: 873 | H180: 100 | I180: 100 | J180: 0
A181: 180 | B181: همام يحيى صديفي | C181: 0 | D181: 80081 | E181: 80086 | H181: 3000 | I181: 100 | J181: 0 | K181: 3350
A182: 181 | B182: عبدالله محمد حكيمي | C182: 3738237 | D182: 389 | E182: 389 | H182: 2700 | I182: 100 | J182: 0
A183: 182 | B183: خليل سالم خشب | C183: 215354 | D183: 385 | E183: 385 | H183: 1700 | I183: 100 | J183: 0
A184: 183 | B184: علاوي سعيد حكيمي | C184: 3738220 | D184: 445 | E184: 445 | H184: 3300 | I184: 100 | J184: 0
A185: 184 | B185: أحمد علي هكي | C185: 215226 | D185: 1157 | E185: 1161 | H185: 2500 | I185: 100 | J185: 0 | K185: 2000
A186: 185 | B186: أنور حمادي قحيم | C186: 0 | D186: 7 | E186: 7 | H186: 1200 | I186: 100 | J186: 0
A187: 186 | B187: محمد محمد ثابت قحيم | C187: 0 | D187: 11 | E187: 15 | H187: 1200 | I187: 100 | J187: 0 | K187: 2100
A188: 187 | B188: أحمد علي قلقلي | C188: 211687 | D188: 624 | E188: 627 | H188: 900 | I188: 100 | J188: 0 | K188: 2200
A189: 188 | B189: محمد علي قلقلي | C189: 0 | D189: 24 | E189: 29 | H189: 1300 | I189: 100 | J189: 0 | K189: 2400
A190: 189 | B190: علي عبدالله زوقري | C190: 1470295 | D190: 20 | E190: 26 | H190: 1300 | I190: 100 | J190: 0 | K190: 900
A191: 190 | B191: محمد بن محمد زوقري | C191: 215360 | D191: 597 | E191: 600 | H191: 700 | I191: 100 | J191: 0 | K191: 700
A192: 191 | B192: حمدي أحمد علي زوقري | C192: 26812 | D192: 59 | E192: 59 | H192: 100 | I192: 100 | J192: 0
A193: 192 | B193: ذاكر يحيى محمد زوقري | C193: 1134 | D193: 156 | E193: 165 | H193: 1500 | I193: 100 | J193: 0
A194: 193 | B194: عبده محمد زوقري | C194: 211236 | D194: 998 | E194: 1010 | H194: 2300 | I194: 100 | J194: 0 | K194: 1900
A195: 194 | B195: يحيى محمد زوقري | C195: 211088 | D195: 81221 | E195: 81233 | H195: 7300 | I195: 100 | J195: 0
A196: 195 | B196: عبده يحيى محمد زوقري | C196: 211397 | D196: 436 | E196: 437 | H196: 500 | I196: 100 | J196: 0
A197: 196 | B197: مجد علي زوقري | C197: 24470 | D197: 389 | E197: 398 | H197: 2600 | I197: 100 | J197: 0 | K197: 4100
A198: 197 | B198: عبدالله علي محمد زوقري | C198: 24067 | D198: 152 | E198: 156 | H198: 900 | I198: 100 | J198: 0
A199: 198 | B199: علي عبدالله زوقري | C199: 212844 | D199: 306 | H199: 100 | I199: 100 | J199: 0
A200: 199 | B200: عبده علي محمد زوقري | C200: 212932 | D200: 745 | E200: 750 | H200: 4100 | I200: 100 | J200: 0 | K200: 3800
... 26 more rows

Sheet كشف قراءه يوليو (2)
A1: م | B1: اسم المشترك | C1: رقم العداد | D1: السابقة | E1: الحالية | F1: فارق القراءة | G1: قيمة المياه | H1: الرصيد السابق | I1: اشتراك شهري | J1: اخرى | K1: المدفوع حتى31-8-2018 | L1: إجمالي المبلغ | M1: المدفوع | N1: المتبقي
A2: 1 | B2: زيد عمر ناجي محمد | C2: 211117 | D2: 8108 | E2: 8108 | F2: =(E2-D2) -> 0 | G2: =(200*F2) -> 0 | H2: 1100 | I2: 100 | J2: 0 | K2: 500 | L2: =(G2+H2+I2+J2) -> 1200 | M2: 1100 | N2: =(L2-M2) -> 100 | IV2: =SUM(A2:IU2) -> 231434
A3: 2 | B3: زيد عمر ناجي محمد | C3: 38203 | D3: 3361 | E3: 3437 | F3: =(E3-D3) -> 76 | G3: =(200*F3) -> 15200 | H3: 14500 | I3: 100 | J3: 0 | K3: 14500 | L3: =(G3+H3+I3+J3) -> 29800 | M3: 14500 | N3: 15300
A4: 3 | B4: زيد عمر ناجي محمد | C4: 214929 | D4: 3755 | E4: 3801 | F4: 46 | G4: 9200 | H4: 19900 | I4: 100 | J4: 0 | K4: 8700 | L4: 29200 | M4: 19900 | N4: 9300
A5: 4 | B5: زيد عمر ناجي محمد | C5: 11841 | D5: 6754 | E5: 6789 | F5: 35 | G5: 7000 | H5: 5700 | I5: 100 | J5: 0 | K5: 4700 | L5: 12800 | M5: 5700 | N5: 7100 | P5: مشروع مياه الخضراء
A6: 5 | B6: زيد عمر ناجي محمد | C6: 213121 | D6: 34045 | E6: 34045 | F6: 0 | G6: 0 | H6: 500 | I6: 100 | J6: 0 | K6: 100 | L6: 600 | M6: 500 | N6: 100 | P6: محافظة تعز / مديرية المخاء
A7: 6 | B7: مختار عمر ناجي محمد | C7: 210780 | D7: 1082 | E7: 1082 | F7: 0 | G7: 0 | H7: 3300 | I7: 100 | J7: 0 | K7: 100 | L7: 3400 | M7: 3300 | N7: 100 | T7: فاتورة رقــم : | U7: =A2 -> 1
A8: 7 | B8: صالح عمر ناجي محمد | C8: 210954 | D8: 1361 | E8: 1361 | F8: 0 | G8: 0 | H8: 6900 | I8: 100 | J8: 0 | K8: 100 | L8: 7000 | M8: 6900 | N8: 100 | P8: المطلوب من الأخ / | R8: =VLOOKUP(U7,A1:N243,2,0) -> زيد عمر ناجي محمد
A9: 8 | B9: صلاح عمر ناجي محمد | C9: 3738 | D9: 3224 | E9: 3224 | F9: 0 | G9: 0 | H9: 100 | I9: 100 | J9: 0 | K9: 100 | L9: 200 | M9: 100 | N9: 100 | P9: العنوان / الخضراء | T9: رقم العداد : | U9: =VLOOKUP(U7,A1:N223,3,0) -> 211117
A10: 9 | B10: سعيد عباد سراجي | C10: 215329 | D10: 2153 | E10: 2153 | F10: 0 | G10: 0 | H10: 4100 | I10: 100 | J10: 0 | K10: 100 | L10: 4200 | M10: 4100 | N10: 100 | T10: عن شهر : | U10: أغسطس / 2018م
A11: 10 | B11: احمد علي ناجي محمد | C11: 214222 | D11: 689 | E11: 689 | F11: 0 | G11: 0 | H11: 1100 | I11: 100 | J11: 0 | K11: 0 | L11: 1200 | M11: 1100 | N11: 100 | P11: قراءة العداد | R11: الاستهلاك | S11: قيمة المياه | T11: الرصيد السابق | U11: المبلغ المستحق
A12: 11 | B12: عبده علي ناجي محمد | C12: 210918 | D12: 1151 | E12: 1153 | F12: 2 | G12: 400 | H12: 2700 | I12: 100 | J12: 0 | K12: 0 | L12: 3200 | M12: 2700 | N12: 500 | P12: السابقة | Q12: الحالية | S12: ريال | T12: ريال | U12: ريال
A13: 12 | B13: علي بن علي ناجي محمد | C13: 210984 | D13: 1966 | E13: 1982 | F13: 16 | G13: 3200 | H13: 5300 | I13: 100 | J13: 0 | K13: 4000 | L13: 8600 | M13: 5300 | N13: 3300 | P13: =VLOOKUP(U7,A1:N243,4,0) -> 8108 | Q13: =VLOOKUP(U7,A1:N243,5,0) -> 8108 | R13: =VLOOKUP(U7,A1:N223,6,0) -> 0 | S13: =VLOOKUP(U7,A1:N223,7,0) -> 0 | T13: =VLOOKUP(U7,A1:N223,8,0) -> 1100 | U13: =(S13+T13) -> 1100
A14: 13 | B14: صالح علي ناجي محمد | C14: 0 | D14: 55 | E14: 78 | F14: 23 | G14: 4600 | H14: 1500 | I14: 100 | J14: 0 | K14: 4300 | L14: 6200 | M14: 1500 | N14: 4700 | S14: المدفوع حتى 31 /07/ 2018م | U14: =VLOOKUP(U7,A1:N223,11,0) -> 500
A15: 14 | B15: عمرو ناجي علي ناجي | C15: 11356 | D15: 257 | E15: 259 | F15: 2 | G15: 400 | H15: 500 | I15: 100 | J15: 0 | K15: 500 | L15: 1000 | M15: 500 | N15: 500 | S15: اشتراك شهري : | U15: =VLOOKUP(U7,A1:N223,9,0) -> 100
A16: 15 | B16: معاذ ناجي علي ناجي | C16: 0 | D16: 57 | E16: 58 | F16: 1 | G16: 200 | H16: 1100 | I16: 100 | J16: 0 | K16: 1000 | L16: 1400 | M16: 1000 | N16: 400 | S16: خدمات أخرى : | U16: =VLOOKUP(U7,A1:N223,10,0) -> 0
A17: 16 | B17: عماد ناجي علي ناجي | C17: 58146 | D17: 93 | E17: 95 | F17: 2 | G17: 400 | H17: 1300 | I17: 100 | J17: 0 | K17: 700 | L17: 1800 | M17: 1300 | N17: 500 | P17: =CH_N_TO_TEXT(U17) -> فقط سبعمائة ريال يمني لاغير | T17: الإجمالي : | U17: =((U13-U14)+U15+U16) -> 700
A18: 17 | B18: طارق ناجي علي ناجي | C18: 0 | D18: 35 | E18: 35 | F18: 0 | G18: 0 | H18: 500 | I18: 100 | J18: 0 | K18: 0 | L18: 600 | M18: 500 | N18: 100
A19: 18 | B19: محمد سالم احمد ناجي | C19: 0 | D19: 0 | E19: 3 | F19: 3 | G19: 600 | H19: 1100 | I19: 100 | J19: 0 | K19: 13200 | L19: 1800 | M19: 1100 | N19: 700
A20: 19 | B20: ناجي علي ناجي محمد | C20: 215095 | D20: 432 | E20: 441 | F20: 9 | G20: 1800 | H20: 1700 | I20: 100 | J20: 0 | K20: 1300 | L20: 3600 | M20: 1700 | N20: 1900 | P20: مشروع مياه الخضراء | T20: فاتورة رقــم : | U20: =(U7) -> 1
A21: 20 | B21: محمد ناجي علي ناجي | C21: 216316 | D21: 882 | E21: 894 | F21: 12 | G21: 2400 | H21: 3100 | I21: 100 | J21: 0 | K21: 1700 | L21: 5600 | M21: 3100 | N21: 2500 | P21: محافظة تعز / مديرية المخاء | T21: رقم العداد : | U21: =U9 -> 211117
A22: 21 | B22: احمد ناجي علي ناجي | C22: 214892 | D22: 416 | E22: 419 | F22: 3 | G22: 600 | H22: 500 | I22: 100 | J22: 0 | K22: 700 | L22: 1200 | M22: 500 | N22: 700 | P22: المطلوب من الأخ / | R22: =R8 -> زيد عمر ناجي محمد | T22: عن شهر : | U22: أغسطس / 2018م
A23: 22 | B23: علي ناجي علي ناجي | C23: 212438 | D23: 741 | E23: 747 | F23: 6 | G23: 1200 | H23: 1100 | I23: 100 | J23: 0 | K23: 900 | L23: 2400 | M23: 1100 | N23: 1300 | P23: =P17 -> فقط سبعمائة ريال يمني لاغير | T23: الإجمالي : | U23: =U17 -> 700
A24: 23 | B24: محمد علي ناجي محمد | C24: 212781 | D24: 1525 | E24: 1537 | F24: 12 | G24: 2400 | H24: 3100 | I24: 100 | J24: 0 | K24: 1750 | L24: 5600 | M24: 3100 | N24: 2500
A25: 24 | B25: نزار محمد علي ناجي | C25: 11381 | D25: 551 | E25: 555 | F25: 4 | G25: 800 | H25: 3900 | I25: 100 | J25: 0 | K25: 0 | L25: 4800 | M25: 3900 | N25: 900
A26: 25 | B26: معتز محمد علي ناجي | C26: 215108 | D26: 1067 | E26: 1073 | F26: 6 | G26: 1200 | H26: 500 | I26: 100 | J26: 0 | K26: 300 | L26: 1800 | M26: 500 | N26: 1300
A27: 26 | B27: عبده احمد ناجي محمد | C27: 212822 | D27: 909 | E27: 921 | F27: 12 | G27: 2400 | H27: 300 | I27: 100 | J27: 0 | K27: 1700 | L27: 2800 | M27: 0 | N27: 2800
A28: 27 | B28: محمد احمد ناجي محمد | C28: 210912 | D28: 1890 | E28: 1897 | F28: 7 | G28: 1400 | H28: 4100 | I28: 100 | J28: 0 | K28: 1900 | L28: 5600 | M28: 4100 | N28: 1500
A29: 28 | B29: مصطفى سالم محمد ناجي | C29: 210833 | D29: 3019 | E29: 3034 | F29: 15 | G29: 3000 | H29: 300 | I29: 100 | J29: 0 | K29: 0 | L29: 3400 | M29: 300 | N29: 3100
A30: 29 | B30: سعيد محمد ناجي محمد | C30: 213576 | D30: 285 | E30: 285 | F30: 0 | G30: 0 | H30: 1900 | I30: 100 | J30: 0 | K30: 0 | L30: 2000 | M30: 1900 | N30: 100
A31: 30 | B31: علي ثابت حميدان | C31: 214446 | D31: 277 | E31: 290 | F31: 13 | G31: 2600 | H31: 3300 | I31: 100 | J31: 0 | K31: 3000 | L31: 6000 | M31: 3300 | N31: 2700
A32: 31 | B32: معذ محمد ثابت | C32: 210946 | D32: 21700 | E32: 21718 | F32: 18 | G32: 3600 | H32: 300 | I32: 100 | J32: 0 | K32: 0 | L32: 4000 | M32: 300 | N32: 3700
A33: 32 | B33: علي سالم محمد ناجي | C33: 211161 | D33: 1142 | E33: 1158 | F33: 16 | G33: 3200 | H33: 4900 | I33: 100 | J33: 0 | K33: 0 | L33: 8200 | M33: 4900 | N33: 3300
A34: 33 | B34: محمد سالم محمد ناجي | C34: 216243 | D34: 622 | E34: 644 | F34: 22 | G34: 4400 | H34: 900 | I34: 100 | J34: 0 | K34: 2000 | L34: 5400 | M34: 900 | N34: 4500
A35: 34 | B35: محمد سالم محمد ناجي | C35: 4617 | D35: 40173 | E35: 40173 | F35: 0 | G35: 0 | H35: 100 | I35: 100 | J35: 0 | K35: 0 | L35: 200 | M35: 100 | N35: 100
A36: 35 | B36: علي محمد طبيلي | C36: 214210 | D36: 1703 | E36: 1720 | F36: 17 | G36: 3400 | H36: 4300 | I36: 100 | J36: 0 | K36: 6000 | L36: 7800 | M36: 4300 | N36: 3500
A37: 36 | B37: ربيع علي محمد طبيلي | C37: 211153 | D37: 275 | E37: 282 | F37: 7 | G37: 1400 | H37: 1100 | I37: 100 | J37: 0 | K37: 2200 | L37: 2600 | M37: 0 | N37: 2600
A38: 37 | B38: صلاح علي محمد طبيلي | C38: 59875 | D38: 57 | E38: 65 | F38: 8 | G38: 1600 | H38: 500 | I38: 100 | J38: 0 | K38: 2000 | L38: 2200 | M38: 500 | N38: 1700
A39: 38 | B39: ناجي محمد ناجي محمد | C39: 0 | D39: 1320 | E39: 1331 | F39: 11 | G39: 2200 | H39: 4500 | I39: 100 | J39: 0 | K39: 0 | L39: 6800 | M39: 4500 | N39: 2300
A40: 39 | B40: خالد محمد ناجي محمد | C40: 0 | D40: 1759 | E40: 1760 | F40: 1 | G40: 200 | H40: 2700 | I40: 100 | J40: 0 | K40: 0 | L40: 3000 | M40: 2700 | N40: 300
A41: 40 | B41: مصطفى سالم محمد ناجي | C41: 0 | D41: 332 | E41: 334 | F41: 2 | G41: 400 | H41: 1900 | I41: 100 | J41: 0 | K41: 0 | L41: 2400 | M41: 1900 | N41: 500
A42: 41 | B42: احمد سعيد علي ناجي | C42: 0 | D42: 998 | E42: 1008 | F42: 10 | G42: 2000 | H42: 100 | I42: 100 | J42: 0 | K42: 2500 | L42: 2200 | M42: 100 | N42: 2100
A43: 42 | B43: فضل صالح علي موذي | C43: 0 | D43: 814 | E43: 825 | F43: 11 | G43: 2200 | H43: 1500 | I43: 100 | J43: 0 | K43: 2100 | L43: 3800 | M43: 1500 | N43: 2300
A44: 43 | B44: محمد صالح علي موذي | C44: 212401 | D44: 460 | E44: 460 | F44: 0 | G44: 0 | H44: 100 | I44: 100 | J44: 0 | K44: 0 | L44: 200 | M44: 100 | N44: 100
A45: 44 | B45: صالح علي عوض موذي | C45: 216184 | D45: 1077 | E45: 1077 | F45: 0 | G45: 0 | H45: 2300 | I45: 100 | J45: 0 | K45: 700 | L45: 2400 | M45: 2300 | N45: 100
A46: 45 | B46: علي صالح علي موذي | C46: 24307 | D46: 221 | E46: 224 | F46: 3 | G46: 600 | H46: 700 | I46: 100 | J46: 0 | K46: 1400 | L46: 1400 | M46: 700 | N46: 700
A47: 46 | B47: علي عبدالله عوض موذي | C47: 213044 | D47: 984 | E47: 995 | F47: 11 | G47: 2200 | H47: 2300 | I47: 100 | J47: 0 | K47: 5000 | L47: 4600 | M47: 2300 | N47: 2300
A48: 47 | B48: محمد عبدالله عوض موذي | C48: 212574 | D48: 687 | E48: 697 | F48: 10 | G48: 2000 | H48: 2100 | I48: 100 | J48: 0 | K48: 2600 | L48: 4200 | M48: 2100 | N48: 2100
A49: 48 | B49: احمد علي محمد مدردر | C49: 10323 | D49: 28 | E49: 33 | F49: 5 | G49: 1000 | H49: 1700 | I49: 100 | J49: 0 | K49: 2800 | L49: 2800 | M49: 1500 | N49: 1300
A50: 49 | B50: عبدالله علي عوض موذي | C50: 213252 | D50: 646 | E50: 646 | F50: 0 | G50: 0 | H50: 100 | I50: 100 | J50: 0 | K50: 5700 | L50: 200 | M50: 100 | N50: 100
A51: 50 | B51: عبده علي عوض موذي | C51: 216268 | D51: 1199 | E51: 1199 | F51: 0 | G51: 0 | H51: 100 | I51: 100 | J51: 0 | K51: 100 | L51: 200 | M51: 100 | N51: 100
A52: 51 | B52: ابراهيم سعيد عوض موذي | C52: 8222 | D52: 643 | E52: 660 | F52: 17 | G52: 3400 | H52: 4500 | I52: 100 | J52: 0 | K52: 9000 | L52: 8000 | M52: 2000 | N52: 6000
A53: 52 | B53: عبده ابراهيم سعيد موذي | C53: 0 | D53: 50 | E53: 57 | F53: 7 | G53: 1400 | H53: 100 | I53: 100 | J53: 0 | K53: 2100 | L53: 1600 | M53: 0 | N53: 1600
A54: 53 | B54: سعيد صالح صديفي | C54: 0 | D54: 237 | E54: 243 | F54: 6 | G54: 1200 | H54: 2100 | I54: 100 | J54: 0 | K54: 2800 | L54: 3400 | M54: 2100 | N54: 1300
A55: 54 | B55: محمد ابراهيم سعيد موذي | C55: 0 | D55: 25 | E55: 25 | F55: 0 | G55: 0 | H55: 1500 | I55: 100 | J55: 0 | K55: 2200 | L55: 1600 | M55: 1500 | N55: 100
A56: 55 | B56: زيد محمد موذي | C56: 153 | D56: 139 | E56: 139 | F56: 0 | G56: 0 | H56: 900 | I56: 100 | J56: 0 | K56: 1700 | L56: 1000 | M56: 900 | N56: 100
A57: 56 | B57: محفوظ احمد مدردر | C57: 213003 | D57: 748 | E57: 748 | F57: 0 | G57: 0 | H57: 1100 | I57: 100 | J57: 0 | K57: 1000 | L57: 1200 | M57: 1100 | N57: 100
A58: 57 | B58: علي سالم علي عبيدي | C58: 17080303 | D58: 46 | E58: 53 | F58: 7 | G58: 1400 | H58: 1700 | I58: 100 | J58: 0 | K58: 3000 | L58: 3200 | M58: 1700 | N58: 1500
A59: 58 | B59: احمد عوض احمد موذي | C59: 216135 | D59: 90350 | E59: 90359 | F59: 9 | G59: 1800 | H59: 1700 | I59: 100 | J59: 0 | K59: 1000 | L59: 3600 | M59: 1500 | N59: 2100
A60: 59 | B60: عوض احمد عوض موذي | C60: 213297 | D60: 1 | E60: 2 | F60: 1 | G60: 200 | H60: 100 | I60: 100 | J60: 0 | K60: 0 | L60: 400 | M60: 100 | N60: 300
A61: 60 | B61: راجح عوض احمد موذي | C61: 216278 | D61: 379 | E61: 383 | F61: 4 | G61: 800 | H61: 1100 | I61: 100 | J61: 0 | K61: 1700 | L61: 2000 | M61: 1100 | N61: 900
A62: 61 | B62: علي محمد علي عبيدي | C62: 4991 | D62: 321 | E62: 321 | F62: 0 | G62: 0 | H62: 500 | I62: 100 | J62: 0 | K62: 0 | L62: 600 | M62: 500 | N62: 100
A63: 62 | B63: فيصل محمد علي عبيدي | C63: 214816 | D63: 898 | E63: 899 | F63: 1 | G63: 200 | H63: 1100 | I63: 100 | J63: 0 | K63: 0 | L63: 1400 | M63: 1100 | N63: 300
A64: 63 | B64: راجح علي عبده صبيحي | C64: 0 | D64: 172 | E64: 173 | F64: 1 | G64: 200 | H64: 700 | I64: 100 | J64: 0 | K64: 2100 | L64: 1000 | M64: 700 | N64: 300
A65: 64 | B65: احمد عبده زهوي | C65: 23829 | D65: 668 | E65: 669 | F65: 1 | G65: 200 | H65: 700 | I65: 100 | J65: 0 | K65: 800 | L65: 1000 | M65: 700 | N65: 300
A66: 65 | B66: جميل عبده احمد موذي | C66: 215266 | D66: 385 | E66: 396 | F66: 11 | G66: 2200 | H66: 2500 | I66: 100 | J66: 0 | K66: 3500 | L66: 4800 | M66: 2500 | N66: =(L66-M66) -> 2300
A67: 66 | B67: عبده احمد عوض موذي | C67: 0 | D67: 170 | E67: 170 | F67: =(E67-D67) -> 0 | G67: =(200*F67) -> 0 | H67: 100 | I67: 100 | J67: 0 | K67: 200 | L67: =(G67+H67+I67+J67) -> 200 | M67: 100 | N67: 100
A68: 67 | B68: امين عبده احمد موذي | C68: 0 | D68: 157 | E68: 161 | F68: 4 | G68: 800 | H68: 900 | I68: 100 | J68: 0 | K68: 1200 | L68: 1800 | M68: 900 | N68: 900
A69: 68 | B69: سالم محمد احمد موذي | C69: 66944 | D69: 0 | E69: 0 | F69: 0 | G69: 0 | H69: 100 | I69: 100 | J69: 0 | K69: 400 | L69: 200 | M69: 0 | N69: 200 | AF69: ح
A70: 69 | B70: علي محمد صديفي | C70: 205746 | D70: 20320 | E70: 20320 | F70: 0 | G70: 0 | H70: 1700 | I70: 100 | J70: 0 | K70: 0 | L70: 1800 | M70: 1700 | N70: 100
A71: 70 | B71: عبده علي محمد صديفي | C71: 0 | D71: 612 | E71: 617 | F71: 5 | G71: 1000 | H71: 1700 | I71: 100 | J71: 0 | K71: 3000 | L71: 2800 | M71: 0 | N71: 2800
A72: 71 | B72: محمد صالح احمد موذي | C72: 205680 | D72: 459 | E72: 461 | F72: 2 | G72: 400 | H72: 2100 | I72: 100 | J72: 0 | K72: 1200 | L72: 2600 | M72: 1000 | N72: 1600
A73: 72 | B73: ابراهيم صالح احمد عوض موذي | C73: 216134 | D73: 422 | E73: 428 | F73: 6 | G73: 1200 | H73: 1100 | I73: 100 | J73: 0 | K73: 2600 | L73: 2400 | M73: 1100 | N73: 1300
A74: 73 | B74: علي صالح علي صديفي | C74: 225811 | D74: 215 | E74: 215 | F74: 0 | G74: 0 | H74: 100 | I74: 100 | J74: 0 | K74: 0 | L74: 200 | M74: 0 | N74: 200
A75: 74 | B75: عبده محمد عبدالله عميرة | C75: 0 | D75: 1891 | E75: 1905 | F75: 14 | G75: 2800 | H75: 2100 | I75: 100 | J75: 0 | K75: 2100 | L75: 5000 | M75: 2100 | N75: 2900
A76: 75 | B76: احمد محمد عبدالله عميرة | C76: 0 | D76: 2945 | E76: 2965 | F76: 20 | G76: 4000 | H76: 2100 | I76: 100 | J76: 0 | K76: 2900 | L76: 6200 | M76: 2100 | N76: 4100
A77: 76 | B77: راجح احمد محمد عميرة | C77: 0 | D77: 844 | E77: 845 | F77: 1 | G77: 200 | H77: 1100 | I77: 100 | J77: 0 | K77: 100 | L77: 1400 | M77: 1100 | N77: 300
A78: 77 | B78: محمد احمد محمد عميرة | C78: 0 | D78: 228 | E78: 229 | F78: 1 | G78: 200 | H78: 500 | I78: 100 | J78: 0 | K78: 300 | L78: 800 | M78: 500 | N78: 300
A79: 78 | B79: عبدالله محمد عبدالله عميرة | C79: 214829 | D79: 1622 | E79: 1622 | F79: 0 | G79: 0 | H79: 1100 | I79: 100 | J79: 0 | K79: 0 | L79: 1200 | M79: 1100 | N79: 100
A80: 79 | B80: علي محمد عبدالله عميرة | C80: 0 | D80: 1674 | E80: 1690 | F80: 16 | G80: 3200 | H80: 3100 | I80: 100 | J80: 0 | K80: 3100 | L80: 6400 | M80: 3100 | N80: 3300
A81: 80 | B81: حيدر علي محمد عميرة | C81: 0 | D81: 550 | E81: 550 | F81: 0 | G81: 0 | H81: 900 | I81: 100 | J81: 0 | K81: 0 | L81: 1000 | M81: 900 | N81: 100
A82: 81 | B82: عايش عبدالله محمد عميرة | C82: 0 | D82: 831 | E82: 865 | F82: 34 | G82: 6800 | H82: 1100 | I82: 100 | J82: 0 | K82: 2000 | L82: 8000 | M82: 0 | N82: 8000
A83: 82 | B83: علي عبدالله محمد عميرة | C83: 0 | D83: 894 | E83: 895 | F83: 1 | G83: 200 | H83: 500 | I83: 100 | J83: 0 | K83: 2800 | L83: 800 | M83: 500 | N83: 300
A84: 83 | B84: امين عبدالله محمد عميرة | C84: 0 | D84: 86 | E84: 88 | F84: 2 | G84: 400 | H84: 500 | I84: 100 | J84: 0 | K84: 1500 | L84: 1000 | M84: 500 | N84: 500
A85: 84 | B85: ابراهيم محمد عبدالله عميرة | C85: 0 | D85: 1350 | E85: 1350 | F85: 0 | G85: 0 | H85: 4100 | I85: 100 | J85: 0 | K85: 2000 | L85: 4200 | M85: 4100 | N85: 100
A86: 85 | B86: جميل ابراهيم محمد عميرة | C86: 0 | D86: 799 | E86: 799 | F86: 0 | G86: 0 | H86: 1900 | I86: 100 | J86: 0 | K86: 0 | L86: 2000 | M86: 1900 | N86: 100
A87: 86 | B87: فواز علي محمد صديفي | C87: 205676 | D87: 903 | E87: 907 | F87: 4 | G87: 800 | H87: 300 | I87: 100 | J87: 0 | K87: 0 | L87: 1200 | M87: 300 | N87: 900
A88: 87 | B88: علي يحيى محمد عميرة | C88: 0 | D88: 230 | E88: 230 | F88: 0 | G88: 0 | H88: 500 | I88: 100 | J88: 0 | K88: 0 | L88: 600 | M88: 0 | N88: 600
A89: 88 | B89: عبده محمد زايد سعيد | C89: 215847 | D89: 1802 | E89: 1823 | F89: 21 | G89: 4200 | H89: 4500 | I89: 100 | J89: 0 | K89: 3000 | L89: 8800 | M89: 4500 | N89: 4300
A90: 89 | B90: خالد محمد زايد سعيد | C90: 0 | D90: 635 | E90: 641 | F90: 6 | G90: 1200 | H90: 1300 | I90: 100 | J90: 0 | K90: 1500 | L90: 2600 | M90: 1300 | N90: 1300
A91: 90 | B91: محرم سعيد زايد سعيد | C91: 0 | D91: 50 | E91: 50 | F91: 0 | G91: 0 | H91: 4100 | I91: 100 | J91: 0 | K91: 0 | L91: 4200 | M91: 4100 | N91: 100
A92: 91 | B92: هائل سعيد زايد سعيد | C92: 0 | D92: 21 | E92: 32 | F92: 11 | G92: 2200 | H92: 1500 | I92: 100 | J92: 0 | K92: 0 | L92: 3800 | M92: 1500 | N92: 2300
A93: 92 | B93: حمود سعيد زايد سعيد | C93: 0 | D93: 1013 | E93: 1013 | F93: 0 | G93: 0 | H93: 100 | I93: 100 | J93: 0 | K93: 0 | L93: 200 | M93: 100 | N93: 100
A94: 93 | B94: سعيد سليمان محمد سليمان | C94: 0 | D94: 794 | E94: 799 | F94: 5 | G94: 1000 | H94: 2900 | I94: 100 | J94: 0 | K94: 3400 | L94: 4000 | M94: 2900 | N94: 1100
A95: 94 | B95: محمد سليمان محمد سليمان | C95: 213414 | D95: 855 | E95: 861 | F95: 6 | G95: 1200 | H95: 1100 | I95: 100 | J95: 0 | K95: 1500 | L95: 2400 | M95: 1100 | N95: 1300
A96: 95 | B96: أحمد سليمان محمد سليمان | C96: 215807 | D96: 659 | E96: 666 | F96: 7 | G96: 1400 | H96: 1700 | I96: 100 | J96: 0 | K96: 1100 | L96: 3200 | M96: 1700 | N96: 1500
A97: 96 | B97: سليمان محمد سليمان | C97: 216297 | D97: 976 | E97: 988 | F97: 12 | G97: 2400 | H97: 1300 | I97: 100 | J97: 0 | K97: 1250 | L97: 3800 | M97: 1300 | N97: 2500
A98: 97 | B98: صالح محمد سليمان | C98: 213404 | D98: 1118 | E98: 1121 | F98: 3 | G98: 600 | H98: 500 | I98: 100 | J98: 0 | K98: 1100 | L98: 1200 | M98: 500 | N98: 700
A99: 98 | B99: نبيل صالح محمد سليمان | C99: 0 | D99: 662 | E99: 668 | F99: 6 | G99: 1200 | H99: 900 | I99: 100 | J99: 0 | K99: 1000 | L99: 2200 | M99: 900 | N99: 1300
A100: 99 | B100: فضل صالح محمد سليمان | C100: 0 | D100: 315 | E100: 315 | F100: 0 | G100: 0 | H100: 900 | I100: 100 | J100: 0 | K100: 100 | L100: 1000 | M100: 900 | N100: 100
A101: 100 | B101: عبدالله صالح محمد سليمان | C101: 2778 | D101: 394 | E101: 399 | F101: 5 | G101: 1000 | H101: 900 | I101: 100 | J101: 0 | K101: 700 | L101: 2000 | M101: 900 | N101: 1100
A102: 101 | B102: بسام صالح محمد سليمان | C102: 28049 | D102: 311 | E102: 321 | F102: 10 | G102: 2000 | H102: 1300 | I102: 100 | J102: 0 | K102: 1900 | L102: 3400 | M102: 1300 | N102: 2100
A103: 102 | B103: علي صالح محمد سليمان | C103: 212566 | D103: 756 | E103: 761 | F103: 5 | G103: 1000 | H103: 1500 | I103: 100 | J103: 0 | K103: 700 | L103: 2600 | M103: 1500 | N103: 1100
A104: 103 | B104: اسماعيل صالح محمد سليمان | C104: 0 | D104: 143 | E104: 149 | F104: 6 | G104: 1200 | H104: 500 | I104: 100 | J104: 0 | K104: 900 | L104: 1800 | M104: 500 | N104: 1300
A105: 104 | B105: فهد عبده محمد سليمان | C105: 210659 | D105: 637 | E105: 642 | F105: 5 | G105: 1000 | H105: 1700 | I105: 100 | J105: 0 | K105: 2000 | L105: 2800 | M105: 1700 | N105: 1100
A106: 105 | B106: جميل عبده محمد سليمان | C106: 0 | D106: 775 | E106: 793 | F106: 18 | G106: 3600 | H106: 1100 | I106: 100 | J106: 0 | K106: 2500 | L106: 4800 | M106: 1100 | N106: 3700
A107: 106 | B107: خالد عبده محمد سليمان | C107: 0 | D107: 23 | E107: 29 | F107: 6 | G107: 1200 | H107: 1300 | I107: 100 | J107: 0 | K107: 900 | L107: 2600 | M107: 1300 | N107: 1300
A108: 107 | B108: رياض علي محمد سليمان | C108: 210906 | D108: 798 | E108: 805 | F108: 7 | G108: 1400 | H108: 1500 | I108: 100 | J108: 0 | K108: 1300 | L108: 3000 | M108: 1500 | N108: 1500
A109: 108 | B109: أحمد محمد محمد زوقري | C109: 216560 | D109: 892 | E109: 899 | F109: 7 | G109: 1400 | H109: 1900 | I109: 100 | J109: 0 | K109: 0 | L109: 3400 | M109: 1900 | N109: 1500
A110: 109 | B110: فهبم أحمد محمد زوقري | C110: 120662 | D110: 1047 | E110: 1062 | F110: 15 | G110: 3000 | H110: 2900 | I110: 100 | J110: 0 | K110: 2500 | L110: 6000 | M110: 2900 | N110: 3100
A111: 110 | B111: صالح أحمد محمد زوقري | C111: 23286 | D111: 475 | E111: 489 | F111: 14 | G111: 2800 | H111: 3100 | I111: 100 | J111: 0 | K111: 2100 | L111: 6000 | M111: 0 | N111: 6000
A112: 111 | B112: خالد أحمد محمد زوقري | C112: 212318 | D112: 483 | E112: 489 | F112: 6 | G112: 1200 | H112: 1900 | I112: 100 | J112: 0 | K112: 1300 | L112: 3200 | M112: 1900 | N112: 1300
A113: 112 | B113: سعيد أحمد زوقري | C113: 211208 | D113: 966 | E113: 979 | F113: 13 | G113: 2600 | H113: 2300 | I113: 100 | J113: 0 | K113: 2100 | L113: 5000 | M113: 2300 | N113: 2700
A114: 113 | B114: منير أحمد محمد زوقري | C114: 12298 | D114: 588 | E114: 594 | F114: 6 | G114: 1200 | H114: 1500 | I114: 100 | J114: 0 | K114: 1700 | L114: 2800 | M114: 1500 | N114: 1300
A115: 114 | B115: محمد علي محمد زوقري | C115: 212906 | D115: 10524 | E115: 10530 | F115: 6 | G115: 1200 | H115: 1300 | I115: 100 | J115: 0 | K115: 1100 | L115: 2600 | M115: 1300 | N115: 1300
A116: 115 | B116: سعيد محمد زوقري | C116: 216864 | D116: 653 | E116: 660 | F116: 7 | G116: 1400 | H116: 1700 | I116: 100 | J116: 0 | K116: 1100 | L116: 3200 | M116: 1700 | N116: 1500
A117: 116 | B117: عوض عبدالله زوقري | C117: 211821 | D117: 506 | E117: 512 | F117: 6 | G117: 1200 | H117: 1500 | I117: 100 | J117: 0 | K117: 1100 | L117: 2800 | M117: 1500 | N117: 1300
A118: 117 | B118: محمد عبدالله زوقري | C118: 0 | D118: 59 | E118: 75 | F118: 16 | G118: 3200 | H118: 2500 | I118: 100 | J118: 0 | K118: 6000 | L118: 5800 | M118: 2500 | N118: 3300
A119: 118 | B119: عبدالله محمد زوقري | C119: 215874 | D119: 541 | E119: 549 | F119: 8 | G119: 1600 | H119: 1300 | I119: 100 | J119: 0 | K119: 1300 | L119: 3000 | M119: 1300 | N119: 1700
A120: 119 | B120: عايد علي محمد زوقري | C120: 210997 | D120: 552 | E120: 560 | F120: 8 | G120: 1600 | H120: 2100 | I120: 100 | J120: 0 | K120: 0 | L120: 3800 | M120: 2100 | N120: 1700
A121: 120 | B121: نبيل علي محمد زوقري | C121: 213803 | D121: 978 | E121: 986 | F121: 8 | G121: 1600 | H121: 1300 | I121: 100 | J121: 0 | K121: 1700 | L121: 3000 | M121: 1300 | N121: 1700
A122: 121 | B122: أحمد علي محمد زوقري | C122: 210930 | D122: 716 | E122: 725 | F122: 9 | G122: 1800 | H122: 1700 | I122: 100 | J122: 0 | K122: 1300 | L122: 3600 | M122: 1700 | N122: 1900
A123: 122 | B123: عبدالعزيز محمد سكندر | C123: 215304 | D123: 634 | E123: 643 | F123: 9 | G123: 1800 | H123: 2100 | I123: 100 | J123: 0 | K123: 2700 | L123: 4000 | M123: 2100 | N123: 1900
A124: 123 | B124: عبدالله محمد سكندر | C124: 212503 | D124: 465 | E124: 467 | F124: 2 | G124: 400 | H124: 900 | I124: 100 | J124: 0 | K124: 0 | L124: 1400 | M124: 900 | N124: 500
A125: 124 | B125: أحمد محمد سكندر | C125: 883 | D125: 10 | E125: 12 | F125: 2 | G125: 400 | H125: 300 | I125: 100 | J125: 0 | K125: 0 | L125: 800 | M125: 300 | N125: 500
A126: 125 | B126: محمد عبده علي زوقري | C126: 212981 | D126: 454 | E126: 459 | F126: 5 | G126: 1000 | H126: 1500 | I126: 100 | J126: 0 | K126: 0 | L126: 2600 | M126: 1500 | N126: 1100
A127: 126 | B127: محمد أحمد قبصي | C127: 212367 | D127: 704 | E127: 710 | F127: 6 | G127: 1200 | H127: 1100 | I127: 100 | J127: 0 | K127: 1100 | L127: 2400 | M127: 1100 | N127: 1300
A128: 127 | B128: علي محمد أحمد قبصي | C128: 211376 | D128: 498 | E128: 502 | F128: 4 | G128: 800 | H128: 700 | I128: 100 | J128: 0 | K128: 900 | L128: 1600 | M128: 0 | N128: 1600
A129: 128 | B129: أحمد محمد أحمد قبصي | C129: 354 | D129: 223 | E129: 229 | F129: 6 | G129: 1200 | H129: 900 | I129: 100 | J129: 0 | K129: 400 | L129: 2200 | M129: 900 | N129: 1300
A130: 129 | B130: نشوان محمد أحمد قبصي | C130: 205948 | D130: 591 | E130: 598 | F130: 7 | G130: 1400 | H130: 1300 | I130: 100 | J130: 0 | K130: 1900 | L130: 2800 | M130: 1300 | N130: =(L130-M130) -> 1500
A131: 130 | B131: رزق محمد قبصي | C131: 0 | D131: 213 | E131: 215 | F131: =(E131-D131) -> 2 | G131: =(200*F131) -> 400 | H131: 1500 | I131: 100 | J131: 0 | K131: 1100 | L131: =(G131+H131+I131+J131) -> 2000 | M131: 1500 | N131: 500
A132: 131 | B132: سمير محمد قبصي | C132: 320319 | D132: 107 | E132: 109 | F132: 2 | G132: 400 | H132: 2100 | I132: 100 | J132: 0 | K132: 1500 | L132: 2600 | M132: 0 | N132: 2600
A133: 132 | B133: إبراهيم سعيد زيد | C133: 0 | D133: 210 | E133: 210 | F133: 0 | G133: 0 | H133: 300 | I133: 100 | J133: 0 | K133: 600 | L133: 400 | M133: 0 | N133: 400
A134: 133 | B134: محمد عبدالله زيد | C134: 0 | D134: 191 | E134: 199 | F134: 8 | G134: 1600 | H134: 2700 | I134: 100 | J134: 0 | K134: 3000 | L134: 4400 | M134: 2500 | N134: 1900
A135: 134 | B135: سعيد زيد حكيمي | C135: 215226 | D135: 11411 | E135: 11411 | F135: 0 | G135: 0 | H135: 100 | I135: 100 | J135: 0 | K135: 0 | L135: 200 | M135: 100 | N135: 100
A136: 135 | B136: أحمد عبدالله زيد | C136: 12064 | D136: 10332 | E136: 10332 | F136: 0 | G136: 0 | H136: 100 | I136: 100 | J136: 0 | K136: 0 | L136: 200 | M136: 100 | N136: 100
A137: 136 | B137: عوض محمد قاسم قحيم | C137: 204006 | D137: 1249 | E137: 1249 | F137: 0 | G137: 0 | H137: 100 | I137: 100 | J137: 0 | K137: 0 | L137: 200 | M137: 0 | N137: 200
A138: 137 | B138: مجيد محمد قاسم قحيم | C138: 2959 | D138: 520 | E138: 521 | F138: 1 | G138: 200 | H138: 1700 | I138: 100 | J138: 0 | K138: 0 | L138: 2000 | M138: 0 | N138: 2000
A139: 138 | B139: صدام محمد قاسم | C139: 210984 | D139: 626 | E139: 628 | F139: 2 | G139: 400 | H139: 300 | I139: 100 | J139: 0 | K139: 0 | L139: 800 | M139: 0 | N139: 800
A140: 139 | B140: أحمد زيد حكيمي | C140: 206063 | D140: 726 | E140: 728 | F140: 2 | G140: 400 | H140: 1100 | I140: 100 | J140: 0 | K140: 0 | L140: 1600 | M140: 0 | N140: 1600
A141: 140 | B141: علي عبدالله زيد | C141: 213406 | D141: 961 | E141: 969 | F141: 8 | G141: 1600 | H141: 1700 | I141: 100 | J141: 0 | K141: 1500 | L141: 3400 | M141: 0 | N141: 3400
A142: 141 | B142: عبدالله محمد علي قحيم | C142: 214766 | D142: 1450 | E142: 1462 | F142: 12 | G142: 2400 | H142: 1900 | I142: 100 | J142: 0 | K142: 100 | L142: 4400 | M142: 1900 | N142: 2500
A143: 142 | B143: علي بن علي عوض مدردر | C143: 0 | D143: 16 | E143: 19 | F143: 3 | G143: 600 | H143: 700 | I143: 100 | J143: 0 | K143: 700 | L143: 1400 | M143: 700 | N143: 700
A144: 143 | B144: بديع عوض علي مدردر | C144: 212529 | D144: 1025 | E144: 1036 | F144: 11 | G144: 2200 | H144: 1300 | I144: 100 | J144: 0 | K144: 3600 | L144: 3600 | M144: 1300 | N144: 2300
A145: 144 | B145: حبيب أحمد علي مدردر | C145: 214623 | D145: 861 | E145: 867 | F145: 6 | G145: 1200 | H145: 100 | I145: 100 | J145: 0 | K145: 1500 | L145: 1400 | M145: 100 | N145: 1300
A146: 145 | B146: محمد أحمد علي مدردر | C146: 210452 | D146: 365 | E146: 373 | F146: 8 | G146: 1600 | H146: 700 | I146: 100 | J146: 0 | K146: 3600 | L146: 2400 | M146: 700 | N146: 1700
A147: 146 | B147: مصعب سعيد مدردر | C147: 210916 | D147: 562 | E147: 567 | F147: 5 | G147: 1000 | H147: 1100 | I147: 100 | J147: 0 | K147: 3000 | L147: 2200 | M147: 0 | N147: 2200
A148: 147 | B148: علي عبدالله علي قحيم | C148: 8102008 | D148: 80 | E148: 96 | F148: 16 | G148: 3200 | H148: 3500 | I148: 100 | J148: 0 | K148: 9200 | L148: 6800 | M148: 3500 | N148: 3300
A149: 148 | B149: تقي محمد علي قحيم | C149: 140887 | D149: 44 | E149: 54 | F149: 10 | G149: 2000 | H149: 1900 | I149: 100 | J149: 0 | K149: 1900 | L149: 4000 | M149: 1900 | N149: 2100
A150: 149 | B150: صلاح محمد علي قحيم | C150: 211616 | D150: 686 | E150: 693 | F150: 7 | G150: 1400 | H150: 1100 | I150: 100 | J150: 0 | K150: 3200 | L150: 2600 | M150: 1000 | N150: 1600
A151: 150 | B151: علي أحمد عليقحيم | C151: 214699 | D151: 0 | E151: 2 | F151: 2 | G151: 400 | H151: 2900 | I151: 100 | J151: 0 | K151: 0 | L151: 3400 | M151: 2900 | N151: 500
A152: 151 | B152: عبده علي هواش | C152: 4980 | D152: 225 | E152: 229 | F152: 4 | G152: 800 | H152: 500 | I152: 100 | J152: 0 | K152: 1100 | L152: 1400 | M152: 500 | N152: 900
A153: 152 | B153: سعيدعلي علي محلي | C153: 215707 | D153: 1063 | E153: 1068 | F153: 5 | G153: 1000 | H153: 900 | I153: 100 | J153: 0 | K153: 0 | L153: 2000 | M153: 900 | N153: 1100
A154: 153 | B154: أحمد علي علي محلي | C154: 210766 | D154: 1484 | E154: 1489 | F154: 5 | G154: 1000 | H154: 300 | I154: 100 | J154: 0 | K154: 900 | L154: 1400 | M154: 300 | N154: 1100
A155: 154 | B155: محمد علي علي محلي | C155: 215439 | D155: 425 | E155: 428 | F155: 3 | G155: 600 | H155: 3300 | I155: 100 | J155: 0 | K155: 1500 | L155: 4000 | M155: 0 | N155: 4000
A156: 155 | B156: عبده سعيد سراجي | C156: 215549 | D156: 719 | E156: 728 | F156: 9 | G156: 1800 | H156: 1300 | I156: 100 | J156: 0 | K156: 2100 | L156: 3200 | M156: 1300 | N156: 1900
A157: 156 | B157: عبدالله علي علي محلي | C157: 214676 | D157: 722 | E157: 730 | F157: 8 | G157: 1600 | H157: 1300 | I157: 100 | J157: 0 | K157: 1900 | L157: 3000 | M157: 1300 | N157: 1700
A158: 157 | B158: محمد حيدر علي محلي | C158: 213116 | D158: 21149 | E158: 21149 | F158: 0 | G158: 0 | H158: 2100 | I158: 100 | J158: 0 | K158: 0 | L158: 2200 | M158: 2100 | N158: 100
A159: 158 | B159: فضل يوسف محلي | C159: 11480 | D159: 491 | E159: 494 | F159: 3 | G159: 600 | H159: 900 | I159: 100 | J159: 0 | K159: 1400 | L159: 1600 | M159: 900 | N159: 700
A160: 159 | B160: علي زيد حكيمي | C160: 212538 | D160: 863 | E160: 879 | F160: 16 | G160: 3200 | H160: 3300 | I160: 100 | J160: 0 | K160: 0 | L160: 6600 | M160: 3000 | N160: 3600
A161: 160 | B161: يوسف علي محلي | C161: 211683 | D161: 488 | E161: 493 | F161: 5 | G161: 1000 | H161: 1300 | I161: 100 | J161: 0 | K161: 0 | L161: 2400 | M161: 0 | N161: 2400
A162: 161 | B162: أحمد حيدر علي محلي | C162: 888990 | D162: 257 | E162: 266 | F162: 9 | G162: 1800 | H162: 1900 | I162: 100 | J162: 0 | K162: 1300 | L162: 3800 | M162: 1900 | N162: 1900
A163: 162 | B163: علي حيدر علي محلي | C163: 215295 | D163: 780 | E163: 786 | F163: 6 | G163: 1200 | H163: 100 | I163: 100 | J163: 0 | K163: 1100 | L163: 1400 | M163: 0 | N163: 1400
A164: 163 | B164: مسجد أحمد حيدر علي | C164: 0 | D164: 50 | E164: 73 | F164: 23 | G164: 4600 | H164: 2100 | I164: 100 | J164: 0 | K164: 500 | L164: 6800 | M164: 2100 | N164: 4700
A165: 164 | B165: نبيل عبدالله زايد | C165: 12153 | D165: 202 | E165: 215 | F165: 13 | G165: 2600 | H165: 2100 | I165: 100 | J165: 0 | K165: 4000 | L165: 4800 | M165: 2100 | N165: 2700
A166: 165 | B166: حيدر سعيد سالم حكيمي | C166: 205778 | D166: 1242 | E166: 1254 | F166: 12 | G166: 2400 | H166: 2500 | I166: 100 | J166: 0 | K166: 2000 | L166: 5000 | M166: 2500 | N166: 2500
A167: 166 | B167: عبدالله علي عميره | C167: 705591 | D167: 900 | E167: 900 | F167: 0 | G167: 0 | H167: 2100 | I167: 100 | J167: 0 | K167: 4000 | L167: 2200 | M167: 2000 | N167: 200
A168: 167 | B168: محمد علي عبدالله عميره | C168: 705527 | D168: 0 | E168: 5 | F168: 5 | G168: 1000 | H168: 1900 | I168: 100 | J168: 0 | K168: 5000 | L168: 3000 | M168: 1900 | N168: 1100
A169: 168 | B169: علي سعيد عميره | C169: 700869 | D169: 260 | E169: 260 | F169: 0 | G169: 0 | H169: 1700 | I169: 100 | J169: 0 | K169: 0 | L169: 1800 | M169: 1500 | N169: 300
A170: 169 | B170: صديق هايل عميره | C170: 705530 | D170: 190 | E170: 199 | F170: 9 | G170: 1800 | H170: 1700 | I170: 100 | J170: 0 | K170: 2000 | L170: 3600 | M170: 1500 | N170: 2100
A171: 170 | B171: بديع علي عبدالله عميره | C171: 0 | D171: 110 | E171: 111 | F171: 1 | G171: 200 | H171: 1700 | I171: 100 | J171: 0 | K171: 2000 | L171: 2000 | M171: 0 | N171: 2000
A172: 171 | B172: محمد ناجي عميره | C172: 0 | D172: 36 | E172: 49 | F172: 13 | G172: 2600 | H172: 4700 | I172: 100 | J172: 0 | K172: 1500 | L172: 7400 | M172: 3000 | N172: 4400
A173: 172 | B173: فؤاد سعيد عميره | C173: 708088 | D173: 1029 | E173: 1029 | F173: 0 | G173: 0 | H173: 100 | I173: 100 | J173: 0 | K173: 8200 | L173: 200 | M173: 0 | N173: 200
A174: 173 | B174: سعيد يحيى صديفي | C174: 0 | D174: 1417 | E174: 1424 | F174: 7 | G174: 1400 | H174: 900 | I174: 100 | J174: 0 | K174: 0 | L174: 2400 | M174: 0 | N174: 2400
A175: 174 | B175: واتح يحيى صديفي | C175: 215666 | D175: 11368 | E175: 11368 | F175: 0 | G175: 0 | H175: 1100 | I175: 100 | J175: 0 | K175: 0 | L175: 1200 | M175: 500 | N175: 700
A176: 175 | B176: عبداللطيف يحيى صديفي | C176: 0 | D176: 41 | E176: 52 | F176: 11 | G176: 2200 | H176: 3500 | I176: 100 | J176: 0 | K176: 3100 | L176: 5800 | M176: 3500 | N176: 2300
A177: 176 | B177: سالم راجح محمد صديفي | C177: 211249 | D177: 1164 | E177: 1178 | F177: 14 | G177: 2800 | H177: 2100 | I177: 100 | J177: 0 | K177: 5400 | L177: 5000 | M177: 2100 | N177: 2900
A178: 177 | B178: الزراعي راجح محمد صديفي | C178: 211665 | D178: 973 | E178: 977 | F178: 4 | G178: 800 | H178: 1700 | I178: 100 | J178: 0 | K178: 3000 | L178: 2600 | M178: 1700 | N178: 900
A179: 178 | B179: سعيد راجح صديفي | C179: 0 | D179: 7 | E179: 10 | F179: 3 | G179: 600 | H179: 300 | I179: 100 | J179: 0 | K179: 1000 | L179: 1000 | M179: 300 | N179: 700
A180: 179 | B180: عبده يحيى صديفي | C180: 214829 | D180: 873 | E180: 873 | F180: 0 | G180: 0 | H180: 300 | I180: 100 | J180: 0 | K180: 0 | L180: 400 | M180: 0 | N180: 400
A181: 180 | B181: همام يحيى صديفي | C181: 0 | D181: 80081 | E181: 80086 | F181: 5 | G181: 1000 | H181: 2500 | I181: 100 | J181: 0 | K181: 3350 | L181: 3600 | M181: 1500 | N181: 2100
A182: 181 | B182: عبدالله محمد حكيمي | C182: 3738237 | D182: 389 | E182: 389 | F182: 0 | G182: 0 | H182: 2300 | I182: 100 | J182: 0 | K182: 0 | L182: 2400 | M182: 0 | N182: 2400
A183: 182 | B183: خليل سالم خشب | C183: 215354 | D183: 385 | E183: 385 | F183: 0 | G183: 0 | H183: 1500 | I183: 100 | J183: 0 | K183: 0 | L183: 1600 | M183: 0 | N183: 1600
A184: 183 | B184: علاوي سعيد حكيمي | C184: 3738220 | D184: 445 | E184: 445 | F184: 0 | G184: 0 | H184: 3100 | I184: 100 | J184: 0 | K184: 0 | L184: 3200 | M184: 0 | N184: 3200
A185: 184 | B185: أحمد علي هكي | C185: 215226 | D185: 1157 | E185: 1161 | F185: 4 | G185: 800 | H185: 900 | I185: 100 | J185: 0 | K185: 2000 | L185: 1800 | M185: 0 | N185: 1800
A186: 185 | B186: أنور حمادي قحيم | C186: 0 | D186: 7 | E186: 7 | F186: 0 | G186: 0 | H186: 500 | I186: 100 | J186: 0 | K186: 0 | L186: 600 | M186: 500 | N186: 100
A187: 186 | B187: محمد محمد ثابت قحيم | C187: 0 | D187: 11 | E187: 15 | F187: 4 | G187: 800 | H187: 500 | I187: 100 | J187: 0 | K187: 2100 | L187: 1400 | M187: 500 | N187: 900
A188: 187 | B188: أحمد علي قلقلي | C188: 211687 | D188: 624 | E188: 627 | F188: 3 | G188: 600 | H188: 900 | I188: 100 | J188: 0 | K188: 2200 | L188: 1600 | M188: 900 | N188: 700
A189: 188 | B189: محمد علي قلقلي | C189: 0 | D189: 24 | E189: 29 | F189: 5 | G189: 1000 | H189: 1300 | I189: 100 | J189: 0 | K189: 2400 | L189: 2400 | M189: 1300 | N189: 1100
A190: 189 | B190: علي عبدالله زوقري | C190: 1470295 | D190: 20 | E190: 26 | F190: 6 | G190: 1200 | H190: 700 | I190: 100 | J190: 0 | K190: 900 | L190: 2000 | M190: 700 | N190: 1300
A191: 190 | B191: محمد بن محمد زوقري | C191: 215360 | D191: 597 | E191: 600 | F191: 3 | G191: 600 | H191: 700 | I191: 100 | J191: 0 | K191: 700 | L191: 1400 | M191: 700 | N191: 700
A192: 191 | B192: حمدي أحمد علي زوقري | C192: 26812 | D192: 59 | E192: 59 | F192: 0 | G192: 0 | H192: 100 | I192: 100 | J192: 0 | K192: 0 | L192: 200 | M192: 0 | N192: 200
A193: 192 | B193: ذاكر يحيى محمد زوقري | C193: 1134 | D193: 156 | E193: 165 | F193: 9 | G193: 1800 | H193: 1900 | I193: 100 | J193: 0 | K193: 0 | L193: 3800 | M193: 0 | N193: 3800
A194: 193 | B194: عبده محمد زوقري | C194: 211236 | D194: 998 | E194: 1010 | F194: 12 | G194: 2400 | H194: 2500 | I194: 100 | J194: 0 | K194: 1900 | L194: 5000 | M194: 2500 | N194: =(L194-M194) -> 2500
A195: 194 | B195: يحيى محمد زوقري | C195: 211088 | D195: 81221 | E195: 81233 | F195: =(E195-D195) -> 12 | G195: =(200*F195) -> 2400 | H195: 2300 | I195: 100 | J195: 0 | K195: 0 | L195: =(G195+H195+I195+J195) -> 4800 | M195: 0 | N195: 4800
A196: 195 | B196: عبده يحيى محمد زوقري | C196: 211397 | D196: 436 | E196: 437 | F196: 1 | G196: 200 | H196: 300 | I196: 100 | J196: 0 | K196: 0 | L196: 600 | M196: 0 | N196: 600
A197: 196 | B197: مجد علي زوقري | C197: 24470 | D197: 389 | E197: 398 | F197: 9 | G197: 1800 | H197: 1900 | I197: 100 | J197: 0 | K197: 4100 | L197: 3800 | M197: 1900 | N197: 1900
A198: 197 | B198: عبدالله علي محمد زوقري | C198: 24067 | D198: 152 | E198: 156 | F198: 4 | G198: 800 | H198: 700 | I198: 100 | J198: 0 | K198: 0 | L198: 1600 | M198: 700 | N198: 900
A199: 198 | B199: علي عبدالله زوقري | C199: 212844 | D199: 306 | E199: 306 | F199: 0 | G199: 0 | H199: 100 | I199: 100 | J199: 0 | K199: 0 | L199: 200 | M199: 100 | N199: 100
A200: 199 | B200: عبده علي محمد زوقري | C200: 212932 | D200: 745 | E200: 750 | F200: 5 | G200: 1000 | H200: 1500 | I200: 100 | J200: 0 | K200: 3800 | L200: 2600 | M200: 0 | N200: 2600
... 46 more rows

Sheet كشف قراءه يوليو (3)
A1: م | B1: اسم المشترك | C1: رقم العداد | D1: السابقة | E1: الحالية | F1: فارق القراءة | G1: قيمة المياه | H1: الرصيد السابق | I1: اشتراك شهري | J1: اخرى | K1: المدفوع حتى31-8-2018 | L1: إجمالي المبلغ | M1: المدفوع | N1: المتبقي
A2: 1 | B2: زيد عمر ناجي محمد | C2: 211117 | D2: 8108 | E2: 8108 | F2: =(E2-D2) -> 0 | G2: =(250*F2) -> 0 | H2: 3100 | I2: 100 | J2: 0 | K2: 100 | L2: =(G2+H2+I2+J2) -> 3200 | M2: =K2 -> 100 | N2: =(L2-M2) -> 3100 | IV2: =SUM(A2:IU2) -> 237034
A3: 2 | B3: زيد عمر ناجي محمد | C3: 38203 | D3: 3437 | E3: 3505 | F3: =(E3-D3) -> 68 | G3: =(250*F3) -> 17000 | H3: 15300 | I3: 100 | J3: 0 | K3: 15300 | L3: =(G3+H3+I3+J3) -> 32400 | M3: =K3 -> 15300 | N3: 17100
A4: 1 | B4: زيد عمر ناجي محمد | C4: 214929 | D4: 3801 | E4: 3904 | F4: 103 | G4: 25750 | H4: 9300 | I4: 100 | J4: 0 | K4: 9300 | L4: 35150 | M4: 9300 | N4: 25850
A5: 4 | B5: زيد عمر ناجي محمد | C5: 11841 | D5: 6789 | E5: 6834 | F5: 45 | G5: 11250 | H5: 7100 | I5: 100 | J5: 0 | K5: 7100 | L5: 18450 | M5: 7100 | N5: 11350
A6: 5 | B6: زيد عمر ناجي محمد | C6: 213121 | D6: 34045 | E6: 34045 | F6: 0 | G6: 0 | H6: 3100 | I6: 100 | J6: 0 | K6: 100 | L6: 3200 | M6: 100 | N6: 3100
A7: 6 | B7: مختار عمر ناجي محمد | C7: 210780 | D7: 1082 | E7: 1082 | F7: 0 | G7: 0 | H7: 3100 | I7: 100 | J7: 0 | K7: 100 | L7: 3200 | M7: 100 | N7: 3100
A8: 7 | B8: صالح عمر ناجي محمد | C8: 210954 | D8: 1625 | E8: 1669 | F8: 44 | G8: 11000 | H8: 100 | I8: 100 | J8: 0 | K8: 100 | L8: 11200 | M8: 100 | N8: 11100
A9: 8 | B9: صلاح عمر ناجي محمد | C9: 3738 | D9: 3224 | E9: 3224 | F9: 0 | G9: 0 | H9: 100 | I9: 100 | J9: 0 | K9: 100 | L9: 200 | M9: 100 | N9: 100
A10: 9 | B10: سعيد عباد سراجي | C10: 215329 | D10: 2153 | E10: 2165 | F10: 12 | G10: 3000 | H10: 100 | I10: 100 | J10: 0 | K10: 100 | L10: 3200 | M10: 100 | N10: 3100
A11: 10 | B11: احمد علي ناجي محمد | C11: 214222 | D11: 689 | E11: 689 | F11: 0 | G11: 0 | H11: 3000 | I11: 100 | J11: 0 | K11: 3000 | L11: 3100 | M11: 3000 | N11: 100
A12: 11 | B12: عبده علي ناجي محمد | C12: 210918 | D12: 1153 | E12: 1158 | F12: 5 | G12: 1250 | H12: 4100 | I12: 100 | J12: 0 | K12: 1400 | L12: 5450 | M12: 1400 | N12: 4050
A13: 12 | B13: علي بن علي ناجي محمد | C13: 210984 | D13: 1982 | E13: 1999 | F13: 17 | G13: 4250 | H13: 3000 | I13: 100 | J13: 0 | K13: 3000 | L13: 7350 | M13: 3000 | N13: 4350
A14: 13 | B14: صالح علي ناجي محمد | C14: 0 | D14: 78 | E14: 93 | F14: 15 | G14: 3750 | H14: 4700 | I14: 100 | J14: 0 | K14: 4700 | L14: 8550 | M14: 4700 | N14: 3850
A15: 14 | B15: عمرو ناجي علي ناجي | C15: 11356 | D15: 259 | E15: 293 | F15: 34 | G15: 8500 | H15: 500 | I15: 100 | J15: 0 | K15: 500 | L15: 9100 | M15: 500 | N15: 8600
A16: 15 | B16: معاذ ناجي علي ناجي | C16: 0 | D16: 58 | E16: 61 | F16: 3 | G16: 750 | H16: 400 | I16: 100 | J16: 0 | K16: 500 | L16: 1250 | M16: 500 | N16: 750
A17: 16 | B17: عماد ناجي علي ناجي | C17: 58146 | D17: 95 | E17: 99 | F17: 4 | G17: 1000 | H17: 500 | I17: 100 | J17: 0 | K17: 500 | L17: 1600 | M17: 500 | N17: 1100
A18: 17 | B18: طارق ناجي علي ناجي | C18: 0 | D18: 35 | E18: 35 | F18: 0 | G18: 0 | H18: 300 | I18: 100 | J18: 0 | K18: 300 | L18: 400 | M18: 300 | N18: 100
A19: 18 | B19: محمد سالم احمد ناجي | C19: 0 | D19: 3 | E19: 7 | F19: 4 | G19: 1000 | H19: 800 | I19: 100 | J19: 0 | K19: 0 | L19: 1900 | M19: 0 | N19: 1900
A20: 19 | B20: ناجي علي ناجي محمد | C20: 215095 | D20: 441 | E20: 450 | F20: 9 | G20: 2250 | H20: 1900 | I20: 100 | J20: 0 | K20: 1900 | L20: 4250 | M20: 1900 | N20: 2350
A21: 20 | B21: محمد ناجي علي ناجي | C21: 216316 | D21: 894 | E21: 902 | F21: 8 | G21: 2000 | H21: 2500 | I21: 100 | J21: 0 | K21: 2500 | L21: 4600 | M21: 2500 | N21: 2100
A22: 21 | B22: احمد ناجي علي ناجي | C22: 214892 | D22: 419 | E22: 423 | F22: 4 | G22: 1000 | H22: 700 | I22: 100 | J22: 0 | K22: 700 | L22: 1800 | M22: 700 | N22: 1100
A23: 22 | B23: علي ناجي علي ناجي | C23: 212438 | D23: 747 | E23: 752 | F23: 5 | G23: 1250 | H23: 1300 | I23: 100 | J23: 0 | K23: 1350 | L23: 2650 | M23: 1350 | N23: 1300
A24: 23 | B24: محمد علي ناجي محمد | C24: 212781 | D24: 1537 | E24: 1548 | F24: 11 | G24: 2750 | H24: 2450 | I24: 100 | J24: 0 | K24: 2450 | L24: 5300 | M24: 2450 | N24: 2850
A25: 24 | B25: نزار محمد علي ناجي | C25: 11381 | D25: 555 | E25: 564 | F25: 9 | G25: 2250 | H25: -700 | I25: 100 | J25: 0 | K25: 0 | L25: 1650 | M25: 0 | N25: 1650
A26: 25 | B26: معتز محمد علي ناجي | C26: 215108 | D26: 1073 | E26: 1078 | F26: 5 | G26: 1250 | H26: 1300 | I26: 100 | J26: 0 | K26: 1300 | L26: 2650 | M26: 1300 | N26: 1350
A27: 26 | B27: عبده احمد ناجي محمد | C27: 212822 | D27: 921 | E27: 932 | F27: 11 | G27: 2750 | H27: 2500 | I27: 100 | J27: 0 | K27: 2500 | L27: 5350 | M27: 2500 | N27: 2850
A28: 27 | B28: محمد احمد ناجي محمد | C28: 210912 | D28: 1897 | E28: 1908 | F28: 11 | G28: 2750 | H28: 1500 | I28: 100 | J28: 0 | K28: 1500 | L28: 4350 | M28: 1500 | N28: 2850
A29: 28 | B29: مصطفى سالم محمد ناجي | C29: 210833 | D29: 3034 | E29: 3051 | F29: 17 | G29: 4250 | H29: 3200 | I29: 100 | J29: 0 | K29: 3200 | L29: 7550 | M29: 3200 | N29: 4350
A30: 29 | B30: سعيد محمد ناجي محمد | C30: 213576 | D30: 285 | E30: 287 | F30: 2 | G30: 500 | H30: 2900 | I30: 100 | J30: 0 | K30: 2900 | L30: 3500 | M30: 2900 | N30: 600
A31: 30 | B31: علي ثابت حميدان | C31: 214446 | D31: 290 | E31: 305 | F31: 15 | G31: 3750 | H31: 3300 | I31: 100 | J31: 0 | K31: 0 | L31: 7150 | M31: 0 | N31: 7150
A32: 31 | B32: معذ محمد ثابت | C32: 210946 | D32: 21718 | E32: 21733 | F32: 15 | G32: 3750 | H32: 7200 | I32: 100 | J32: 0 | K32: 3000 | L32: 11050 | M32: 3000 | N32: 8050
A33: 32 | B33: علي سالم محمد ناجي | C33: 211161 | D33: 1158 | E33: 1170 | F33: 12 | G33: 3000 | H33: 5400 | I33: 100 | J33: 0 | K33: 5400 | L33: 8500 | M33: 5400 | N33: 3100
A34: 33 | B34: محمد سالم محمد ناجي | C34: 216243 | D34: 644 | E34: 654 | F34: 10 | G34: 2500 | H34: 4000 | I34: 100 | J34: 0 | K34: 3000 | L34: 6600 | M34: 3000 | N34: 3600
A35: 34 | B35: محمد سالم محمد ناجي | C35: 0 | D35: 0 | E35: 4 | F35: 4 | G35: 1000 | H35: 3000 | I35: 100 | J35: 0 | K35: 4000 | L35: 4100 | M35: 4000 | N35: 100
A36: 35 | B36: علي محمد طبيلي | C36: 214210 | D36: 1720 | E36: 1733 | F36: 13 | G36: 3250 | H36: 3700 | I36: 100 | J36: 0 | K36: 3300 | L36: 7050 | M36: 3300 | N36: 3750
A37: 36 | B37: ربيع علي محمد طبيلي | C37: 211153 | D37: 282 | E37: 288 | F37: 6 | G37: 1500 | H37: 1500 | I37: 100 | J37: 0 | K37: 1500 | L37: 3100 | M37: 1500 | N37: 1600
A38: 37 | B38: صلاح علي محمد طبيلي | C38: 59875 | D38: 65 | E38: 77 | F38: 12 | G38: 3000 | H38: 1700 | I38: 100 | J38: 0 | K38: 1700 | L38: 4800 | M38: 1700 | N38: 3100
A39: 38 | B39: ناجي محمد ناجي محمد | C39: 0 | D39: 1331 | E39: 1350 | F39: 19 | G39: 4750 | H39: 5200 | I39: 100 | J39: 0 | K39: 5200 | L39: 10050 | M39: 5200 | N39: 4850
A40: 39 | B40: خالد محمد ناجي محمد | C40: 0 | D40: 1760 | E40: 1762 | F40: 2 | G40: 500 | H40: 1500 | I40: 100 | J40: 0 | K40: 1500 | L40: 2100 | M40: 1500 | N40: 600
A41: 40 | B41: مصطفى سالم محمد ناجي | C41: 0 | D41: 334 | E41: 334 | F41: 0 | G41: 0 | H41: 600 | I41: 100 | J41: 0 | K41: 550 | L41: 700 | M41: 550 | N41: 150
A42: 41 | B42: احمد سعيد علي ناجي | C42: 0 | D42: 1008 | E42: 1017 | F42: 9 | G42: 2250 | H42: 1900 | I42: 100 | J42: 0 | K42: 2000 | L42: 4250 | M42: 2000 | N42: 2250
A43: 42 | B43: فضل صالح علي موذي | C43: 0 | D43: 825 | E43: 833 | F43: 8 | G43: 2000 | H43: 4800 | I43: 100 | J43: 0 | K43: 4800 | L43: 6900 | M43: 4800 | N43: 2100
A44: 43 | B44: محمد صالح علي موذي | C44: 212401 | D44: 460 | E44: 460 | F44: 0 | G44: 0 | H44: 3100 | I44: 100 | J44: 0 | K44: 1000 | L44: 3200 | M44: 1000 | N44: 2200
A45: 44 | B45: صالح علي عوض موذي | C45: 216184 | D45: 1077 | E45: 1087 | F45: 10 | G45: 2500 | H45: 1000 | I45: 100 | J45: 0 | K45: 1000 | L45: 3600 | M45: 1000 | N45: 2600
A46: 45 | B46: علي صالح علي موذي | C46: 24307 | D46: 224 | E46: 229 | F46: 5 | G46: 1250 | H46: 700 | I46: 100 | J46: 0 | K46: 700 | L46: 2050 | M46: 700 | N46: 1350
A47: 46 | B47: علي عبدالله عوض موذي | C47: 213044 | D47: 995 | E47: 1008 | F47: 13 | G47: 3250 | H47: 2300 | I47: 100 | J47: 0 | K47: 2300 | L47: 5650 | M47: 2300 | N47: 3350
A48: 47 | B48: محمد عبدالله عوض موذي | C48: 212574 | D48: 697 | E48: 707 | F48: 10 | G48: 2500 | H48: 2100 | I48: 100 | J48: 0 | K48: 1000 | L48: 4700 | M48: 1000 | N48: 3700
A49: 48 | B49: احمد علي محمد مدردر | C49: 10323 | D49: 33 | E49: 41 | F49: 8 | G49: 2000 | H49: 1100 | I49: 100 | J49: 0 | K49: 1100 | L49: 3200 | M49: 1100 | N49: 2100 | P49: مشروع مياه الخضراء
A50: 49 | B50: عبدالله علي عوض موذي | C50: 213252 | D50: 646 | E50: 658 | F50: 12 | G50: 3000 | H50: 1000 | I50: 100 | J50: 0 | K50: 0 | L50: 4100 | M50: 0 | N50: 4100 | P50: محافظة تعز / مديرية المخاء
A51: 50 | B51: عبده علي عوض موذي | C51: 216268 | D51: 1199 | E51: 1199 | F51: 0 | G51: 0 | H51: 200 | I51: 100 | J51: 0 | K51: 0 | L51: 300 | M51: 0 | N51: 300 | T51: فاتورة رقــم : | U51: 225
A52: 51 | B52: ابراهيم سعيد عوض موذي | C52: 8222 | D52: 660 | E52: 681 | F52: 21 | G52: 5250 | H52: 7500 | I52: 100 | J52: 0 | K52: 7500 | L52: 12850 | M52: 7500 | N52: 5350 | P52: المطلوب من الأخ / | R52: =VLOOKUP(U51,A1:N226,2,0) -> نبيل دباب
A53: 52 | B53: عبده ابراهيم سعيد موذي | C53: 0 | D53: 57 | E53: 65 | F53: 8 | G53: 2000 | H53: 1600 | I53: 100 | J53: 0 | K53: 1500 | L53: 3700 | M53: 1500 | N53: 2200 | P53: العنوان / الخضراء | T53: رقم العداد : | U53: =VLOOKUP(U51,A1:N226,3,0) -> 0
A54: 53 | B54: سعيد صالح صديفي | C54: 0 | D54: 243 | E54: 250 | F54: 7 | G54: 1750 | H54: 5000 | I54: 100 | J54: 0 | K54: 5000 | L54: 6850 | M54: 5000 | N54: 1850 | T54: عن شهر : | U54: أغسطس / 2018م
A55: 54 | B55: محمد ابراهيم سعيد موذي | C55: 0 | D55: 25 | E55: 28 | F55: 3 | G55: 750 | H55: 1100 | I55: 100 | J55: 0 | K55: 1100 | L55: 1950 | M55: 1100 | N55: 850 | P55: قراءة العداد | R55: الاستهلاك | S55: قيمة المياه | T55: الرصيد السابق | U55: المبلغ المستحق
A56: 55 | B56: زيد محمد موذي | C56: 153 | D56: 139 | E56: 149 | F56: 10 | G56: 2500 | H56: 1400 | I56: 100 | J56: 0 | K56: 0 | L56: 4000 | M56: 0 | N56: 4000 | P56: السابقة | Q56: الحالية | S56: ريال | T56: ريال | U56: ريال
A57: 56 | B57: محفوظ احمد مدردر | C57: 213003 | D57: 748 | E57: 758 | F57: 10 | G57: 2500 | H57: 700 | I57: 100 | J57: 0 | K57: 0 | L57: 3300 | M57: 0 | N57: 3300 | P57: =VLOOKUP(U51,A1:N243,4,0) -> 12 | Q57: =VLOOKUP(U51,A1:N243,5,0) -> 32 | R57: =VLOOKUP(U51,A1:N226,6,0) -> 20 | S57: =VLOOKUP(U51,A1:N226,7,0) -> 5000 | T57: =VLOOKUP(U51,A1:N226,8,0) -> 2500 | U57: =(S57+T57) -> 7500
A58: 57 | B58: علي سالم علي عبيدي | C58: 17080303 | D58: 53 | E58: 62 | F58: 9 | G58: 2250 | H58: 4400 | I58: 100 | J58: 0 | K58: 4500 | L58: 6750 | M58: 4500 | N58: 2250 | S58: المدفوع حتى 31 /07/ 2018م | U58: =VLOOKUP(U51,A1:N226,11,0) -> 2000
A59: 58 | B59: احمد عوض احمد موذي | C59: 216135 | D59: 90359 | E59: 90367 | F59: 8 | G59: 2000 | H59: 7800 | I59: 100 | J59: 0 | K59: 0 | L59: 9900 | M59: 0 | N59: 9900 | S59: اشتراك شهري : | U59: =VLOOKUP(U51,A1:N226,9,0) -> 100
A60: 59 | B60: عوض احمد عوض موذي | C60: 213297 | D60: 2 | E60: 3 | F60: 1 | G60: 250 | H60: 800 | I60: 100 | J60: 0 | K60: 500 | L60: 1150 | M60: 500 | N60: 650 | S60: خدمات أخرى : | U60: =VLOOKUP(U51,A1:N226,10,0) -> 0
A61: 60 | B61: راجح عوض احمد موذي | C61: 216278 | D61: 383 | E61: 388 | F61: 5 | G61: 1250 | H61: 2000 | I61: 100 | J61: 0 | K61: 2000 | L61: 3350 | M61: 2000 | N61: 1350 | P61: =CH_N_TO_TEXT(U61) -> فقط خمسة ألف وستمائة ريال يمني لاغير | T61: الإجمالي : | U61: =((U57-U58)+U59+U60) -> 5600
A62: 61 | B62: علي محمد علي عبيدي | C62: 4991 | D62: 321 | E62: 323 | F62: 2 | G62: 500 | H62: 2400 | I62: 100 | J62: 0 | K62: 0 | L62: 3000 | M62: 0 | N62: 3000
A63: 62 | B63: فيصل محمد علي عبيدي | C63: 214816 | D63: 899 | E63: 910 | F63: 11 | G63: 2750 | H63: 3600 | I63: 100 | J63: 0 | K63: 0 | L63: 6450 | M63: 0 | N63: 6450
A64: 63 | B64: راجح علي عبده صبيحي | C64: 0 | D64: 173 | E64: 180 | F64: 7 | G64: 1750 | H64: 600 | I64: 100 | J64: 0 | K64: 500 | L64: 2450 | M64: 500 | N64: 1950 | P64: مشروع مياه الخضراء | T64: فاتورة رقــم : | U64: =(U51) -> 225
A65: 64 | B65: احمد عبده زهوي | C65: 23829 | D65: 669 | E65: 679 | F65: 10 | G65: 2500 | H65: 300 | I65: 100 | J65: 0 | K65: 300 | L65: 2900 | M65: 300 | N65: 2600 | P65: محافظة تعز / مديرية المخاء | T65: رقم العداد : | U65: =U53 -> 0
A66: 65 | B66: جميل عبده احمد موذي | C66: 215266 | D66: 396 | E66: 397 | F66: 1 | G66: 250 | H66: 11200 | I66: 100 | J66: 0 | K66: 0 | L66: 11550 | M66: 0 | N66: =(L66-M66) -> 11550 | P66: المطلوب من الأخ / | R66: =R52 -> نبيل دباب | T66: عن شهر : | U66: أغسطس / 2018م
A67: 66 | B67: عبده احمد عوض موذي | C67: 0 | D67: 170 | E67: 180 | F67: =(E67-D67) -> 10 | G67: =(250*F67) -> 2500 | H67: 2100 | I67: 100 | J67: 0 | K67: 0 | L67: =(G67+H67+I67+J67) -> 4700 | M67: =K67 -> 0 | N67: 4700 | P67: =P61 -> فقط خمسة ألف وستمائة ريال يمني لاغير | T67: الإجمالي : | U67: =U61 -> 5600
A68: 67 | B68: امين عبده احمد موذي | C68: 0 | D68: 161 | E68: 167 | F68: 6 | G68: 1500 | H68: 900 | I68: 100 | J68: 0 | K68: 900 | L68: 2500 | M68: 900 | N68: 1600
A69: 68 | B69: سالم محمد احمد موذي | C69: 66944 | D69: 122 | E69: 127 | F69: 5 | G69: 1250 | H69: 200 | I69: 100 | J69: 0 | K69: 0 | L69: 1550 | M69: 0 | N69: 1550 | P69: مشروع مياه الخضراء | AF69: ح
A70: 69 | B70: علي محمد صديفي | C70: 205746 | D70: 20320 | E70: 20320 | F70: 0 | G70: 0 | H70: 1800 | I70: 100 | J70: 0 | K70: 0 | L70: 1900 | M70: 0 | N70: 1900 | P70: محافظة تعز / مديرية المخاء
A71: 70 | B71: عبده علي محمد صديفي | C71: 0 | D71: 617 | E71: 622 | F71: 5 | G71: 1250 | H71: 5500 | I71: 100 | J71: 0 | K71: 2000 | L71: 6850 | M71: 2000 | N71: 4850 | T71: فاتورة رقــم : | U71: 226
A72: 71 | B72: محمد صالح احمد موذي | C72: 205680 | D72: 461 | E72: 464 | F72: 3 | G72: 750 | H72: 500 | I72: 100 | J72: 0 | K72: 500 | L72: 1350 | M72: 500 | N72: 850 | P72: المطلوب من الأخ / | R72: =VLOOKUP(U71,A1:N227,2,0) -> منير سالم عنبري
A73: 72 | B73: ابراهيم صالح احمد عوض موذي | C73: 216134 | D73: 428 | E73: 435 | F73: 7 | G73: 1750 | H73: 1300 | I73: 100 | J73: 0 | K73: 0 | L73: 3150 | M73: 0 | N73: 3150 | P73: العنوان / الخضراء | T73: رقم العداد : | U73: =VLOOKUP(U71,A1:N227,3,0) -> 0
A74: 73 | B74: علي صالح علي صديفي | C74: 225811 | D74: 215 | E74: 225 | F74: 10 | G74: 2500 | H74: 300 | I74: 100 | J74: 0 | K74: 0 | L74: 2900 | M74: 0 | N74: 2900 | T74: عن شهر : | U74: أغسطس / 2018م
A75: 74 | B75: عبده محمد عبدالله عميرة | C75: 0 | D75: 1905 | E75: 1918 | F75: 13 | G75: 3250 | H75: 2900 | I75: 100 | J75: 0 | K75: 2900 | L75: 6250 | M75: 2900 | N75: 3350 | P75: قراءة العداد | R75: الاستهلاك | S75: قيمة المياه | T75: الرصيد السابق | U75: المبلغ المستحق
A76: 75 | B76: احمد محمد عبدالله عميرة | C76: 0 | D76: 2965 | E76: 2985 | F76: 20 | G76: 5000 | H76: 4100 | I76: 100 | J76: 0 | K76: 4000 | L76: 9200 | M76: 4000 | N76: 5200 | P76: السابقة | Q76: الحالية | S76: ريال | T76: ريال | U76: ريال
A77: 76 | B77: راجح احمد محمد عميرة | C77: 0 | D77: 845 | E77: 845 | F77: 0 | G77: 0 | H77: 300 | I77: 100 | J77: 0 | K77: 300 | L77: 400 | M77: 300 | N77: 100 | P77: =VLOOKUP(U71,A1:N243,4,0) -> 862 | Q77: =VLOOKUP(U71,A1:N243,5,0) -> 872 | R77: =VLOOKUP(U71,A1:N243,6,0) -> 10 | S77: =VLOOKUP(U71,A1:N227,7,0) -> 2500 | T77: =VLOOKUP(U71,A1:N227,8,0) -> 1700 | U77: =(T77+S77) -> 4200
A78: 77 | B78: محمد احمد محمد عميرة | C78: 0 | D78: 229 | E78: 230 | F78: 1 | G78: 250 | H78: 300 | I78: 100 | J78: 0 | K78: 300 | L78: 650 | M78: 300 | N78: 350 | S78: المدفوع حتى 31 /07/ 2018م | U78: =VLOOKUP(U71,A1:N227,11,0) -> 1700
A79: 78 | B79: عبدالله محمد عبدالله عميرة | C79: 214829 | D79: 1622 | E79: 1632 | F79: 10 | G79: 2500 | H79: 1000 | I79: 100 | J79: 0 | K79: 1000 | L79: 3600 | M79: 1000 | N79: 2600 | S79: اشتراك شهري : | U79: =VLOOKUP(U71,A1:N227,9,0) -> 100
A80: 79 | B80: علي محمد عبدالله عميرة | C80: 0 | D80: 1690 | E80: 1704 | F80: 14 | G80: 3500 | H80: 3300 | I80: 100 | J80: 0 | K80: 3000 | L80: 6900 | M80: 3000 | N80: 3900 | S80: خدمات أخرى : | U80: =VLOOKUP(U71,A1:N227,10,0) -> 0
A81: 80 | B81: حيدر علي محمد عميرة | C81: 0 | D81: 550 | E81: 550 | F81: 0 | G81: 0 | H81: 3000 | I81: 100 | J81: 0 | K81: 2000 | L81: 3100 | M81: 2000 | N81: 1100 | P81: =CH_N_TO_TEXT(U81) -> فقط ألفان وستمائة ريال يمني لاغير | T81: الإجمالي : | U81: =((U77-U78)+U79+U80) -> 2600
A82: 81 | B82: عايش عبدالله محمد عميرة | C82: 0 | D82: 865 | E82: 865 | F82: 0 | G82: 0 | H82: 10300 | I82: 100 | J82: 0 | K82: 0 | L82: 10400 | M82: 0 | N82: 10400
A83: 82 | B83: علي عبدالله محمد عميرة | C83: 0 | D83: 895 | E83: 900 | F83: 5 | G83: 1250 | H83: 300 | I83: 100 | J83: 0 | K83: 300 | L83: 1650 | M83: 300 | N83: 1350
A84: 83 | B84: امين عبدالله محمد عميرة | C84: 0 | D84: 88 | E84: 89 | F84: 1 | G84: 250 | H84: 500 | I84: 100 | J84: 0 | K84: 500 | L84: 850 | M84: 500 | N84: 350 | P84: مشروع مياه الخضراء | T84: فاتورة رقــم : | U84: =U71 -> 226
A85: 84 | B85: ابراهيم محمد عبدالله عميرة | C85: 0 | D85: 1350 | E85: 1350 | F85: 0 | G85: 0 | H85: 3200 | I85: 100 | J85: 0 | K85: 3200 | L85: 3300 | M85: 3200 | N85: 1 | P85: محافظة تعز / مديرية المخاء | T85: رقم العداد : | U85: =U73 -> 0
A86: 85 | B86: جميل ابراهيم محمد عميرة | C86: 0 | D86: 799 | E86: 799 | F86: 0 | G86: 0 | H86: 3200 | I86: 100 | J86: 0 | K86: 2000 | L86: 3300 | M86: 2000 | N86: 1300 | P86: المطلوب من الأخ / | R86: =R72 -> منير سالم عنبري | T86: عن شهر : | U86: أغسطس / 2018م
A87: 86 | B87: فواز علي محمد صديفي | C87: 205676 | D87: 907 | E87: 911 | F87: 4 | G87: 1000 | H87: 2800 | I87: 100 | J87: 0 | K87: 0 | L87: 3900 | M87: 0 | N87: 3900 | P87: =P81 -> فقط ألفان وستمائة ريال يمني لاغير | T87: الإجمالي : | U87: =U81 -> 2600
A88: 87 | B88: علي يحيى محمد عميرة | C88: 0 | D88: 230 | E88: 234 | F88: 4 | G88: 1000 | H88: 3400 | I88: 100 | J88: 0 | K88: 0 | L88: 4500 | M88: 0 | N88: 4500
A89: 88 | B89: عبده محمد زايد سعيد | C89: 215847 | D89: 1823 | E89: 1844 | F89: 21 | G89: 5250 | H89: 4200 | I89: 100 | J89: 0 | K89: 4000 | L89: 9550 | M89: 4000 | N89: 5550
A90: 89 | B90: خالد محمد زايد سعيد | C90: 0 | D90: 641 | E90: 649 | F90: 8 | G90: 2000 | H90: 1300 | I90: 100 | J90: 0 | K90: 1300 | L90: 3400 | M90: 1300 | N90: 2100
A91: 90 | B91: محرم سعيد زايد سعيد | C91: 0 | D91: 50 | E91: 50 | F91: 0 | G91: 0 | H91: 200 | I91: 100 | J91: 0 | K91: 0 | L91: 300 | M91: 0 | N91: 300
A92: 91 | B92: هائل سعيد زايد سعيد | C92: 0 | D92: 32 | E92: 42 | F92: 10 | G92: 2500 | H92: 3500 | I92: 100 | J92: 0 | K92: 3500 | L92: 6100 | M92: 3500 | N92: 2600
A93: 92 | B93: حمود سعيد زايد سعيد | C93: 0 | D93: 1013 | E93: 1013 | F93: 0 | G93: 0 | H93: 100 | I93: 100 | J93: 0 | K93: 0 | L93: 200 | M93: 0 | N93: 200
A94: 93 | B94: سعيد سليمان محمد سليمان | C94: 0 | D94: 799 | E94: 805 | F94: 6 | G94: 1500 | H94: 1100 | I94: 100 | J94: 0 | K94: 1000 | L94: 2700 | M94: 1000 | N94: 1700
A95: 94 | B95: محمد سليمان محمد سليمان | C95: 213414 | D95: 861 | E95: 870 | F95: 9 | G95: 2250 | H95: 1300 | I95: 100 | J95: 0 | K95: 1000 | L95: 3650 | M95: 1000 | N95: 2650
A96: 95 | B96: أحمد سليمان محمد سليمان | C96: 215807 | D96: 666 | E96: 678 | F96: 12 | G96: 3000 | H96: 1500 | I96: 100 | J96: 0 | K96: 1500 | L96: 4600 | M96: 1500 | N96: 3100
A97: 96 | B97: سليمان محمد سليمان | C97: 216297 | D97: 988 | E97: 1001 | F97: 13 | G97: 3250 | H97: 2550 | I97: 100 | J97: 0 | K97: 2550 | L97: 5900 | M97: 2550 | N97: 3350
A98: 97 | B98: صالح محمد سليمان | C98: 213404 | D98: 1121 | E98: 1133 | F98: 12 | G98: 3000 | H98: 700 | I98: 100 | J98: 0 | K98: 700 | L98: 3800 | M98: 700 | N98: 3100
A99: 98 | B99: نبيل صالح محمد سليمان | C99: 0 | D99: 668 | E99: 675 | F99: 7 | G99: 1750 | H99: 1400 | I99: 100 | J99: 0 | K99: 1400 | L99: 3250 | M99: 1400 | N99: 1850
A100: 99 | B100: فضل صالح محمد سليمان | C100: 0 | D100: 315 | E100: 319 | F100: 4 | G100: 1000 | H100: 1100 | I100: 100 | J100: 0 | K100: 1100 | L100: 2200 | M100: 1100 | N100: 1100
A101: 100 | B101: عبدالله صالح محمد سليمان | C101: 2778 | D101: 399 | E101: 404 | F101: 5 | G101: 1250 | H101: 1100 | I101: 100 | J101: 0 | K101: 1000 | L101: 2450 | M101: 1000 | N101: 1450
A102: 101 | B102: بسام صالح محمد سليمان | C102: 28049 | D102: 321 | E102: 337 | F102: 16 | G102: 4000 | H102: 2100 | I102: 100 | J102: 0 | K102: 2100 | L102: 6200 | M102: 2100 | N102: 4100
A103: 102 | B103: علي صالح محمد سليمان | C103: 212566 | D103: 761 | E103: 784 | F103: 23 | G103: 5750 | H103: 1100 | I103: 100 | J103: 0 | K103: 1000 | L103: 6950 | M103: 1000 | N103: 5950
A104: 103 | B104: اسماعيل صالح محمد سليمان | C104: 0 | D104: 149 | E104: 152 | F104: 3 | G104: 750 | H104: 1300 | I104: 100 | J104: 0 | K104: 1300 | L104: 2150 | M104: 1300 | N104: 850
A105: 104 | B105: فهد عبده محمد سليمان | C105: 210659 | D105: 642 | E105: 646 | F105: 4 | G105: 1000 | H105: 1100 | I105: 100 | J105: 0 | K105: 1100 | L105: 2200 | M105: 1100 | N105: 1100
A106: 105 | B106: جميل عبده محمد سليمان | C106: 0 | D106: 793 | E106: 810 | F106: 17 | G106: 4250 | H106: 3700 | I106: 100 | J106: 0 | K106: 3700 | L106: 8050 | M106: 3700 | N106: 4350
A107: 106 | B107: خالد عبده محمد سليمان | C107: 0 | D107: 29 | E107: 34 | F107: 5 | G107: 1250 | H107: 1300 | I107: 100 | J107: 0 | K107: 1300 | L107: 2650 | M107: 1300 | N107: 1350
A108: 107 | B108: رياض علي محمد سليمان | C108: 210906 | D108: 805 | E108: 817 | F108: 12 | G108: 3000 | H108: 1500 | I108: 100 | J108: 0 | K108: 1500 | L108: 4600 | M108: 1500 | N108: 3100
A109: 108 | B109: أحمد محمد محمد زوقري | C109: 216560 | D109: 899 | E109: 907 | F109: 8 | G109: 2000 | H109: 2100 | I109: 100 | J109: 0 | K109: 2100 | L109: 4200 | M109: 2100 | N109: 2100
A110: 109 | B110: فهبم أحمد محمد زوقري | C110: 120662 | D110: 1062 | E110: 1078 | F110: 16 | G110: 4000 | H110: 3100 | I110: 100 | J110: 0 | K110: 3100 | L110: 7200 | M110: 3100 | N110: 4100
A111: 110 | B111: صالح أحمد محمد زوقري | C111: 23286 | D111: 489 | E111: 503 | F111: 14 | G111: 3500 | H111: 2900 | I111: 100 | J111: 0 | K111: 2900 | L111: 6500 | M111: 2900 | N111: 3600
A112: 111 | B112: خالد أحمد محمد زوقري | C112: 212318 | D112: 489 | E112: 492 | F112: 3 | G112: 750 | H112: 1300 | I112: 100 | J112: 0 | K112: 1300 | L112: 2150 | M112: 1300 | N112: 850
A113: 112 | B113: سعيد أحمد زوقري | C113: 211208 | D113: 979 | E113: 993 | F113: 14 | G113: 3500 | H113: 2700 | I113: 100 | J113: 0 | K113: 2700 | L113: 6300 | M113: 2700 | N113: 3600
A114: 113 | B114: منير أحمد محمد زوقري | C114: 12298 | D114: 594 | E114: 602 | F114: 8 | G114: 2000 | H114: 1300 | I114: 100 | J114: 0 | K114: 1300 | L114: 3400 | M114: 1300 | N114: 2100
A115: 114 | B115: محمد علي محمد زوقري | C115: 212906 | D115: 10530 | E115: 10534 | F115: 4 | G115: 1000 | H115: 1300 | I115: 100 | J115: 0 | K115: 0 | L115: 2400 | M115: 0 | N115: 2400
A116: 115 | B116: سعيد محمد زوقري | C116: 216864 | D116: 660 | E116: 667 | F116: 7 | G116: 1750 | H116: 1500 | I116: 100 | J116: 0 | K116: 1500 | L116: 3350 | M116: 1500 | N116: 1850
A117: 116 | B117: عوض عبدالله زوقري | C117: 211821 | D117: 512 | E117: 517 | F117: 5 | G117: 1250 | H117: 1300 | I117: 100 | J117: 0 | K117: 1300 | L117: 2650 | M117: 1300 | N117: 1350
A118: 117 | B118: محمد عبدالله زوقري | C118: 0 | D118: 75 | E118: 88 | F118: 13 | G118: 3250 | H118: 4700 | I118: 100 | J118: 0 | K118: 2000 | L118: 8050 | M118: 2000 | N118: 6050
A119: 118 | B119: عبدالله محمد زوقري | C119: 215874 | D119: 549 | E119: 556 | F119: 7 | G119: 1750 | H119: 1700 | I119: 100 | J119: 0 | K119: 1700 | L119: 3550 | M119: 1700 | N119: 1850
A120: 119 | B120: عايد علي محمد زوقري | C120: 210997 | D120: 560 | E120: 566 | F120: 6 | G120: 1500 | H120: 5100 | I120: 100 | J120: 0 | K120: 3000 | L120: 6700 | M120: 3000 | N120: 3700
A121: 120 | B121: نبيل علي محمد زوقري | C121: 213803 | D121: 986 | E121: 993 | F121: 7 | G121: 1750 | H121: 1700 | I121: 100 | J121: 0 | K121: 1600 | L121: 3550 | M121: 1600 | N121: 1950
A122: 121 | B122: أحمد علي محمد زوقري | C122: 210930 | D122: 725 | E122: 734 | F122: 9 | G122: 2250 | H122: 1900 | I122: 100 | J122: 0 | K122: 1900 | L122: 4250 | M122: 1900 | N122: 2350
A123: 122 | B123: عبدالعزيز محمد سكندر | C123: 215304 | D123: 643 | E123: 654 | F123: 11 | G123: 2750 | H123: 1900 | I123: 100 | J123: 0 | K123: 1900 | L123: 4750 | M123: 1900 | N123: 2850
A124: 123 | B124: عبدالله محمد سكندر | C124: 212503 | D124: 467 | E124: 470 | F124: 3 | G124: 750 | H124: 800 | I124: 100 | J124: 0 | K124: 800 | L124: 1650 | M124: 800 | N124: 850
A125: 124 | B125: أحمد محمد سكندر | C125: 883 | D125: 12 | E125: 15 | F125: 3 | G125: 750 | H125: 1000 | I125: 100 | J125: 0 | K125: 1000 | L125: 1850 | M125: 1000 | N125: 850
A126: 125 | B126: محمد عبده علي زوقري | C126: 212981 | D126: 459 | E126: 462 | F126: 3 | G126: 750 | H126: 1800 | I126: 100 | J126: 0 | K126: 1800 | L126: 2650 | M126: 1800 | N126: 850
A127: 126 | B127: محمد أحمد قبصي | C127: 212367 | D127: 710 | E127: 722 | F127: 12 | G127: 3000 | H127: 2400 | I127: 100 | J127: 0 | K127: 2400 | L127: 5500 | M127: 2400 | N127: 3100
A128: 127 | B128: علي محمد أحمد قبصي | C128: 211376 | D128: 502 | E128: 508 | F128: 6 | G128: 1500 | H128: 1850 | I128: 100 | J128: 0 | K128: 1850 | L128: 3450 | M128: 1850 | N128: 1600
A129: 128 | B129: أحمد محمد أحمد قبصي | C129: 354 | D129: 229 | E129: 234 | F129: 5 | G129: 1250 | H129: 3000 | I129: 100 | J129: 0 | K129: 3000 | L129: 4350 | M129: 3000 | N129: 1350
A130: 129 | B130: نشوان محمد أحمد قبصي | C130: 205948 | D130: 598 | E130: 607 | F130: 9 | G130: 2250 | H130: 3000 | I130: 100 | J130: 0 | K130: 3000 | L130: 5350 | M130: 3000 | N130: =(L130-M130) -> 2350
A131: 130 | B131: رزق محمد قبصي | C131: 0 | D131: 215 | E131: 225 | F131: =(E131-D131) -> 10 | G131: =(250*F131) -> 2500 | H131: 1600 | I131: 100 | J131: 0 | K131: 1600 | L131: =(G131+H131+I131+J131) -> 4200 | M131: =K131 -> 1600 | N131: 2600
A132: 131 | B132: سمير محمد قبصي | C132: 320319 | D132: 109 | E132: 119 | F132: 10 | G132: 2500 | H132: 2200 | I132: 100 | J132: 0 | K132: 2200 | L132: 4800 | M132: 2200 | N132: 2600
A133: 132 | B133: إبراهيم سعيد زيد | C133: 0 | D133: 210 | E133: 215 | F133: 5 | G133: 1250 | H133: 100 | I133: 100 | J133: 0 | K133: 0 | L133: 1450 | M133: 0 | N133: 1450
A134: 133 | B134: محمد عبدالله زيد | C134: 0 | D134: 199 | E134: 210 | F134: 11 | G134: 2750 | H134: 3100 | I134: 100 | J134: 0 | K134: 3000 | L134: 5950 | M134: 3000 | N134: 2950
A135: 134 | B135: سعيد زيد حكيمي | C135: 215226 | D135: 11411 | E135: 11413 | F135: 2 | G135: 500 | H135: 1000 | I135: 100 | J135: 0 | K135: 1000 | L135: 1600 | M135: 1000 | N135: 600
A136: 135 | B136: أحمد عبدالله زيد | C136: 12064 | D136: 10332 | E136: 10342 | F136: 10 | G136: 2500 | H136: 1100 | I136: 100 | J136: 0 | K136: 0 | L136: 3700 | M136: 0 | N136: 3700
A137: 136 | B137: عوض محمد قاسم قحيم | C137: 204006 | D137: 1249 | E137: 1249 | F137: 0 | G137: 0 | H137: 500 | I137: 100 | J137: 0 | K137: 0 | L137: 600 | M137: 0 | N137: 600
A138: 137 | B138: مجيد محمد قاسم قحيم | C138: 2959 | D138: 521 | E138: 532 | F138: 11 | G138: 2750 | H138: 2000 | I138: 100 | J138: 0 | K138: 2000 | L138: 4850 | M138: 2000 | N138: 2850
A139: 138 | B139: صدام محمد قاسم | C139: 210984 | D139: 628 | E139: 628 | F139: 0 | G139: 0 | H139: 1700 | I139: 100 | J139: 0 | K139: 2000 | L139: 1800 | M139: 2000 | N139: -200
A140: 139 | B140: أحمد زيد حكيمي | C140: 206063 | D140: 728 | E140: 733 | F140: 5 | G140: 1250 | H140: 3200 | I140: 100 | J140: 0 | K140: 1500 | L140: 4550 | M140: 1500 | N140: 3050
A141: 140 | B141: علي عبدالله زيد | C141: 213406 | D141: 969 | E141: 978 | F141: 9 | G141: 2250 | H141: 2400 | I141: 100 | J141: 0 | K141: 2000 | L141: 4750 | M141: 2000 | N141: 2750
A142: 141 | B142: عبدالله محمد علي قحيم | C142: 214766 | D142: 1462 | E142: 1485 | F142: 23 | G142: 5750 | H142: 2500 | I142: 100 | J142: 0 | K142: 2500 | L142: 8350 | M142: 2500 | N142: 5850
A143: 142 | B143: علي بن علي عوض مدردر | C143: 0 | D143: 19 | E143: 24 | F143: 5 | G143: 1250 | H143: 700 | I143: 100 | J143: 0 | K143: 700 | L143: 2050 | M143: 700 | N143: 1350
A144: 143 | B144: بديع عوض علي مدردر | C144: 212529 | D144: 1036 | E144: 1046 | F144: 10 | G144: 2500 | H144: 2300 | I144: 100 | J144: 0 | K144: 2100 | L144: 4900 | M144: 2100 | N144: 2800
A145: 144 | B145: حبيب أحمد علي مدردر | C145: 214623 | D145: 867 | E145: 875 | F145: 8 | G145: 2000 | H145: 1300 | I145: 100 | J145: 0 | K145: 1300 | L145: 3400 | M145: 1300 | N145: 2100
A146: 145 | B146: محمد أحمد علي مدردر | C146: 210452 | D146: 373 | E146: 385 | F146: 12 | G146: 3000 | H146: 1700 | I146: 100 | J146: 0 | K146: 1700 | L146: 4800 | M146: 1700 | N146: 3100
A147: 146 | B147: مصعب سعيد مدردر | C147: 210916 | D147: 567 | E147: 571 | F147: 4 | G147: 1000 | H147: 1700 | I147: 100 | J147: 0 | K147: 1700 | L147: 2800 | M147: 1700 | N147: 1100
A148: 147 | B148: علي عبدالله علي قحيم | C148: 8102008 | D148: 96 | E148: 116 | F148: 20 | G148: 5000 | H148: 4300 | I148: 100 | J148: 0 | K148: 3300 | L148: 9400 | M148: 3300 | N148: 6100
A149: 148 | B149: تقي محمد علي قحيم | C149: 140887 | D149: 54 | E149: 68 | F149: 14 | G149: 3500 | H149: 2100 | I149: 100 | J149: 0 | K149: 2100 | L149: 5700 | M149: 2100 | N149: 3600
A150: 149 | B150: صلاح محمد علي قحيم | C150: 211616 | D150: 693 | E150: 710 | F150: 17 | G150: 4250 | H150: 1500 | I150: 100 | J150: 0 | K150: 1500 | L150: 5850 | M150: 1500 | N150: 4350
A151: 150 | B151: علي أحمد علي قحيم | C151: 214699 | D151: 2 | E151: 14 | F151: 12 | G151: 3000 | H151: 700 | I151: 100 | J151: 0 | K151: 400 | L151: 3800 | M151: 400 | N151: 3400
A152: 151 | B152: عبده علي هواش | C152: 4980 | D152: 229 | E152: 235 | F152: 6 | G152: 1500 | H152: 900 | I152: 100 | J152: 0 | K152: 900 | L152: 2500 | M152: 900 | N152: 1600
A153: 152 | B153: سعيدعلي علي محلي | C153: 215707 | D153: 1068 | E153: 1076 | F153: 8 | G153: 2000 | H153: 3400 | I153: 100 | J153: 0 | K153: 1500 | L153: 5500 | M153: 1500 | N153: 4000
A154: 153 | B154: أحمد علي علي محلي | C154: 210766 | D154: 1489 | E154: 1492 | F154: 3 | G154: 750 | H154: 1100 | I154: 100 | J154: 0 | K154: 1100 | L154: 1950 | M154: 1100 | N154: 850
A155: 154 | B155: محمد علي علي محلي | C155: 215439 | D155: 428 | E155: 431 | F155: 3 | G155: 750 | H155: 2750 | I155: 100 | J155: 0 | K155: 0 | L155: 3600 | M155: 0 | N155: 3600
A156: 155 | B156: عبده سعيد سراجي | C156: 215549 | D156: 728 | E156: 740 | F156: 12 | G156: 3000 | H156: 1900 | I156: 100 | J156: 0 | K156: 1900 | L156: 5000 | M156: 1900 | N156: 3100
A157: 156 | B157: عبدالله علي علي محلي | C157: 214676 | D157: 730 | E157: 739 | F157: 9 | G157: 2250 | H157: 1700 | I157: 100 | J157: 0 | K157: 1700 | L157: 4050 | M157: 1700 | N157: 2350
A158: 157 | B158: محمد حيدر علي محلي | C158: 213116 | D158: 0 | E158: 18 | F158: 18 | G158: 4500 | H158: 3000 | I158: 100 | J158: 0 | K158: 0 | L158: 7600 | M158: 0 | N158: 7600
A159: 158 | B159: فضل يوسف محلي | C159: 11480 | D159: 494 | E159: 498 | F159: 4 | G159: 1000 | H159: 900 | I159: 100 | J159: 0 | K159: 500 | L159: 2000 | M159: 500 | N159: 1500
A160: 159 | B160: علي زيد حكيمي | C160: 212538 | D160: 879 | E160: 896 | F160: 17 | G160: 4250 | H160: 10300 | I160: 100 | J160: 0 | K160: 6000 | L160: 14650 | M160: 6000 | N160: 8650
A161: 160 | B161: يوسف علي محلي | C161: 211683 | D161: 493 | E161: 499 | F161: 6 | G161: 1500 | H161: 2800 | I161: 100 | J161: 0 | K161: 2000 | L161: 4400 | M161: 2000 | N161: 2400
A162: 161 | B162: أحمد حيدر علي محلي | C162: 888990 | D162: 266 | E162: 278 | F162: 12 | G162: 3000 | H162: 1900 | I162: 100 | J162: 0 | K162: 1900 | L162: 5000 | M162: 1900 | N162: 3100
A163: 162 | B163: علي حيدر علي محلي | C163: 215295 | D163: 786 | E163: 792 | F163: 6 | G163: 1500 | H163: 1300 | I163: 100 | J163: 0 | K163: 1300 | L163: 2900 | M163: 1300 | N163: 1600
A164: 163 | B164: مسجد أحمد حيدر علي | C164: 0 | D164: 73 | E164: 94 | F164: 21 | G164: 5250 | H164: 4700 | I164: 100 | J164: 0 | K164: 4700 | L164: 10050 | M164: 4700 | N164: 5350
A165: 164 | B165: نبيل عبدالله زايد | C165: 12153 | D165: 215 | E165: 227 | F165: 12 | G165: 3000 | H165: 2600 | I165: 100 | J165: 0 | K165: 2500 | L165: 5700 | M165: 2500 | N165: 3200
A166: 165 | B166: حيدر سعيد سالم حكيمي | C166: 205778 | D166: 1254 | E166: 1265 | F166: 11 | G166: 2750 | H166: 2800 | I166: 100 | J166: 0 | K166: 2800 | L166: 5650 | M166: 2800 | N166: 2850
A167: 166 | B167: عبدالله علي عميره | C167: 705591 | D167: 900 | E167: 915 | F167: 15 | G167: 3750 | H167: 3700 | I167: 100 | J167: 0 | K167: 3000 | L167: 7550 | M167: 3000 | N167: 4550
A168: 167 | B168: محمد علي عبدالله عميره | C168: 705527 | D168: 5 | E168: 30 | F168: 25 | G168: 6250 | H168: 1200 | I168: 100 | J168: 0 | K168: 0 | L168: 7550 | M168: 0 | N168: 7550
A169: 168 | B169: علي سعيد عميره | C169: 700869 | D169: 260 | E169: 275 | F169: 15 | G169: 3750 | H169: 3100 | I169: 100 | J169: 0 | K169: 3000 | L169: 6950 | M169: 3000 | N169: 3950
A170: 169 | B170: صديق هايل عميره | C170: 705530 | D170: 199 | E170: 1228 | F170: 1029 | G170: 257250 | H170: 8500 | I170: 100 | J170: 0 | K170: 6000 | L170: 265850 | M170: 6000 | N170: 259850
A171: 170 | B171: بديع علي عبدالله عميره | C171: 0 | D171: 111 | E171: 125 | F171: 14 | G171: 3500 | H171: 3100 | I171: 100 | J171: 0 | K171: 1700 | L171: 6700 | M171: 1700 | N171: 5000
A172: 171 | B172: محمد ناجي عميره | C172: 0 | D172: 49 | E172: 57 | F172: 8 | G172: 2000 | H172: 3800 | I172: 100 | J172: 0 | K172: 2000 | L172: 5900 | M172: 2000 | N172: 3900
A173: 172 | B173: فؤاد سعيد عميره | C173: 708088 | D173: 1029 | E173: 1040 | F173: 11 | G173: 2750 | H173: 100 | I173: 100 | J173: 0 | K173: 100 | L173: 2950 | M173: 100 | N173: 2850
A174: 173 | B174: سعيد يحيى صديفي | C174: 0 | D174: 1424 | E174: 1432 | F174: 8 | G174: 2000 | H174: 5300 | I174: 100 | J174: 0 | K174: 4000 | L174: 7400 | M174: 4000 | N174: 3400
A175: 174 | B175: واتح يحيى صديفي | C175: 215666 | D175: 11368 | E175: 11368 | F175: 0 | G175: 0 | H175: 2400 | I175: 100 | J175: 0 | K175: 0 | L175: 2500 | M175: 0 | N175: 2500
A176: 175 | B176: عبداللطيف يحيى صديفي | C176: 0 | D176: 52 | E176: 65 | F176: 13 | G176: 3250 | H176: 2300 | I176: 100 | J176: 0 | K176: 2300 | L176: 5650 | M176: 2300 | N176: 3350
A177: 176 | B177: سالم راجح محمد صديفي | C177: 211249 | D177: 1178 | E177: 1192 | F177: 14 | G177: 3500 | H177: 2900 | I177: 100 | J177: 0 | K177: 2900 | L177: 6500 | M177: 2900 | N177: 3600
A178: 177 | B178: الزراعي راجح محمد صديفي | C178: 211665 | D178: 977 | E178: 984 | F178: 7 | G178: 1750 | H178: 700 | I178: 100 | J178: 0 | K178: 700 | L178: 2550 | M178: 700 | N178: 1850
A179: 178 | B179: سعيد راجح صديفي | C179: 0 | D179: 10 | E179: 11 | F179: 1 | G179: 250 | H179: 700 | I179: 100 | J179: 0 | K179: 700 | L179: 1050 | M179: 700 | N179: 350
A180: 179 | B180: عبده يحيى صديفي | C180: 214829 | D180: 873 | E180: 873 | F180: 0 | G180: 0 | H180: 3300 | I180: 100 | J180: 0 | K180: 0 | L180: 3400 | M180: 0 | N180: 3400
A181: 180 | B181: همام يحيى صديفي | C181: 0 | D181: 80086 | E181: 80096 | F181: 10 | G181: 2500 | H181: 2050 | I181: 100 | J181: 0 | K181: 1400 | L181: 4650 | M181: 1400 | N181: 3250
A182: 181 | B182: عبدالله محمد حكيمي | C182: 3738237 | D182: 389 | E182: 395 | F182: 6 | G182: 1500 | H182: 900 | I182: 100 | J182: 0 | K182: 0 | L182: 2500 | M182: 0 | N182: 2500
A183: 182 | B183: خليل سالم خشب | C183: 215354 | D183: 385 | E183: 385 | F183: 0 | G183: 0 | H183: 900 | I183: 100 | J183: 0 | K183: 0 | L183: 1000 | M183: 0 | N183: 1000
A184: 183 | B184: علاوي سعيد حكيمي | C184: 3738220 | D184: 445 | E184: 445 | F184: 0 | G184: 0 | H184: 3500 | I184: 100 | J184: 0 | K184: 0 | L184: 3600 | M184: 0 | N184: 3600
A185: 184 | B185: أحمد علي هكي | C185: 215226 | D185: 1161 | E185: 1174 | F185: 13 | G185: 3250 | H185: 1650 | I185: 100 | J185: 0 | K185: 1000 | L185: 5000 | M185: 1000 | N185: 4000
A186: 185 | B186: أنور حمادي قحيم | C186: 0 | D186: 7 | E186: 7 | F186: 0 | G186: 0 | H186: 1900 | I186: 100 | J186: 0 | K186: 1700 | L186: 2000 | M186: 1700 | N186: 300
A187: 186 | B187: محمد محمد ثابت قحيم | C187: 0 | D187: 15 | E187: 16 | F187: 1 | G187: 250 | H187: 900 | I187: 100 | J187: 0 | K187: 0 | L187: 1250 | M187: 0 | N187: 1250
A188: 187 | B188: أحمد علي قلقلي | C188: 211687 | D188: 627 | E188: 628 | F188: 1 | G188: 250 | H188: 700 | I188: 100 | J188: 0 | K188: 0 | L188: 1050 | M188: 0 | N188: 1050
A189: 188 | B189: محمد علي قلقلي | C189: 0 | D189: 29 | E189: 35 | F189: 6 | G189: 1500 | H189: 1100 | I189: 100 | J189: 0 | K189: 1100 | L189: 2700 | M189: 1100 | N189: 1600
A190: 189 | B190: علي عبدالله زوقري | C190: 1470295 | D190: 26 | E190: 31 | F190: 5 | G190: 1250 | H190: 1300 | I190: 100 | J190: 0 | K190: 1300 | L190: 2650 | M190: 1300 | N190: 1350
A191: 190 | B191: محمد بن محمد زوقري | C191: 215360 | D191: 600 | E191: 603 | F191: 3 | G191: 750 | H191: 700 | I191: 100 | J191: 0 | K191: 700 | L191: 1550 | M191: 700 | N191: 850
A192: 191 | B192: حمدي أحمد علي زوقري | C192: 26812 | D192: 59 | E192: 59 | F192: 0 | G192: 0 | H192: 300 | I192: 100 | J192: 0 | K192: 0 | L192: 400 | M192: 0 | N192: 400
A193: 192 | B193: ذاكر يحيى محمد زوقري | C193: 1134 | D193: 165 | E193: 171 | F193: 6 | G193: 1500 | H193: 2200 | I193: 100 | J193: 0 | K193: 2200 | L193: 3800 | M193: 2200 | N193: 1600
A194: 193 | B194: عبده محمد زوقري | C194: 211236 | D194: 1010 | E194: 1021 | F194: 11 | G194: 2750 | H194: 2500 | I194: 100 | J194: 0 | K194: 2500 | L194: 5350 | M194: 2500 | N194: =(L194-M194) -> 2850
A195: 194 | B195: يحيى محمد زوقري | C195: 211088 | D195: 81233 | E195: 81245 | F195: =(E195-D195) -> 12 | G195: =(250*F195) -> 3000 | H195: 7500 | I195: 100 | J195: 0 | K195: 0 | L195: =(G195+H195+I195+J195) -> 10600 | M195: =K195 -> 0 | N195: 10600
A196: 195 | B196: عبده يحيى محمد زوقري | C196: 211397 | D196: 437 | E196: 438 | F196: 1 | G196: 250 | H196: 600 | I196: 100 | J196: 0 | K196: 0 | L196: 950 | M196: 0 | N196: 950
A197: 196 | B197: مجد علي زوقري | C197: 24470 | D197: 398 | E197: 407 | F197: 9 | G197: 2250 | H197: 1900 | I197: 100 | J197: 0 | K197: 1900 | L197: 4250 | M197: 1900 | N197: 2350
A198: 197 | B198: عبدالله علي محمد زوقري | C198: 24067 | D198: 156 | E198: 160 | F198: 4 | G198: 1000 | H198: 1600 | I198: 100 | J198: 0 | K198: 1500 | L198: 2700 | M198: 1500 | N198: 1200
A199: 198 | B199: علي عبدالله زوقري | C199: 212844 | D199: 306 | E199: 306 | F199: 0 | G199: 0 | H199: 100 | I199: 100 | J199: 0 | K199: 0 | L199: 200 | M199: 0 | N199: 200
A200: 199 | B200: عبده علي محمد زوقري | C200: 212932 | D200: 750 | E200: 754 | F200: 4 | G200: 1000 | H200: 1100 | I200: 100 | J200: 0 | K200: 0 | L200: 2200 | M200: 0 | N200: 2200
... 46 more rows

Sheet Oct
A1: م | B1: اسم المشترك | C1: رقم العداد | D1: السابقة | E1: الحالية | F1: فارق القراءة | G1: قيمة المياه | H1: الرصيد السابق | I1: اشتراك شهري | J1: اخرى | K1: المدفوع حتى31-8-2018 | L1: إجمالي المبلغ | M1: المدفوع | N1: المتبقي
A2: 1 | B2: زيد عمر ناجي محمد | C2: 211117 | D2: 8108 | E2: 8108 | F2: =(E2-D2) -> 0 | G2: =(250*F2) -> 0 | H2: 3100 | I2: 100 | J2: 0 | K2: 100 | L2: =(G2+H2+I2+J2) -> 3200 | M2: =K2 -> 100 | N2: =(L2-M2) -> 3100 | IV2: =SUM(A2:IU2) -> 237034
A3: 2 | B3: زيد عمر ناجي محمد | C3: 38203 | D3: 3437 | E3: 3505 | F3: =(E3-D3) -> 68 | G3: =(250*F3) -> 17000 | H3: 15300 | I3: 100 | J3: 0 | K3: 15300 | L3: =(G3+H3+I3+J3) -> 32400 | M3: =K3 -> 15300 | N3: 17100
A4: 3 | B4: زيد عمر ناجي محمد | C4: 214929 | D4: 3801 | E4: 3904 | F4: 103 | G4: 25750 | H4: 9300 | I4: 100 | J4: 0 | K4: 9300 | L4: 35150 | M4: 9300 | N4: 25850
A5: 4 | B5: زيد عمر ناجي محمد | C5: 11841 | D5: 6789 | E5: 6834 | F5: 45 | G5: 11250 | H5: 7100 | I5: 100 | J5: 0 | K5: 7100 | L5: 18450 | M5: 7100 | N5: 11350
A6: 5 | B6: زيد عمر ناجي محمد | C6: 213121 | D6: 34045 | E6: 34045 | F6: 0 | G6: 0 | H6: 3100 | I6: 100 | J6: 0 | K6: 100 | L6: 3200 | M6: 100 | N6: 3100
A7: 6 | B7: مختار عمر ناجي محمد | C7: 210780 | D7: 1082 | E7: 1082 | F7: 0 | G7: 0 | H7: 3100 | I7: 100 | J7: 0 | K7: 100 | L7: 3200 | M7: 100 | N7: 3100
A8: 7 | B8: صالح عمر ناجي محمد | C8: 210954 | D8: 1625 | E8: 1669 | F8: 44 | G8: 11000 | H8: 100 | I8: 100 | J8: 0 | K8: 100 | L8: 11200 | M8: 100 | N8: 11100
A9: 8 | B9: صلاح عمر ناجي محمد | C9: 3738 | D9: 3224 | E9: 3224 | F9: 0 | G9: 0 | H9: 100 | I9: 100 | J9: 0 | K9: 100 | L9: 200 | M9: 100 | N9: 100
A10: 9 | B10: سعيد عباد سراجي | C10: 215329 | D10: 2153 | E10: 2165 | F10: 12 | G10: 3000 | H10: 100 | I10: 100 | J10: 0 | K10: 100 | L10: 3200 | M10: 100 | N10: 3100
A11: 10 | B11: احمد علي ناجي محمد | C11: 214222 | D11: 689 | E11: 689 | F11: 0 | G11: 0 | H11: 3000 | I11: 100 | J11: 0 | K11: 3000 | L11: 3100 | M11: 3000 | N11: 100
A12: 11 | B12: عبده علي ناجي محمد | C12: 210918 | D12: 1153 | E12: 1158 | F12: 5 | G12: 1250 | H12: 4100 | I12: 100 | J12: 0 | K12: 1400 | L12: 5450 | M12: 1400 | N12: 4050
A13: 12 | B13: علي بن علي ناجي محمد | C13: 210984 | D13: 1982 | E13: 1999 | F13: 17 | G13: 4250 | H13: 3000 | I13: 100 | J13: 0 | K13: 3000 | L13: 7350 | M13: 3000 | N13: 4350
A14: 13 | B14: صالح علي ناجي محمد | C14: 0 | D14: 78 | E14: 93 | F14: 15 | G14: 3750 | H14: 4700 | I14: 100 | J14: 0 | K14: 4700 | L14: 8550 | M14: 4700 | N14: 3850
A15: 14 | B15: عمرو ناجي علي ناجي | C15: 11356 | D15: 259 | E15: 293 | F15: 34 | G15: 8500 | H15: 500 | I15: 100 | J15: 0 | K15: 500 | L15: 9100 | M15: 500 | N15: 8600
A16: 15 | B16: معاذ ناجي علي ناجي | C16: 0 | D16: 58 | E16: 61 | F16: 3 | G16: 750 | H16: 400 | I16: 100 | J16: 0 | K16: 500 | L16: 1250 | M16: 500 | N16: 750
A17: 16 | B17: عماد ناجي علي ناجي | C17: 58146 | D17: 95 | E17: 99 | F17: 4 | G17: 1000 | H17: 500 | I17: 100 | J17: 0 | K17: 500 | L17: 1600 | M17: 500 | N17: 1100
A18: 17 | B18: طارق ناجي علي ناجي | C18: 0 | D18: 35 | E18: 35 | F18: 0 | G18: 0 | H18: 300 | I18: 100 | J18: 0 | K18: 300 | L18: 400 | M18: 300 | N18: 100
A19: 18 | B19: محمد سالم احمد ناجي | C19: 0 | D19: 3 | E19: 7 | F19: 4 | G19: 1000 | H19: 800 | I19: 100 | J19: 0 | K19: 0 | L19: 1900 | M19: 0 | N19: 1900
A20: 19 | B20: ناجي علي ناجي محمد | C20: 215095 | D20: 441 | E20: 450 | F20: 9 | G20: 2250 | H20: 1900 | I20: 100 | J20: 0 | K20: 1900 | L20: 4250 | M20: 1900 | N20: 2350
A21: 20 | B21: محمد ناجي علي ناجي | C21: 216316 | D21: 894 | E21: 902 | F21: 8 | G21: 2000 | H21: 2500 | I21: 100 | J21: 0 | K21: 2500 | L21: 4600 | M21: 2500 | N21: 2100
A22: 21 | B22: احمد ناجي علي ناجي | C22: 214892 | D22: 419 | E22: 423 | F22: 4 | G22: 1000 | H22: 700 | I22: 100 | J22: 0 | K22: 700 | L22: 1800 | M22: 700 | N22: 1100
A23: 22 | B23: علي ناجي علي ناجي | C23: 212438 | D23: 747 | E23: 752 | F23: 5 | G23: 1250 | H23: 1300 | I23: 100 | J23: 0 | K23: 1350 | L23: 2650 | M23: 1350 | N23: 1300
A24: 23 | B24: محمد علي ناجي محمد | C24: 212781 | D24: 1537 | E24: 1548 | F24: 11 | G24: 2750 | H24: 2450 | I24: 100 | J24: 0 | K24: 2450 | L24: 5300 | M24: 2450 | N24: 2850
A25: 24 | B25: نزار محمد علي ناجي | C25: 11381 | D25: 555 | E25: 564 | F25: 9 | G25: 2250 | H25: -700 | I25: 100 | J25: 0 | K25: 0 | L25: 1650 | M25: 0 | N25: 1650
A26: 25 | B26: معتز محمد علي ناجي | C26: 215108 | D26: 1073 | E26: 1078 | F26: 5 | G26: 1250 | H26: 1300 | I26: 100 | J26: 0 | K26: 1300 | L26: 2650 | M26: 1300 | N26: 1350
A27: 26 | B27: عبده احمد ناجي محمد | C27: 212822 | D27: 921 | E27: 932 | F27: 11 | G27: 2750 | H27: 2500 | I27: 100 | J27: 0 | K27: 2500 | L27: 5350 | M27: 2500 | N27: 2850
A28: 27 | B28: محمد احمد ناجي محمد | C28: 210912 | D28: 1897 | E28: 1908 | F28: 11 | G28: 2750 | H28: 1500 | I28: 100 | J28: 0 | K28: 1500 | L28: 4350 | M28: 1500 | N28: 2850
A29: 28 | B29: مصطفى سالم محمد ناجي | C29: 210833 | D29: 3034 | E29: 3051 | F29: 17 | G29: 4250 | H29: 3200 | I29: 100 | J29: 0 | K29: 3200 | L29: 7550 | M29: 3200 | N29: 4350
A30: 29 | B30: سعيد محمد ناجي محمد | C30: 213576 | D30: 285 | E30: 287 | F30: 2 | G30: 500 | H30: 2900 | I30: 100 | J30: 0 | K30: 2900 | L30: 3500 | M30: 2900 | N30: 600
A31: 30 | B31: علي ثابت حميدان | C31: 214446 | D31: 290 | E31: 305 | F31: 15 | G31: 3750 | H31: 3300 | I31: 100 | J31: 0 | K31: 0 | L31: 7150 | M31: 0 | N31: 7150
A32: 31 | B32: معذ محمد ثابت | C32: 210946 | D32: 21718 | E32: 21733 | F32: 15 | G32: 3750 | H32: 7200 | I32: 100 | J32: 0 | K32: 3000 | L32: 11050 | M32: 3000 | N32: 8050
A33: 32 | B33: علي سالم محمد ناجي | C33: 211161 | D33: 1158 | E33: 1170 | F33: 12 | G33: 3000 | H33: 5400 | I33: 100 | J33: 0 | K33: 5400 | L33: 8500 | M33: 5400 | N33: 3100
A34: 33 | B34: محمد سالم محمد ناجي | C34: 216243 | D34: 644 | E34: 654 | F34: 10 | G34: 2500 | H34: 4000 | I34: 100 | J34: 0 | K34: 3000 | L34: 6600 | M34: 3000 | N34: 3600
A35: 34 | B35: محمد سالم محمد ناجي | C35: 0 | D35: 0 | E35: 4 | F35: 4 | G35: 1000 | H35: 3000 | I35: 100 | J35: 0 | K35: 4000 | L35: 4100 | M35: 4000 | N35: 100
A36: 35 | B36: علي محمد طبيلي | C36: 214210 | D36: 1720 | E36: 1733 | F36: 13 | G36: 3250 | H36: 3700 | I36: 100 | J36: 0 | K36: 3300 | L36: 7050 | M36: 3300 | N36: 3750
A37: 36 | B37: ربيع علي محمد طبيلي | C37: 211153 | D37: 282 | E37: 288 | F37: 6 | G37: 1500 | H37: 1500 | I37: 100 | J37: 0 | K37: 1500 | L37: 3100 | M37: 1500 | N37: 1600
A38: 37 | B38: صلاح علي محمد طبيلي | C38: 59875 | D38: 65 | E38: 77 | F38: 12 | G38: 3000 | H38: 1700 | I38: 100 | J38: 0 | K38: 1700 | L38: 4800 | M38: 1700 | N38: 3100
A39: 38 | B39: ناجي محمد ناجي محمد | C39: 0 | D39: 1331 | E39: 1350 | F39: 19 | G39: 4750 | H39: 5200 | I39: 100 | J39: 0 | K39: 5200 | L39: 10050 | M39: 5200 | N39: 4850
A40: 39 | B40: خالد محمد ناجي محمد | C40: 0 | D40: 1760 | E40: 1762 | F40: 2 | G40: 500 | H40: 1500 | I40: 100 | J40: 0 | K40: 1500 | L40: 2100 | M40: 1500 | N40: 600
A41: 40 | B41: مصطفى سالم محمد ناجي | C41: 0 | D41: 334 | E41: 334 | F41: 0 | G41: 0 | H41: 600 | I41: 100 | J41: 0 | K41: 550 | L41: 700 | M41: 550 | N41: 150
A42: 41 | B42: احمد سعيد علي ناجي | C42: 0 | D42: 1008 | E42: 1017 | F42: 9 | G42: 2250 | H42: 1900 | I42: 100 | J42: 0 | K42: 2000 | L42: 4250 | M42: 2000 | N42: 2250
A43: 42 | B43: فضل صالح علي موذي | C43: 0 | D43: 825 | E43: 833 | F43: 8 | G43: 2000 | H43: 4800 | I43: 100 | J43: 0 | K43: 4800 | L43: 6900 | M43: 4800 | N43: 2100
A44: 43 | B44: محمد صالح علي موذي | C44: 212401 | D44: 460 | E44: 460 | F44: 0 | G44: 0 | H44: 3100 | I44: 100 | J44: 0 | K44: 1000 | L44: 3200 | M44: 1000 | N44: 2200
A45: 44 | B45: صالح علي عوض موذي | C45: 216184 | D45: 1077 | E45: 1087 | F45: 10 | G45: 2500 | H45: 1000 | I45: 100 | J45: 0 | K45: 1000 | L45: 3600 | M45: 1000 | N45: 2600
A46: 45 | B46: علي صالح علي موذي | C46: 24307 | D46: 224 | E46: 229 | F46: 5 | G46: 1250 | H46: 700 | I46: 100 | J46: 0 | K46: 700 | L46: 2050 | M46: 700 | N46: 1350
A47: 46 | B47: علي عبدالله عوض موذي | C47: 213044 | D47: 995 | E47: 1008 | F47: 13 | G47: 3250 | H47: 2300 | I47: 100 | J47: 0 | K47: 2300 | L47: 5650 | M47: 2300 | N47: 3350
A48: 47 | B48: محمد عبدالله عوض موذي | C48: 212574 | D48: 697 | E48: 707 | F48: 10 | G48: 2500 | H48: 2100 | I48: 100 | J48: 0 | K48: 1000 | L48: 4700 | M48: 1000 | N48: 3700
A49: 48 | B49: احمد علي محمد مدردر | C49: 10323 | D49: 33 | E49: 41 | F49: 8 | G49: 2000 | H49: 1100 | I49: 100 | J49: 0 | K49: 1100 | L49: 3200 | M49: 1100 | N49: 2100 | P49: مشروع مياه الخضراء
A50: 49 | B50: عبدالله علي عوض موذي | C50: 213252 | D50: 646 | E50: 658 | F50: 12 | G50: 3000 | H50: 1000 | I50: 100 | J50: 0 | K50: 0 | L50: 4100 | M50: 0 | N50: 4100 | P50: محافظة تعز / مديرية المخاء
A51: 50 | B51: عبده علي عوض موذي | C51: 216268 | D51: 1199 | E51: 1199 | F51: 0 | G51: 0 | H51: 200 | I51: 100 | J51: 0 | K51: 0 | L51: 300 | M51: 0 | N51: 300 | T51: فاتورة رقــم : | U51: 231
A52: 51 | B52: ابراهيم سعيد عوض موذي | C52: 8222 | D52: 660 | E52: 681 | F52: 21 | G52: 5250 | H52: 7500 | I52: 100 | J52: 0 | K52: 7500 | L52: 12850 | M52: 7500 | N52: 5350 | P52: المطلوب من الأخ / | R52: =VLOOKUP(U51,A1:N232,2,0) -> عبدالله علي محلي
A53: 52 | B53: عبده ابراهيم سعيد موذي | C53: 0 | D53: 57 | E53: 65 | F53: 8 | G53: 2000 | H53: 1600 | I53: 100 | J53: 0 | K53: 1500 | L53: 3700 | M53: 1500 | N53: 2200 | P53: العنوان / الخضراء | T53: رقم العداد : | U53: =VLOOKUP(U51,A1:N232,3,0) -> 0
A54: 53 | B54: سعيد صالح صديفي | C54: 0 | D54: 243 | E54: 250 | F54: 7 | G54: 1750 | H54: 5000 | I54: 100 | J54: 0 | K54: 5000 | L54: 6850 | M54: 5000 | N54: 1850 | T54: عن شهر : | U54: سبتمبر / 2018م
A55: 54 | B55: محمد ابراهيم سعيد موذي | C55: 0 | D55: 25 | E55: 28 | F55: 3 | G55: 750 | H55: 1100 | I55: 100 | J55: 0 | K55: 1100 | L55: 1950 | M55: 1100 | N55: 850 | P55: قراءة العداد | R55: الاستهلاك | S55: قيمة المياه | T55: الرصيد السابق | U55: المبلغ المستحق
A56: 55 | B56: زيد محمد موذي | C56: 153 | D56: 139 | E56: 149 | F56: 10 | G56: 2500 | H56: 1400 | I56: 100 | J56: 0 | K56: 0 | L56: 4000 | M56: 0 | N56: 4000 | P56: السابقة | Q56: الحالية | S56: ريال | T56: ريال | U56: ريال
A57: 56 | B57: محفوظ احمد مدردر | C57: 213003 | D57: 748 | E57: 758 | F57: 10 | G57: 2500 | H57: 700 | I57: 100 | J57: 0 | K57: 0 | L57: 3300 | M57: 0 | N57: 3300 | P57: =VLOOKUP(U51,A1:N243,4,0) -> 625 | Q57: =VLOOKUP(U51,A1:N243,5,0) -> 629 | R57: =VLOOKUP(U51,A1:N232,6,0) -> 4 | S57: =VLOOKUP(U51,A1:N232,7,0) -> 1000 | T57: =VLOOKUP(U51,A1:N232,8,0) -> 0 | U57: =(S57+T57) -> 1000
A58: 57 | B58: علي سالم علي عبيدي | C58: 17080303 | D58: 53 | E58: 62 | F58: 9 | G58: 2250 | H58: 4400 | I58: 100 | J58: 0 | K58: 4500 | L58: 6750 | M58: 4500 | N58: 2250 | S58: المدفوع حتى 31 /08/ 2018م | U58: =VLOOKUP(U51,A1:N232,11,0) -> 0
A59: 58 | B59: احمد عوض احمد موذي | C59: 216135 | D59: 90359 | E59: 90367 | F59: 8 | G59: 2000 | H59: 7800 | I59: 100 | J59: 0 | K59: 0 | L59: 9900 | M59: 0 | N59: 9900 | S59: اشتراك شهري : | U59: =VLOOKUP(U51,A1:N232,9,0) -> 100
A60: 59 | B60: عوض احمد عوض موذي | C60: 213297 | D60: 2 | E60: 3 | F60: 1 | G60: 250 | H60: 800 | I60: 100 | J60: 0 | K60: 500 | L60: 1150 | M60: 500 | N60: 650 | S60: خدمات أخرى : | U60: =VLOOKUP(U51,A1:N232,10,0) -> 0
A61: 60 | B61: راجح عوض احمد موذي | C61: 216278 | D61: 383 | E61: 388 | F61: 5 | G61: 1250 | H61: 2000 | I61: 100 | J61: 0 | K61: 2000 | L61: 3350 | M61: 2000 | N61: 1350 | P61: =CH_N_TO_TEXT(U61) -> فقط ألف ومائة ريال يمني لاغير | T61: الإجمالي : | U61: =((U57-U58)+U59+U60) -> 1100
A62: 61 | B62: علي محمد علي عبيدي | C62: 4991 | D62: 321 | E62: 323 | F62: 2 | G62: 500 | H62: 2400 | I62: 100 | J62: 0 | K62: 0 | L62: 3000 | M62: 0 | N62: 3000
A63: 62 | B63: فيصل محمد علي عبيدي | C63: 214816 | D63: 899 | E63: 910 | F63: 11 | G63: 2750 | H63: 3600 | I63: 100 | J63: 0 | K63: 0 | L63: 6450 | M63: 0 | N63: 6450
A64: 63 | B64: راجح علي عبده صبيحي | C64: 0 | D64: 173 | E64: 180 | F64: 7 | G64: 1750 | H64: 600 | I64: 100 | J64: 0 | K64: 500 | L64: 2450 | M64: 500 | N64: 1950 | P64: مشروع مياه الخضراء | T64: فاتورة رقــم : | U64: =(U51) -> 231
A65: 64 | B65: احمد عبده زهوي | C65: 23829 | D65: 669 | E65: 679 | F65: 10 | G65: 2500 | H65: 300 | I65: 100 | J65: 0 | K65: 300 | L65: 2900 | M65: 300 | N65: 2600 | P65: محافظة تعز / مديرية المخاء | T65: رقم العداد : | U65: =U53 -> 0
A66: 65 | B66: جميل عبده احمد موذي | C66: 215266 | D66: 396 | E66: 397 | F66: 1 | G66: 250 | H66: 11200 | I66: 100 | J66: 0 | K66: 0 | L66: 11550 | M66: 0 | N66: =(L66-M66) -> 11550 | P66: المطلوب من الأخ / | R66: =R52 -> عبدالله علي محلي | T66: عن شهر : | U66: سبتمبر / 2018م
A67: 66 | B67: عبده احمد عوض موذي | C67: 0 | D67: 170 | E67: 180 | F67: =(E67-D67) -> 10 | G67: =(250*F67) -> 2500 | H67: 2100 | I67: 100 | J67: 0 | K67: 0 | L67: =(G67+H67+I67+J67) -> 4700 | M67: =K67 -> 0 | N67: 4700 | P67: =P61 -> فقط ألف ومائة ريال يمني لاغير | T67: الإجمالي : | U67: =U61 -> 1100
A68: 67 | B68: امين عبده احمد موذي | C68: 0 | D68: 161 | E68: 167 | F68: 6 | G68: 1500 | H68: 900 | I68: 100 | J68: 0 | K68: 900 | L68: 2500 | M68: 900 | N68: 1600
A69: 68 | B69: سالم محمد احمد موذي | C69: 66944 | D69: 122 | E69: 127 | F69: 5 | G69: 1250 | H69: 200 | I69: 100 | J69: 0 | K69: 0 | L69: 1550 | M69: 0 | N69: 1550 | P69: مشروع مياه الخضراء | AF69: ح
A70: 69 | B70: علي محمد صديفي | C70: 205746 | D70: 20320 | E70: 20320 | F70: 0 | G70: 0 | H70: 1800 | I70: 100 | J70: 0 | K70: 0 | L70: 1900 | M70: 0 | N70: 1900 | P70: محافظة تعز / مديرية المخاء
A71: 70 | B71: عبده علي محمد صديفي | C71: 0 | D71: 617 | E71: 622 | F71: 5 | G71: 1250 | H71: 5500 | I71: 100 | J71: 0 | K71: 2000 | L71: 6850 | M71: 2000 | N71: 4850 | T71: فاتورة رقــم : | U71: 232
A72: 71 | B72: محمد صالح احمد موذي | C72: 205680 | D72: 461 | E72: 464 | F72: 3 | G72: 750 | H72: 500 | I72: 100 | J72: 0 | K72: 500 | L72: 1350 | M72: 500 | N72: 850 | P72: المطلوب من الأخ / | R72: =VLOOKUP(U71,A1:N233,2,0) -> معاذ محمد علي قحيم
A73: 72 | B73: ابراهيم صالح احمد عوض موذي | C73: 216134 | D73: 428 | E73: 435 | F73: 7 | G73: 1750 | H73: 1300 | I73: 100 | J73: 0 | K73: 0 | L73: 3150 | M73: 0 | N73: 3150 | P73: العنوان / الخضراء | T73: رقم العداد : | U73: =VLOOKUP(U71,A1:N233,3,0) -> 0
A74: 73 | B74: علي صالح علي صديفي | C74: 225811 | D74: 215 | E74: 225 | F74: 10 | G74: 2500 | H74: 300 | I74: 100 | J74: 0 | K74: 0 | L74: 2900 | M74: 0 | N74: 2900 | T74: عن شهر : | U74: سبتمبر / 2018م
A75: 74 | B75: عبده محمد عبدالله عميرة | C75: 0 | D75: 1905 | E75: 1918 | F75: 13 | G75: 3250 | H75: 2900 | I75: 100 | J75: 0 | K75: 2900 | L75: 6250 | M75: 2900 | N75: 3350 | P75: قراءة العداد | R75: الاستهلاك | S75: قيمة المياه | T75: الرصيد السابق | U75: المبلغ المستحق
A76: 75 | B76: احمد محمد عبدالله عميرة | C76: 0 | D76: 2965 | E76: 2985 | F76: 20 | G76: 5000 | H76: 4100 | I76: 100 | J76: 0 | K76: 4000 | L76: 9200 | M76: 4000 | N76: 5200 | P76: السابقة | Q76: الحالية | S76: ريال | T76: ريال | U76: ريال
A77: 76 | B77: راجح احمد محمد عميرة | C77: 0 | D77: 845 | E77: 845 | F77: 0 | G77: 0 | H77: 300 | I77: 100 | J77: 0 | K77: 300 | L77: 400 | M77: 300 | N77: 100 | P77: =VLOOKUP(U71,A1:N243,4,0) -> 0 | Q77: =VLOOKUP(U71,A1:N243,5,0) -> 1 | R77: =VLOOKUP(U71,A1:N243,6,0) -> 1 | S77: =VLOOKUP(U71,A1:N233,7,0) -> 250 | T77: =VLOOKUP(U71,A1:N233,8,0) -> 0 | U77: =(T77+S77) -> 250
A78: 77 | B78: محمد احمد محمد عميرة | C78: 0 | D78: 229 | E78: 230 | F78: 1 | G78: 250 | H78: 300 | I78: 100 | J78: 0 | K78: 300 | L78: 650 | M78: 300 | N78: 350 | S78: المدفوع حتى 31 /08/ 2018م | U78: =VLOOKUP(U71,A1:N233,11,0) -> 0
A79: 78 | B79: عبدالله محمد عبدالله عميرة | C79: 214829 | D79: 1622 | E79: 1632 | F79: 10 | G79: 2500 | H79: 1000 | I79: 100 | J79: 0 | K79: 1000 | L79: 3600 | M79: 1000 | N79: 2600 | S79: اشتراك شهري : | U79: =VLOOKUP(U71,A1:N233,9,0) -> 100
A80: 79 | B80: علي محمد عبدالله عميرة | C80: 0 | D80: 1690 | E80: 1704 | F80: 14 | G80: 3500 | H80: 3300 | I80: 100 | J80: 0 | K80: 3000 | L80: 6900 | M80: 3000 | N80: 3900 | S80: خدمات أخرى : | U80: =VLOOKUP(U71,A1:N233,10,0) -> 0
A81: 80 | B81: حيدر علي محمد عميرة | C81: 0 | D81: 550 | E81: 550 | F81: 0 | G81: 0 | H81: 3000 | I81: 100 | J81: 0 | K81: 2000 | L81: 3100 | M81: 2000 | N81: 1100 | P81: =CH_N_TO_TEXT(U81) -> فقط ثلاثمائة وخمسون ريال يمني لاغير | T81: الإجمالي : | U81: =((U77-U78)+U79+U80) -> 350
A82: 81 | B82: عايش عبدالله محمد عميرة | C82: 0 | D82: 865 | E82: 865 | F82: 0 | G82: 0 | H82: 10300 | I82: 100 | J82: 0 | K82: 0 | L82: 10400 | M82: 0 | N82: 10400
A83: 82 | B83: علي عبدالله محمد عميرة | C83: 0 | D83: 895 | E83: 900 | F83: 5 | G83: 1250 | H83: 300 | I83: 100 | J83: 0 | K83: 300 | L83: 1650 | M83: 300 | N83: 1350
A84: 83 | B84: امين عبدالله محمد عميرة | C84: 0 | D84: 88 | E84: 89 | F84: 1 | G84: 250 | H84: 500 | I84: 100 | J84: 0 | K84: 500 | L84: 850 | M84: 500 | N84: 350 | P84: مشروع مياه الخضراء | T84: فاتورة رقــم : | U84: =U71 -> 232
A85: 84 | B85: ابراهيم محمد عبدالله عميرة | C85: 0 | D85: 1350 | E85: 1350 | F85: 0 | G85: 0 | H85: 3200 | I85: 100 | J85: 0 | K85: 3200 | L85: 3300 | M85: 3200 | N85: 100 | P85: محافظة تعز / مديرية المخاء | T85: رقم العداد : | U85: =U73 -> 0
A86: 85 | B86: جميل ابراهيم محمد عميرة | C86: 0 | D86: 799 | E86: 799 | F86: 0 | G86: 0 | H86: 3200 | I86: 100 | J86: 0 | K86: 2000 | L86: 3300 | M86: 2000 | N86: 1300 | P86: المطلوب من الأخ / | R86: =R72 -> معاذ محمد علي قحيم | T86: عن شهر : | U86: سبتمبر / 2018م
A87: 86 | B87: فواز علي محمد صديفي | C87: 205676 | D87: 907 | E87: 911 | F87: 4 | G87: 1000 | H87: 2800 | I87: 100 | J87: 0 | K87: 0 | L87: 3900 | M87: 0 | N87: 3900 | P87: =P81 -> فقط ثلاثمائة وخمسون ريال يمني لاغير | T87: الإجمالي : | U87: =U81 -> 350
A88: 87 | B88: علي يحيى محمد عميرة | C88: 0 | D88: 230 | E88: 234 | F88: 4 | G88: 1000 | H88: 3400 | I88: 100 | J88: 0 | K88: 0 | L88: 4500 | M88: 0 | N88: 4500
A89: 88 | B89: عبده محمد زايد سعيد | C89: 215847 | D89: 1823 | E89: 1844 | F89: 21 | G89: 5250 | H89: 4200 | I89: 100 | J89: 0 | K89: 4000 | L89: 9550 | M89: 4000 | N89: 5550
A90: 89 | B90: خالد محمد زايد سعيد | C90: 0 | D90: 641 | E90: 649 | F90: 8 | G90: 2000 | H90: 1300 | I90: 100 | J90: 0 | K90: 1300 | L90: 3400 | M90: 1300 | N90: 2100
A91: 90 | B91: محرم سعيد زايد سعيد | C91: 0 | D91: 50 | E91: 50 | F91: 0 | G91: 0 | H91: 200 | I91: 100 | J91: 0 | K91: 0 | L91: 300 | M91: 0 | N91: 300
A92: 91 | B92: هائل سعيد زايد سعيد | C92: 0 | D92: 32 | E92: 42 | F92: 10 | G92: 2500 | H92: 3500 | I92: 100 | J92: 0 | K92: 3500 | L92: 6100 | M92: 3500 | N92: 2600
A93: 92 | B93: حمود سعيد زايد سعيد | C93: 0 | D93: 1013 | E93: 1013 | F93: 0 | G93: 0 | H93: 100 | I93: 100 | J93: 0 | K93: 0 | L93: 200 | M93: 0 | N93: 200
A94: 93 | B94: سعيد سليمان محمد سليمان | C94: 0 | D94: 799 | E94: 805 | F94: 6 | G94: 1500 | H94: 1100 | I94: 100 | J94: 0 | K94: 1000 | L94: 2700 | M94: 1000 | N94: 1700
A95: 94 | B95: محمد سليمان محمد سليمان | C95: 213414 | D95: 861 | E95: 870 | F95: 9 | G95: 2250 | H95: 1300 | I95: 100 | J95: 0 | K95: 1000 | L95: 3650 | M95: 1000 | N95: 2650
A96: 95 | B96: أحمد سليمان محمد سليمان | C96: 215807 | D96: 666 | E96: 678 | F96: 12 | G96: 3000 | H96: 1500 | I96: 100 | J96: 0 | K96: 1500 | L96: 4600 | M96: 1500 | N96: 3100
A97: 96 | B97: سليمان محمد سليمان | C97: 216297 | D97: 988 | E97: 1001 | F97: 13 | G97: 3250 | H97: 2550 | I97: 100 | J97: 0 | K97: 2550 | L97: 5900 | M97: 2550 | N97: 3350
A98: 97 | B98: صالح محمد سليمان | C98: 213404 | D98: 1121 | E98: 1133 | F98: 12 | G98: 3000 | H98: 700 | I98: 100 | J98: 0 | K98: 700 | L98: 3800 | M98: 700 | N98: 3100
A99: 98 | B99: نبيل صالح محمد سليمان | C99: 0 | D99: 668 | E99: 675 | F99: 7 | G99: 1750 | H99: 1400 | I99: 100 | J99: 0 | K99: 1400 | L99: 3250 | M99: 1400 | N99: 1850
A100: 99 | B100: فضل صالح محمد سليمان | C100: 0 | D100: 315 | E100: 319 | F100: 4 | G100: 1000 | H100: 1100 | I100: 100 | J100: 0 | K100: 1100 | L100: 2200 | M100: 1100 | N100: 1100
A101: 100 | B101: عبدالله صالح محمد سليمان | C101: 2778 | D101: 399 | E101: 404 | F101: 5 | G101: 1250 | H101: 1100 | I101: 100 | J101: 0 | K101: 1000 | L101: 2450 | M101: 1000 | N101: 1450
A102: 101 | B102: بسام صالح محمد سليمان | C102: 28049 | D102: 321 | E102: 337 | F102: 16 | G102: 4000 | H102: 2100 | I102: 100 | J102: 0 | K102: 2100 | L102: 6200 | M102: 2100 | N102: 4100
A103: 102 | B103: علي صالح محمد سليمان | C103: 212566 | D103: 761 | E103: 784 | F103: 23 | G103: 5750 | H103: 1100 | I103: 100 | J103: 0 | K103: 1000 | L103: 6950 | M103: 1000 | N103: 5950
A104: 103 | B104: اسماعيل صالح محمد سليمان | C104: 0 | D104: 149 | E104: 152 | F104: 3 | G104: 750 | H104: 1300 | I104: 100 | J104: 0 | K104: 1300 | L104: 2150 | M104: 1300 | N104: 850
A105: 104 | B105: فهد عبده محمد سليمان | C105: 210659 | D105: 642 | E105: 646 | F105: 4 | G105: 1000 | H105: 1100 | I105: 100 | J105: 0 | K105: 1100 | L105: 2200 | M105: 1100 | N105: 1100
A106: 105 | B106: جميل عبده محمد سليمان | C106: 0 | D106: 793 | E106: 810 | F106: 17 | G106: 4250 | H106: 3700 | I106: 100 | J106: 0 | K106: 3700 | L106: 8050 | M106: 3700 | N106: 4350
A107: 106 | B107: خالد عبده محمد سليمان | C107: 0 | D107: 29 | E107: 34 | F107: 5 | G107: 1250 | H107: 1300 | I107: 100 | J107: 0 | K107: 1300 | L107: 2650 | M107: 1300 | N107: 1350
A108: 107 | B108: رياض علي محمد سليمان | C108: 210906 | D108: 805 | E108: 817 | F108: 12 | G108: 3000 | H108: 1500 | I108: 100 | J108: 0 | K108: 1500 | L108: 4600 | M108: 1500 | N108: 3100
A109: 108 | B109: أحمد محمد محمد زوقري | C109: 216560 | D109: 899 | E109: 907 | F109: 8 | G109: 2000 | H109: 2100 | I109: 100 | J109: 0 | K109: 2100 | L109: 4200 | M109: 2100 | N109: 2100
A110: 109 | B110: فهبم أحمد محمد زوقري | C110: 120662 | D110: 1062 | E110: 1078 | F110: 16 | G110: 4000 | H110: 3100 | I110: 100 | J110: 0 | K110: 3100 | L110: 7200 | M110: 3100 | N110: 4100
A111: 110 | B111: صالح أحمد محمد زوقري | C111: 23286 | D111: 489 | E111: 503 | F111: 14 | G111: 3500 | H111: 2900 | I111: 100 | J111: 0 | K111: 2900 | L111: 6500 | M111: 2900 | N111: 3600
A112: 111 | B112: خالد أحمد محمد زوقري | C112: 212318 | D112: 489 | E112: 492 | F112: 3 | G112: 750 | H112: 1300 | I112: 100 | J112: 0 | K112: 1300 | L112: 2150 | M112: 1300 | N112: 850
A113: 112 | B113: سعيد أحمد زوقري | C113: 211208 | D113: 979 | E113: 993 | F113: 14 | G113: 3500 | H113: 2700 | I113: 100 | J113: 0 | K113: 2700 | L113: 6300 | M113: 2700 | N113: 3600
A114: 113 | B114: منير أحمد محمد زوقري | C114: 12298 | D114: 594 | E114: 602 | F114: 8 | G114: 2000 | H114: 1300 | I114: 100 | J114: 0 | K114: 1300 | L114: 3400 | M114: 1300 | N114: 2100
A115: 114 | B115: محمد علي محمد زوقري | C115: 212906 | D115: 10530 | E115: 10534 | F115: 4 | G115: 1000 | H115: 1300 | I115: 100 | J115: 0 | K115: 0 | L115: 2400 | M115: 0 | N115: 2400
A116: 115 | B116: سعيد محمد زوقري | C116: 216864 | D116: 660 | E116: 667 | F116: 7 | G116: 1750 | H116: 1500 | I116: 100 | J116: 0 | K116: 1500 | L116: 3350 | M116: 1500 | N116: 1850
A117: 116 | B117: عوض عبدالله زوقري | C117: 211821 | D117: 512 | E117: 517 | F117: 5 | G117: 1250 | H117: 1300 | I117: 100 | J117: 0 | K117: 1300 | L117: 2650 | M117: 1300 | N117: 1350
A118: 117 | B118: محمد عبدالله زوقري | C118: 0 | D118: 75 | E118: 88 | F118: 13 | G118: 3250 | H118: 4700 | I118: 100 | J118: 0 | K118: 2000 | L118: 8050 | M118: 2000 | N118: 6050
A119: 118 | B119: عبدالله محمد زوقري | C119: 215874 | D119: 549 | E119: 556 | F119: 7 | G119: 1750 | H119: 1700 | I119: 100 | J119: 0 | K119: 1700 | L119: 3550 | M119: 1700 | N119: 1850
A120: 119 | B120: عايد علي محمد زوقري | C120: 210997 | D120: 560 | E120: 566 | F120: 6 | G120: 1500 | H120: 5100 | I120: 100 | J120: 0 | K120: 3000 | L120: 6700 | M120: 3000 | N120: 3700
A121: 120 | B121: نبيل علي محمد زوقري | C121: 213803 | D121: 986 | E121: 993 | F121: 7 | G121: 1750 | H121: 1700 | I121: 100 | J121: 0 | K121: 1600 | L121: 3550 | M121: 1600 | N121: 1950
A122: 121 | B122: أحمد علي محمد زوقري | C122: 210930 | D122: 725 | E122: 734 | F122: 9 | G122: 2250 | H122: 1900 | I122: 100 | J122: 0 | K122: 1900 | L122: 4250 | M122: 1900 | N122: 2350
A123: 122 | B123: عبدالعزيز محمد سكندر | C123: 215304 | D123: 643 | E123: 654 | F123: 11 | G123: 2750 | H123: 1900 | I123: 100 | J123: 0 | K123: 1900 | L123: 4750 | M123: 1900 | N123: 2850
A124: 123 | B124: عبدالله محمد سكندر | C124: 212503 | D124: 467 | E124: 470 | F124: 3 | G124: 750 | H124: 800 | I124: 100 | J124: 0 | K124: 800 | L124: 1650 | M124: 800 | N124: 850
A125: 124 | B125: أحمد محمد سكندر | C125: 883 | D125: 12 | E125: 15 | F125: 3 | G125: 750 | H125: 1000 | I125: 100 | J125: 0 | K125: 1000 | L125: 1850 | M125: 1000 | N125: 850
A126: 125 | B126: محمد عبده علي زوقري | C126: 212981 | D126: 459 | E126: 462 | F126: 3 | G126: 750 | H126: 1800 | I126: 100 | J126: 0 | K126: 1800 | L126: 2650 | M126: 1800 | N126: 850
A127: 126 | B127: محمد أحمد قبصي | C127: 212367 | D127: 710 | E127: 722 | F127: 12 | G127: 3000 | H127: 2400 | I127: 100 | J127: 0 | K127: 2400 | L127: 5500 | M127: 2400 | N127: 3100
A128: 127 | B128: علي محمد أحمد قبصي | C128: 211376 | D128: 502 | E128: 508 | F128: 6 | G128: 1500 | H128: 1850 | I128: 100 | J128: 0 | K128: 1850 | L128: 3450 | M128: 1850 | N128: 1600
A129: 128 | B129: أحمد محمد أحمد قبصي | C129: 354 | D129: 229 | E129: 234 | F129: 5 | G129: 1250 | H129: 3000 | I129: 100 | J129: 0 | K129: 3000 | L129: 4350 | M129: 3000 | N129: 1350
A130: 129 | B130: نشوان محمد أحمد قبصي | C130: 205948 | D130: 598 | E130: 607 | F130: 9 | G130: 2250 | H130: 3000 | I130: 100 | J130: 0 | K130: 3000 | L130: 5350 | M130: 3000 | N130: =(L130-M130) -> 2350
A131: 130 | B131: رزق محمد قبصي | C131: 0 | D131: 215 | E131: 225 | F131: =(E131-D131) -> 10 | G131: =(250*F131) -> 2500 | H131: 1600 | I131: 100 | J131: 0 | K131: 1600 | L131: =(G131+H131+I131+J131) -> 4200 | M131: =K131 -> 1600 | N131: 2600
A132: 131 | B132: سمير محمد قبصي | C132: 320319 | D132: 109 | E132: 119 | F132: 10 | G132: 2500 | H132: 2200 | I132: 100 | J132: 0 | K132: 2200 | L132: 4800 | M132: 2200 | N132: 2600
A133: 132 | B133: إبراهيم سعيد زيد | C133: 0 | D133: 210 | E133: 215 | F133: 5 | G133: 1250 | H133: 100 | I133: 100 | J133: 0 | K133: 0 | L133: 1450 | M133: 0 | N133: 1450
A134: 133 | B134: محمد عبدالله زيد | C134: 0 | D134: 199 | E134: 210 | F134: 11 | G134: 2750 | H134: 3100 | I134: 100 | J134: 0 | K134: 3000 | L134: 5950 | M134: 3000 | N134: 2950
A135: 134 | B135: سعيد زيد حكيمي | C135: 215226 | D135: 11411 | E135: 11413 | F135: 2 | G135: 500 | H135: 1000 | I135: 100 | J135: 0 | K135: 1000 | L135: 1600 | M135: 1000 | N135: 600
A136: 135 | B136: أحمد عبدالله زيد | C136: 12064 | D136: 10332 | E136: 10342 | F136: 10 | G136: 2500 | H136: 1100 | I136: 100 | J136: 0 | K136: 0 | L136: 3700 | M136: 0 | N136: 3700
A137: 136 | B137: عوض محمد قاسم قحيم | C137: 204006 | D137: 1249 | E137: 1249 | F137: 0 | G137: 0 | H137: 500 | I137: 100 | J137: 0 | K137: 0 | L137: 600 | M137: 0 | N137: 600
A138: 137 | B138: مجيد محمد قاسم قحيم | C138: 2959 | D138: 521 | E138: 532 | F138: 11 | G138: 2750 | H138: 2000 | I138: 100 | J138: 0 | K138: 2000 | L138: 4850 | M138: 2000 | N138: 2850
A139: 138 | B139: صدام محمد قاسم | C139: 210984 | D139: 628 | E139: 628 | F139: 0 | G139: 0 | H139: 1700 | I139: 100 | J139: 0 | K139: 2000 | L139: 1800 | M139: 2000 | N139: -200
A140: 139 | B140: أحمد زيد حكيمي | C140: 206063 | D140: 728 | E140: 733 | F140: 5 | G140: 1250 | H140: 3200 | I140: 100 | J140: 0 | K140: 1500 | L140: 4550 | M140: 1500 | N140: 3050
A141: 140 | B141: علي عبدالله زيد | C141: 213406 | D141: 969 | E141: 978 | F141: 9 | G141: 2250 | H141: 2400 | I141: 100 | J141: 0 | K141: 2000 | L141: 4750 | M141: 2000 | N141: 2750
A142: 141 | B142: عبدالله محمد علي قحيم | C142: 214766 | D142: 1462 | E142: 1485 | F142: 23 | G142: 5750 | H142: 2500 | I142: 100 | J142: 0 | K142: 2500 | L142: 8350 | M142: 2500 | N142: 5850
A143: 142 | B143: علي بن علي عوض مدردر | C143: 0 | D143: 19 | E143: 24 | F143: 5 | G143: 1250 | H143: 700 | I143: 100 | J143: 0 | K143: 700 | L143: 2050 | M143: 700 | N143: 1350
A144: 143 | B144: بديع عوض علي مدردر | C144: 212529 | D144: 1036 | E144: 1046 | F144: 10 | G144: 2500 | H144: 2300 | I144: 100 | J144: 0 | K144: 2100 | L144: 4900 | M144: 2100 | N144: 2800
A145: 144 | B145: حبيب أحمد علي مدردر | C145: 214623 | D145: 867 | E145: 875 | F145: 8 | G145: 2000 | H145: 1300 | I145: 100 | J145: 0 | K145: 1300 | L145: 3400 | M145: 1300 | N145: 2100
A146: 145 | B146: محمد أحمد علي مدردر | C146: 210452 | D146: 373 | E146: 385 | F146: 12 | G146: 3000 | H146: 1700 | I146: 100 | J146: 0 | K146: 1700 | L146: 4800 | M146: 1700 | N146: 3100
A147: 146 | B147: مصعب سعيد مدردر | C147: 210916 | D147: 567 | E147: 571 | F147: 4 | G147: 1000 | H147: 1700 | I147: 100 | J147: 0 | K147: 1700 | L147: 2800 | M147: 1700 | N147: 1100
A148: 147 | B148: علي عبدالله علي قحيم | C148: 8102008 | D148: 96 | E148: 116 | F148: 20 | G148: 5000 | H148: 4300 | I148: 100 | J148: 0 | K148: 3300 | L148: 9400 | M148: 3300 | N148: 6100
A149: 148 | B149: تقي محمد علي قحيم | C149: 140887 | D149: 54 | E149: 68 | F149: 14 | G149: 3500 | H149: 2100 | I149: 100 | J149: 0 | K149: 2100 | L149: 5700 | M149: 2100 | N149: 3600
A150: 149 | B150: صلاح محمد علي قحيم | C150: 211616 | D150: 693 | E150: 710 | F150: 17 | G150: 4250 | H150: 1500 | I150: 100 | J150: 0 | K150: 1500 | L150: 5850 | M150: 1500 | N150: 4350
A151: 150 | B151: علي أحمد علي قحيم | C151: 214699 | D151: 2 | E151: 14 | F151: 12 | G151: 3000 | H151: 700 | I151: 100 | J151: 0 | K151: 400 | L151: 3800 | M151: 400 | N151: 3400
A152: 151 | B152: عبده علي هواش | C152: 4980 | D152: 229 | E152: 235 | F152: 6 | G152: 1500 | H152: 900 | I152: 100 | J152: 0 | K152: 900 | L152: 2500 | M152: 900 | N152: 1600
A153: 152 | B153: سعيدعلي علي محلي | C153: 215707 | D153: 1068 | E153: 1076 | F153: 8 | G153: 2000 | H153: 3400 | I153: 100 | J153: 0 | K153: 1500 | L153: 5500 | M153: 1500 | N153: 4000
A154: 153 | B154: أحمد علي علي محلي | C154: 210766 | D154: 1489 | E154: 1492 | F154: 3 | G154: 750 | H154: 1100 | I154: 100 | J154: 0 | K154: 1100 | L154: 1950 | M154: 1100 | N154: 850
A155: 154 | B155: محمد علي علي محلي | C155: 215439 | D155: 428 | E155: 431 | F155: 3 | G155: 750 | H155: 2750 | I155: 100 | J155: 0 | K155: 0 | L155: 3600 | M155: 0 | N155: 3600
A156: 155 | B156: عبده سعيد سراجي | C156: 215549 | D156: 728 | E156: 740 | F156: 12 | G156: 3000 | H156: 1900 | I156: 100 | J156: 0 | K156: 1900 | L156: 5000 | M156: 1900 | N156: 3100
A157: 156 | B157: عبدالله علي علي محلي | C157: 214676 | D157: 730 | E157: 739 | F157: 9 | G157: 2250 | H157: 1700 | I157: 100 | J157: 0 | K157: 1700 | L157: 4050 | M157: 1700 | N157: 2350
A158: 157 | B158: محمد حيدر علي محلي | C158: 213116 | D158: 0 | E158: 18 | F158: 18 | G158: 4500 | H158: 3000 | I158: 100 | J158: 0 | K158: 0 | L158: 7600 | M158: 0 | N158: 7600
A159: 158 | B159: فضل يوسف محلي | C159: 11480 | D159: 494 | E159: 498 | F159: 4 | G159: 1000 | H159: 900 | I159: 100 | J159: 0 | K159: 500 | L159: 2000 | M159: 500 | N159: 1500
A160: 159 | B160: علي زيد حكيمي | C160: 212538 | D160: 879 | E160: 896 | F160: 17 | G160: 4250 | H160: 10300 | I160: 100 | J160: 0 | K160: 6000 | L160: 14650 | M160: 6000 | N160: 8650
A161: 160 | B161: يوسف علي محلي | C161: 211683 | D161: 493 | E161: 499 | F161: 6 | G161: 1500 | H161: 2800 | I161: 100 | J161: 0 | K161: 2000 | L161: 4400 | M161: 2000 | N161: 2400
A162: 161 | B162: أحمد حيدر علي محلي | C162: 888990 | D162: 266 | E162: 278 | F162: 12 | G162: 3000 | H162: 1900 | I162: 100 | J162: 0 | K162: 1900 | L162: 5000 | M162: 1900 | N162: 3100
A163: 162 | B163: علي حيدر علي محلي | C163: 215295 | D163: 786 | E163: 792 | F163: 6 | G163: 1500 | H163: 1300 | I163: 100 | J163: 0 | K163: 1300 | L163: 2900 | M163: 1300 | N163: 1600
A164: 163 | B164: مسجد أحمد حيدر علي | C164: 0 | D164: 73 | E164: 94 | F164: 21 | G164: 5250 | H164: 4700 | I164: 100 | J164: 0 | K164: 4700 | L164: 10050 | M164: 4700 | N164: 5350
A165: 164 | B165: نبيل عبدالله زايد | C165: 12153 | D165: 215 | E165: 227 | F165: 12 | G165: 3000 | H165: 2600 | I165: 100 | J165: 0 | K165: 2500 | L165: 5700 | M165: 2500 | N165: 3200
A166: 165 | B166: حيدر سعيد سالم حكيمي | C166: 205778 | D166: 1254 | E166: 1265 | F166: 11 | G166: 2750 | H166: 2800 | I166: 100 | J166: 0 | K166: 2800 | L166: 5650 | M166: 2800 | N166: 2850
A167: 166 | B167: عبدالله علي عميره | C167: 705591 | D167: 900 | E167: 915 | F167: 15 | G167: 3750 | H167: 3700 | I167: 100 | J167: 0 | K167: 3000 | L167: 7550 | M167: 3000 | N167: 4550
A168: 167 | B168: محمد علي عبدالله عميره | C168: 705527 | D168: 5 | E168: 30 | F168: 25 | G168: 6250 | H168: 1200 | I168: 100 | J168: 0 | K168: 0 | L168: 7550 | M168: 0 | N168: 7550
A169: 168 | B169: علي سعيد عميره | C169: 700869 | D169: 260 | E169: 275 | F169: 15 | G169: 3750 | H169: 3100 | I169: 100 | J169: 0 | K169: 3000 | L169: 6950 | M169: 3000 | N169: 3950
A170: 169 | B170: صديق هايل عميره | C170: 705530 | D170: 199 | E170: 1228 | F170: 1029 | G170: 257250 | H170: 8500 | I170: 100 | J170: 0 | K170: 6000 | L170: 265850 | M170: 6000 | N170: 259850
A171: 170 | B171: بديع علي عبدالله عميره | C171: 0 | D171: 111 | E171: 125 | F171: 14 | G171: 3500 | H171: 3100 | I171: 100 | J171: 0 | K171: 1700 | L171: 6700 | M171: 1700 | N171: 5000
A172: 171 | B172: محمد ناجي عميره | C172: 0 | D172: 49 | E172: 57 | F172: 8 | G172: 2000 | H172: 3800 | I172: 100 | J172: 0 | K172: 2000 | L172: 5900 | M172: 2000 | N172: 3900
A173: 172 | B173: فؤاد سعيد عميره | C173: 708088 | D173: 1029 | E173: 1040 | F173: 11 | G173: 2750 | H173: 100 | I173: 100 | J173: 0 | K173: 100 | L173: 2950 | M173: 100 | N173: 2850
A174: 173 | B174: سعيد يحيى صديفي | C174: 0 | D174: 1424 | E174: 1432 | F174: 8 | G174: 2000 | H174: 5300 | I174: 100 | J174: 0 | K174: 4000 | L174: 7400 | M174: 4000 | N174: 3400
A175: 174 | B175: واتح يحيى صديفي | C175: 215666 | D175: 11368 | E175: 11368 | F175: 0 | G175: 0 | H175: 2400 | I175: 100 | J175: 0 | K175: 0 | L175: 2500 | M175: 0 | N175: 2500
A176: 175 | B176: عبداللطيف يحيى صديفي | C176: 0 | D176: 52 | E176: 65 | F176: 13 | G176: 3250 | H176: 2300 | I176: 100 | J176: 0 | K176: 2300 | L176: 5650 | M176: 2300 | N176: 3350
A177: 176 | B177: سالم راجح محمد صديفي | C177: 211249 | D177: 1178 | E177: 1192 | F177: 14 | G177: 3500 | H177: 2900 | I177: 100 | J177: 0 | K177: 2900 | L177: 6500 | M177: 2900 | N177: 3600
A178: 177 | B178: الزراعي راجح محمد صديفي | C178: 211665 | D178: 977 | E178: 984 | F178: 7 | G178: 1750 | H178: 700 | I178: 100 | J178: 0 | K178: 700 | L178: 2550 | M178: 700 | N178: 1850
A179: 178 | B179: سعيد راجح صديفي | C179: 0 | D179: 10 | E179: 11 | F179: 1 | G179: 250 | H179: 700 | I179: 100 | J179: 0 | K179: 700 | L179: 1050 | M179: 700 | N179: 350
A180: 179 | B180: عبده يحيى صديفي | C180: 214829 | D180: 873 | E180: 873 | F180: 0 | G180: 0 | H180: 3300 | I180: 100 | J180: 0 | K180: 0 | L180: 3400 | M180: 0 | N180: 3400
A181: 180 | B181: همام يحيى صديفي | C181: 0 | D181: 80086 | E181: 80096 | F181: 10 | G181: 2500 | H181: 2050 | I181: 100 | J181: 0 | K181: 1400 | L181: 4650 | M181: 1400 | N181: 3250
A182: 181 | B182: عبدالله محمد حكيمي | C182: 3738237 | D182: 389 | E182: 395 | F182: 6 | G182: 1500 | H182: 900 | I182: 100 | J182: 0 | K182: 0 | L182: 2500 | M182: 0 | N182: 2500
A183: 182 | B183: خليل سالم خشب | C183: 215354 | D183: 385 | E183: 385 | F183: 0 | G183: 0 | H183: 900 | I183: 100 | J183: 0 | K183: 0 | L183: 1000 | M183: 0 | N183: 1000
A184: 183 | B184: علاوي سعيد حكيمي | C184: 3738220 | D184: 445 | E184: 445 | F184: 0 | G184: 0 | H184: 3500 | I184: 100 | J184: 0 | K184: 0 | L184: 3600 | M184: 0 | N184: 3600
A185: 184 | B185: أحمد علي هكي | C185: 215226 | D185: 1161 | E185: 1174 | F185: 13 | G185: 3250 | H185: 1650 | I185: 100 | J185: 0 | K185: 1000 | L185: 5000 | M185: 1000 | N185: 4000
A186: 185 | B186: أنور حمادي قحيم | C186: 0 | D186: 7 | E186: 7 | F186: 0 | G186: 0 | H186: 1900 | I186: 100 | J186: 0 | K186: 1700 | L186: 2000 | M186: 1700 | N186: 300
A187: 186 | B187: محمد محمد ثابت قحيم | C187: 0 | D187: 15 | E187: 16 | F187: 1 | G187: 250 | H187: 900 | I187: 100 | J187: 0 | K187: 0 | L187: 1250 | M187: 0 | N187: 1250
A188: 187 | B188: أحمد علي قلقلي | C188: 211687 | D188: 627 | E188: 628 | F188: 1 | G188: 250 | H188: 700 | I188: 100 | J188: 0 | K188: 0 | L188: 1050 | M188: 0 | N188: 1050
A189: 188 | B189: محمد علي قلقلي | C189: 0 | D189: 29 | E189: 35 | F189: 6 | G189: 1500 | H189: 1100 | I189: 100 | J189: 0 | K189: 1100 | L189: 2700 | M189: 1100 | N189: 1600
A190: 189 | B190: علي عبدالله زوقري | C190: 1470295 | D190: 26 | E190: 31 | F190: 5 | G190: 1250 | H190: 1300 | I190: 100 | J190: 0 | K190: 1300 | L190: 2650 | M190: 1300 | N190: 1350
A191: 190 | B191: محمد بن محمد زوقري | C191: 215360 | D191: 600 | E191: 603 | F191: 3 | G191: 750 | H191: 700 | I191: 100 | J191: 0 | K191: 700 | L191: 1550 | M191: 700 | N191: 850
A192: 191 | B192: حمدي أحمد علي زوقري | C192: 26812 | D192: 59 | E192: 59 | F192: 0 | G192: 0 | H192: 300 | I192: 100 | J192: 0 | K192: 0 | L192: 400 | M192: 0 | N192: 400
A193: 192 | B193: ذاكر يحيى محمد زوقري | C193: 1134 | D193: 165 | E193: 171 | F193: 6 | G193: 1500 | H193: 2200 | I193: 100 | J193: 0 | K193: 2200 | L193: 3800 | M193: 2200 | N193: 1600
A194: 193 | B194: عبده محمد زوقري | C194: 211236 | D194: 1010 | E194: 1021 | F194: 11 | G194: 2750 | H194: 2500 | I194: 100 | J194: 0 | K194: 2500 | L194: 5350 | M194: 2500 | N194: =(L194-M194) -> 2850
A195: 194 | B195: يحيى محمد زوقري | C195: 211088 | D195: 81233 | E195: 81245 | F195: =(E195-D195) -> 12 | G195: =(250*F195) -> 3000 | H195: 7500 | I195: 100 | J195: 0 | K195: 0 | L195: =(G195+H195+I195+J195) -> 10600 | M195: =K195 -> 0 | N195: 10600
A196: 195 | B196: عبده يحيى محمد زوقري | C196: 211397 | D196: 437 | E196: 438 | F196: 1 | G196: 250 | H196: 600 | I196: 100 | J196: 0 | K196: 0 | L196: 950 | M196: 0 | N196: 950
A197: 196 | B197: مجد علي زوقري | C197: 24470 | D197: 398 | E197: 407 | F197: 9 | G197: 2250 | H197: 1900 | I197: 100 | J197: 0 | K197: 1900 | L197: 4250 | M197: 1900 | N197: 2350
A198: 197 | B198: عبدالله علي محمد زوقري | C198: 24067 | D198: 156 | E198: 160 | F198: 4 | G198: 1000 | H198: 1600 | I198: 100 | J198: 0 | K198: 1500 | L198: 2700 | M198: 1500 | N198: 1200
A199: 198 | B199: علي عبدالله زوقري | C199: 212844 | D199: 306 | E199: 306 | F199: 0 | G199: 0 | H199: 100 | I199: 100 | J199: 0 | K199: 0 | L199: 200 | M199: 0 | N199: 200
A200: 199 | B200: عبده علي محمد زوقري | C200: 212932 | D200: 750 | E200: 754 | F200: 4 | G200: 1000 | H200: 1100 | I200: 100 | J200: 0 | K200: 0 | L200: 2200 | M200: 0 | N200: 2200
... 46 more rows

Sheet Oct (2)
A1: م | B1: اسم المشترك | C1: رقم العداد | D1: السابقة | E1: الحالية | F1: فارق القراءة | G1: قيمة المياه | H1: الرصيد السابق | I1: اشتراك شهري | J1: اخرى | K1: المدفوع حتى31-8-2018 | L1: إجمالي المبلغ | M1: المدفوع | N1: المتبقي
A2: 1 | B2: زيد عمر ناجي محمد | C2: 211117 | D2: 8108 | H2: 200 | I2: 100 | J2: 0 | Y2: 200 | IV2: =SUM(A2:IU2) -> 219726
A3: 2 | B3: زيد عمر ناجي محمد | C3: 38203 | D3: 3627 | H3: 16100 | I3: 100 | J3: 0 | Y3: 16100
A4: 3 | B4: زيد عمر ناجي محمد | C4: 214929 | D4: 4239 | H4: 38350 | I4: 100 | J4: 0 | Y4: 38350
A5: 4 | B5: زيد عمر ناجي محمد | C5: 11841 | D5: 6866 | H5: 5600 | I5: 100 | J5: 0 | Y5: 5600
A6: 5 | B6: زيد عمر ناجي محمد | C6: 213121 | D6: 34045 | H6: 100 | I6: 100 | J6: 0 | Y6: 100
A7: 6 | B7: مختار عمر ناجي محمد | C7: 210780 | D7: 1082 | H7: 100 | I7: 100 | J7: 0 | Y7: 100
A8: 7 | B8: صالح عمر ناجي محمد | C8: 210954 | D8: 1761 | H8: 11850 | I8: 100 | J8: 0 | Y8: 11850
A9: 8 | B9: صلاح عمر ناجي محمد | C9: 3738 | D9: 3224 | H9: 100 | I9: 100 | J9: 0 | Y9: 100
A10: 9 | B10: سعيد عباد سراجي | C10: 215329 | D10: 2188 | H10: 2600 | I10: 100 | J10: 0 | Y10: 2600
A11: 10 | B11: احمد علي ناجي محمد | C11: 214222 | D11: 15 | H11: 1600 | I11: 100 | J11: 0 | Y11: 1600
A12: 11 | B12: عبده علي ناجي محمد | C12: 210918 | D12: 1165 | H12: 350 | I12: 100 | J12: 0 | Y12: 350
A13: 12 | B13: علي بن علي ناجي محمد | C13: 210984 | D13: 2027 | H13: 3350 | I13: 100 | J13: 0 | Y13: 3350
A14: 13 | B14: صالح علي ناجي محمد | C14: 0 | D14: 109 | H14: 1600 | I14: 100 | J14: 0 | Y14: 1600
A15: 14 | B15: عمرو ناجي علي ناجي | C15: 11356 | D15: 267 | H15: -7900 | I15: 100 | J15: 0 | Y15: -7900
A16: 15 | B16: معاذ ناجي علي ناجي | C16: 0 | D16: 66 | H16: 1200 | I16: 100 | J16: 0 | Y16: 1200
A17: 16 | B17: عماد ناجي علي ناجي | C17: 58146 | D17: 101 | H17: 700 | I17: 100 | J17: 0 | Y17: 700
A18: 17 | B18: طارق ناجي علي ناجي | C18: 0 | D18: 37 | H18: 600 | I18: 100 | J18: 0 | Y18: 600
A19: 18 | B19: محمد سالم احمد ناجي | C19: 0 | D19: 82 | H19: 18950 | I19: 100 | J19: 0 | Y19: 18950
A20: 19 | B20: ناجي علي ناجي محمد | C20: 215095 | D20: 461 | H20: 850 | I20: 100 | J20: 0 | Y20: 850
A21: 20 | B21: محمد ناجي علي ناجي | C21: 216316 | D21: 918 | H21: 1850 | I21: 100 | J21: 0 | Y21: 1850
A22: 21 | B22: احمد ناجي علي ناجي | C22: 214892 | D22: 429 | H22: 850 | I22: 100 | J22: 0 | Y22: 850
A23: 22 | B23: علي ناجي علي ناجي | C23: 212438 | D23: 753 | H23: 100 | I23: 100 | J23: 0 | Y23: 100
A24: 23 | B24: محمد علي ناجي محمد | C24: 212781 | D24: 1571 | H24: 3100 | I24: 100 | J24: 0 | Y24: 3100
A25: 24 | B25: نزار محمد علي ناجي | C25: 11381 | D25: 577 | H25: 1350 | I25: 100 | J25: 0 | Y25: 1350
A26: 25 | B26: معتز محمد علي ناجي | C26: 215108 | D26: 1084 | H26: 850 | I26: 100 | J26: 0 | Y26: 850
A27: 26 | B27: عبده احمد ناجي محمد | C27: 212822 | D27: 949 | H27: 2350 | I27: 100 | J27: 0 | Y27: 2350
A28: 27 | B28: محمد احمد ناجي محمد | C28: 210912 | D28: 1918 | H28: 100 | I28: 100 | J28: 0 | Y28: 100
A29: 28 | B29: مصطفى سالم محمد ناجي | C29: 210833 | D29: 3080 | H29: 2600 | I29: 100 | J29: 0 | Y29: 2600
A30: 29 | B30: سعيد محمد ناجي محمد | C30: 213576 | D30: 305 | H30: 5300 | I30: 100 | J30: 0 | Y30: 5300
A31: 30 | B31: علي ثابت حميدان | C31: 214446 | D31: 329 | H31: 13350 | I31: 100 | J31: 0 | Y31: 13350
A32: 31 | B32: معذ محمد ثابت | C32: 210946 | D32: 21761 | H32: 11250 | I32: 100 | J32: 0 | Y32: 11250
A33: 32 | B33: علي سالم محمد ناجي | C33: 211161 | D33: 1185 | H33: 1600 | I33: 100 | J33: 0 | Y33: 1600
A34: 33 | B34: محمد سالم محمد ناجي | C34: 216243 | D34: 668 | H34: 1600 | I34: 100 | J34: 0 | Y34: 1600
A35: 34 | B35: محمد سالم محمد ناجي | C35: 0 | D35: 21 | H35: 1850 | I35: 100 | J35: 0 | Y35: 1850
A36: 35 | B36: علي محمد طبيلي | C36: 214210 | D36: 1755 | H36: 9450 | I36: 100 | J36: 0 | Y36: 9450
A37: 36 | B37: ربيع علي محمد طبيلي | C37: 211153 | D37: 288 | H37: 300 | I37: 100 | J37: 0 | Y37: 300
A38: 37 | B38: صلاح علي محمد طبيلي | C38: 59875 | D38: 90 | H38: 6550 | I38: 100 | J38: 0 | Y38: 6550
A39: 38 | B39: ناجي محمد ناجي محمد | C39: 0 | D39: 1383 | H39: 3350 | I39: 100 | J39: 0 | Y39: 3350
A40: 39 | B40: خالد محمد ناجي محمد | C40: 0 | D40: 1762 | H40: 800 | I40: 100 | J40: 0 | Y40: 800
A41: 40 | B41: مصطفى سالم محمد ناجي | C41: 0 | D41: 334 | H41: 100 | I41: 100 | J41: 0 | Y41: 100
A42: 41 | B42: احمد سعيد علي ناجي | C42: 0 | D42: 1037 | H42: 5200 | I42: 100 | J42: 0 | Y42: 5200
A43: 42 | B43: فضل صالح علي موذي | C43: 0 | D43: 850 | H43: 6550 | I43: 100 | J43: 0 | Y43: 6550
A44: 43 | B44: محمد صالح علي موذي | C44: 212401 | D44: 480 | H44: 5400 | I44: 100 | J44: 0 | Y44: 5400
A45: 44 | B45: صالح علي عوض موذي | C45: 216184 | D45: 1107 | H45: 3800 | I45: 100 | J45: 0 | Y45: 3800
A46: 45 | B46: علي صالح علي موذي | C46: 24307 | D46: 236 | H46: 2300 | I46: 100 | J46: 0 | Y46: 2300
A47: 46 | B47: علي عبدالله عوض موذي | C47: 213044 | D47: 1030 | H47: 2650 | I47: 100 | J47: 0 | Y47: 2650
A48: 47 | B48: محمد عبدالله عوض موذي | C48: 212574 | D48: 726 | H48: 2650 | I48: 100 | J48: 0 | Y48: 2650
A49: 48 | B49: احمد علي محمد مدردر | C49: 10323 | D49: 53 | H49: 5300 | I49: 100 | J49: 0 | P49: مشروع مياه الخضراء | Y49: 5300
A50: 49 | B50: عبدالله علي عوض موذي | C50: 213252 | D50: 674 | H50: 1800 | I50: 100 | J50: 0 | P50: محافظة تعز / مديرية المخاء | Y50: 1800
A51: 50 | B51: عبده علي عوض موذي | C51: 216268 | D51: 1199 | H51: 500 | I51: 100 | J51: 0 | T51: فاتورة رقــم : | U51: 235 | Y51: 500
A52: 51 | B52: ابراهيم سعيد عوض موذي | C52: 8222 | D52: 709 | H52: 5550 | I52: 100 | J52: 0 | P52: المطلوب من الأخ / | R52: =VLOOKUP(U51,A1:N236,2,0) -> علي عبده عباد | Y52: 5550
A53: 52 | B53: عبده ابراهيم سعيد موذي | C53: 0 | D53: 78 | H53: 4650 | I53: 100 | J53: 0 | P53: العنوان / الخضراء | T53: رقم العداد : | U53: =VLOOKUP(U51,A1:N236,3,0) -> 0 | Y53: 4650
A54: 53 | B54: سعيد صالح صديفي | C54: 0 | D54: 261 | H54: 4800 | I54: 100 | J54: 0 | T54: عن شهر : | U54: نوفمبر / 2018م | Y54: 4800
A55: 54 | B55: محمد ابراهيم سعيد موذي | C55: 0 | D55: 41 | H55: 2450 | I55: 100 | J55: 0 | P55: قراءة العداد | R55: الاستهلاك | S55: قيمة المياه | T55: الرصيد السابق | U55: المبلغ المستحق | Y55: 2450
A56: 55 | B56: زيد محمد موذي | C56: 153 | D56: 149 | H56: 200 | I56: 100 | J56: 0 | P56: السابقة | Q56: الحالية | S56: ريال | T56: ريال | U56: ريال | Y56: 200
A57: 56 | B57: محفوظ احمد مدردر | C57: 213003 | D57: 758 | H57: 1500 | I57: 100 | J57: 0 | P57: =VLOOKUP(U51,A1:N243,4,0) -> 345 | Q57: =VLOOKUP(U51,A1:N243,5,0) -> 0 | R57: =VLOOKUP(U51,A1:N236,6,0) -> 0 | S57: =VLOOKUP(U51,A1:N236,7,0) -> 0 | T57: =VLOOKUP(U51,A1:N236,8,0) -> 1350 | U57: =(S57+T57) -> 1350 | Y57: 1500
A58: 57 | B58: علي سالم علي عبيدي | C58: 17080303 | D58: 82 | H58: 2700 | I58: 100 | J58: 0 | S58: المدفوع حتى 30 /11/ 2018م | U58: =VLOOKUP(U51,A1:N236,11,0) -> 0 | Y58: 2700
A59: 58 | B59: احمد عوض احمد موذي | C59: 216135 | D59: 90379 | H59: 10100 | I59: 100 | J59: 0 | S59: اشتراك شهري : | U59: =VLOOKUP(U51,A1:N236,9,0) -> 100 | Y59: 10100
A60: 59 | B60: عوض احمد عوض موذي | C60: 213297 | D60: 4 | H60: 450 | I60: 100 | J60: 0 | S60: خدمات أخرى : | U60: =VLOOKUP(U51,A1:N236,10,0) -> 0 | Y60: 450
A61: 60 | B61: راجح عوض احمد موذي | C61: 216278 | D61: 392 | H61: 200 | I61: 100 | J61: 0 | P61: =CH_N_TO_TEXT(U61) -> فقط ألف وأربعمائة وخمسون ريال يمني لاغير | T61: الإجمالي : | U61: =((U57-U58)+U59+U60) -> 1450 | Y61: 200
A62: 61 | B62: علي محمد علي عبيدي | C62: 4991 | D62: 331 | H62: 5200 | I62: 100 | J62: 0 | Y62: 5200
A63: 62 | B63: فيصل محمد علي عبيدي | C63: 214816 | D63: 912 | H63: 7150 | I63: 100 | J63: 0 | Y63: 7150
A64: 63 | B64: راجح علي عبده صبيحي | C64: 0 | D64: 190 | H64: 2650 | I64: 100 | J64: 0 | P64: مشروع مياه الخضراء | T64: فاتورة رقــم : | U64: =(U51) -> 235 | Y64: 2650
A65: 64 | B65: احمد عبده زهوي | C65: 23829 | D65: 690 | H65: 3550 | I65: 100 | J65: 0 | P65: محافظة تعز / مديرية المخاء | T65: رقم العداد : | U65: =U53 -> 0 | Y65: 3550
A66: 65 | B66: جميل عبده احمد موذي | C66: 215266 | D66: 399 | H66: 5729 | I66: 100 | J66: 0 | P66: المطلوب من الأخ / | R66: =R52 -> علي عبده عباد | T66: عن شهر : | U66: نوفمبر / 2018م | Y66: 5729
A67: 66 | B67: عبده احمد عوض موذي | C67: 0 | D67: 200 | H67: 2900 | I67: 100 | J67: 0 | P67: =P61 -> فقط ألف وأربعمائة وخمسون ريال يمني لاغير | T67: الإجمالي : | U67: =U61 -> 1450 | Y67: 2900
A68: 67 | B68: امين عبده احمد موذي | C68: 0 | D68: 175 | H68: 2200 | I68: 100 | J68: 0 | Y68: 2200
A69: 68 | B69: سالم محمد احمد موذي | C69: 66944 | D69: 148 | H69: 7000 | I69: 100 | J69: 0 | P69: مشروع مياه الخضراء | Y69: 7000 | AF69: ح
A70: 69 | B70: علي محمد صديفي | C70: 205746 | D70: 20320 | H70: 2100 | I70: 100 | J70: 0 | P70: محافظة تعز / مديرية المخاء | Y70: 2100
A71: 70 | B71: عبده علي محمد صديفي | C71: 0 | D71: 633 | H71: 5800 | I71: 100 | J71: 0 | T71: فاتورة رقــم : | U71: 236 | Y71: 5800
A72: 71 | B72: محمد صالح احمد موذي | C72: 205680 | D72: 471 | H72: 450 | I72: 100 | J72: 0 | P72: المطلوب من الأخ / | R72: =VLOOKUP(U71,A1:N237,2,0) -> 0 | Y72: 450
A73: 72 | B73: ابراهيم صالح احمد عوض موذي | C73: 216134 | D73: 446 | H73: 3100 | I73: 100 | J73: 0 | P73: العنوان / الخضراء | T73: رقم العداد : | U73: =VLOOKUP(U71,A1:N237,3,0) -> 0 | Y73: 3100
A74: 73 | B74: علي صالح علي صديفي | C74: 225811 | D74: 229 | H74: 3100 | I74: 100 | J74: 0 | T74: عن شهر : | U74: نوفمبر / 2018م | Y74: 3100
A75: 74 | B75: عبده محمد عبدالله عميرة | C75: 0 | D75: 1955 | H75: 12800 | I75: 100 | J75: 0 | P75: قراءة العداد | R75: الاستهلاك | S75: قيمة المياه | T75: الرصيد السابق | U75: المبلغ المستحق | Y75: 12800
A76: 75 | B76: احمد محمد عبدالله عميرة | C76: 0 | D76: 25 | H76: 11650 | I76: 100 | J76: 0 | P76: السابقة | Q76: الحالية | S76: ريال | T76: ريال | U76: ريال | Y76: 11650
A77: 76 | B77: راجح احمد محمد عميرة | C77: 0 | D77: 845 | H77: 300 | I77: 100 | J77: 0 | P77: =VLOOKUP(U71,A1:N243,4,0) -> 0 | Q77: =VLOOKUP(U71,A1:N243,5,0) -> 0 | R77: =VLOOKUP(U71,A1:N243,6,0) -> 0 | S77: =VLOOKUP(U71,A1:N2357,7,0) -> 0 | T77: =VLOOKUP(U71,A1:N237,8,0) -> 0 | U77: =(T77+S77) -> 0 | Y77: 300
A78: 77 | B78: محمد احمد محمد عميرة | C78: 0 | D78: 231 | H78: 800 | I78: 100 | J78: 0 | S78: المدفوع حتى 30 /11/ 2018م | U78: =VLOOKUP(U71,A1:N235,11,0) ->  | Y78: 800
A79: 78 | B79: عبدالله محمد عبدالله عميرة | C79: 214829 | D79: 1632 | H79: 2800 | I79: 100 | J79: 0 | S79: اشتراك شهري : | U79: =VLOOKUP(U71,A1:N235,9,0) ->  | Y79: 2800
A80: 79 | B80: علي محمد عبدالله عميرة | C80: 0 | D80: 1737 | H80: 12350 | I80: 100 | J80: 0 | S80: خدمات أخرى : | U80: =VLOOKUP(U71,A1:N235,10,0) ->  | Y80: 12350
A81: 80 | B81: حيدر علي محمد عميرة | C81: 0 | D81: 550 | H81: 1300 | I81: 100 | J81: 0 | P81: =CH_N_TO_TEXT(U81) ->  | T81: الإجمالي : | U81: =((U77-U78)+U79+U80) ->  | Y81: 1300
A82: 81 | B82: عايش عبدالله محمد عميرة | C82: 0 | D82: 874 | H82: 12850 | I82: 100 | J82: 0 | Y82: 12850
A83: 82 | B83: علي عبدالله محمد عميرة | C83: 0 | D83: 900 | H83: 1550 | I83: 100 | J83: 0 | Y83: 1550
A84: 83 | B84: امين عبدالله محمد عميرة | C84: 0 | D84: 92 | H84: 1300 | I84: 100 | J84: 0 | P84: مشروع مياه الخضراء | T84: فاتورة رقــم : | U84: =U71 -> 236 | Y84: 1300
A85: 84 | B85: ابراهيم محمد عبدالله عميرة | C85: 0 | D85: 28 | H85: 7300 | I85: 100 | J85: 0 | P85: محافظة تعز / مديرية المخاء | T85: رقم العداد : | U85: =U73 -> 0 | Y85: 7300
A86: 85 | B86: جميل ابراهيم محمد عميرة | C86: 0 | D86: 6 | H86: 3000 | I86: 100 | J86: 0 | P86: المطلوب من الأخ / | R86: =R72 -> 0 | T86: عن شهر : | U86: نوفمبر / 2018م | Y86: 3000
A87: 86 | B87: فواز علي محمد صديفي | C87: 205676 | D87: 923 | H87: 7100 | I87: 100 | J87: 0 | P87: =P81 ->  | T87: الإجمالي : | U87: =U81 ->  | Y87: 7100
A88: 87 | B88: علي يحيى محمد عميرة | C88: 0 | D88: 236 | H88: 5200 | I88: 100 | J88: 0 | Y88: 5200
A89: 88 | B89: عبده محمد زايد سعيد | C89: 215847 | D89: 1880 | H89: 9250 | I89: 100 | J89: 0 | Y89: 9250
A90: 89 | B90: خالد محمد زايد سعيد | C90: 0 | D90: 665 | H90: 4300 | I90: 100 | J90: 0 | Y90: 4300
A91: 90 | B91: محرم سعيد زايد سعيد | C91: 0 | D91: 50 | H91: 500 | I91: 100 | J91: 0 | Y91: 500
A92: 91 | B92: هائل سعيد زايد سعيد | C92: 0 | D92: 61 | H92: 4550 | I92: 100 | J92: 0 | Y92: 4550
A93: 92 | B93: حمود سعيد زايد سعيد | C93: 0 | D93: 1013 | H93: 400 | I93: 100 | J93: 0 | Y93: 400
A94: 93 | B94: سعيد سليمان محمد سليمان | C94: 0 | D94: 825 | H94: 5900 | I94: 100 | J94: 0 | Y94: 5900
A95: 94 | B95: محمد سليمان محمد سليمان | C95: 213414 | D95: 882 | H95: 1600 | I95: 100 | J95: 0 | Y95: 1600
A96: 95 | B96: أحمد سليمان محمد سليمان | C96: 215807 | D96: 693 | H96: 3950 | I96: 100 | J96: 0 | Y96: 3950
A97: 96 | B97: سليمان محمد سليمان | C97: 216297 | D97: 1030 | H97: 4100 | I97: 100 | J97: 0 | Y97: 4100
A98: 97 | B98: صالح محمد سليمان | C98: 213404 | D98: 1144 | H98: 1600 | I98: 100 | J98: 0 | Y98: 1600
A99: 98 | B99: نبيل صالح محمد سليمان | C99: 0 | D99: 686 | H99: 1300 | I99: 100 | J99: 0 | Y99: 1300
A100: 99 | B100: فضل صالح محمد سليمان | C100: 0 | D100: 327 | H100: 1100 | I100: 100 | J100: 0 | Y100: 1100
A101: 100 | B101: عبدالله صالح محمد سليمان | C101: 2778 | D101: 411 | H101: 1100 | I101: 100 | J101: 0 | Y101: 1100
A102: 101 | B102: بسام صالح محمد سليمان | C102: 28049 | D102: 346 | H102: 2550 | I102: 100 | J102: 0 | Y102: 2550
A103: 102 | B103: علي صالح محمد سليمان | C103: 212566 | D103: 798 | H103: 1600 | I103: 100 | J103: 0 | Y103: 1600
A104: 103 | B104: اسماعيل صالح محمد سليمان | C104: 0 | D104: 159 | H104: 600 | I104: 100 | J104: 0 | Y104: 600
A105: 104 | B105: فهد عبده محمد سليمان | C105: 210659 | D105: 654 | H105: 900 | I105: 100 | J105: 0 | Y105: 900
A106: 105 | B106: جميل عبده محمد سليمان | C106: 0 | D106: 842 | H106: 6100 | I106: 100 | J106: 0 | Y106: 6100
A107: 106 | B107: خالد عبده محمد سليمان | C107: 0 | D107: 45 | H107: 1350 | I107: 100 | J107: 0 | Y107: 1350
A108: 107 | B108: رياض علي محمد سليمان | C108: 210906 | D108: 823 | H108: 1350 | I108: 100 | J108: 0 | Y108: 1350
A109: 108 | B109: أحمد محمد محمد زوقري | C109: 216560 | D109: 922 | H109: 4050 | I109: 100 | J109: 0 | Y109: 4050
A110: 109 | B110: فهبم أحمد محمد زوقري | C110: 120662 | D110: 1106 | H110: 3850 | I110: 100 | J110: 0 | Y110: 3850
A111: 110 | B111: صالح أحمد محمد زوقري | C111: 23286 | D111: 524 | H111: 3050 | I111: 100 | J111: 0 | Y111: 3050
A112: 111 | B112: خالد أحمد محمد زوقري | C112: 212318 | D112: 502 | H112: 1100 | I112: 100 | J112: 0 | Y112: 1100
A113: 112 | B113: سعيد أحمد زوقري | C113: 211208 | D113: 1020 | H113: 3850 | I113: 100 | J113: 0 | Y113: 3850
A114: 113 | B114: منير أحمد محمد زوقري | C114: 12298 | D114: 618 | H114: 1850 | I114: 100 | J114: 0 | Y114: 1850
A115: 114 | B115: محمد علي محمد زوقري | C115: 212906 | D115: 10544 | H115: 1350 | I115: 100 | J115: 0 | Y115: 1350
A116: 115 | B116: سعيد محمد زوقري | C116: 216864 | D116: 678 | H116: 1600 | I116: 100 | J116: 0 | Y116: 1600
A117: 116 | B117: عوض عبدالله زوقري | C117: 211821 | D117: 527 | H117: 1350 | I117: 100 | J117: 0 | Y117: 1350
A118: 117 | B118: محمد عبدالله زوقري | C118: 0 | D118: 110 | H118: 3250 | I118: 100 | J118: 0 | Y118: 3250
A119: 118 | B119: عبدالله محمد زوقري | C119: 215874 | D119: 566 | H119: 1600 | I119: 100 | J119: 0 | Y119: 1600
A120: 119 | B120: عايد علي محمد زوقري | C120: 210997 | D120: 578 | H120: 3900 | I120: 100 | J120: 0 | Y120: 3900
A121: 120 | B121: نبيل علي محمد زوقري | C121: 213803 | D121: 1007 | H121: 2100 | I121: 100 | J121: 0 | Y121: 2100
A122: 121 | B122: أحمد علي محمد زوقري | C122: 210930 | D122: 747 | H122: 1850 | I122: 100 | J122: 0 | Y122: 1850
A123: 122 | B123: عبدالعزيز محمد سكندر | C123: 215304 | D123: 677 | H123: 3600 | I123: 100 | J123: 0 | Y123: 3600
A124: 123 | B124: عبدالله محمد سكندر | C124: 212503 | D124: 480 | H124: 3550 | I124: 100 | J124: 0 | Y124: 3550
A125: 124 | B125: أحمد محمد سكندر | C125: 883 | D125: 20 | H125: 850 | I125: 100 | J125: 0 | Y125: 850
A126: 125 | B126: محمد عبده علي زوقري | C126: 212981 | D126: 469 | H126: 1100 | I126: 100 | J126: 0 | Y126: 1100
A127: 126 | B127: محمد أحمد قبصي | C127: 212367 | D127: 735 | H127: 3450 | I127: 100 | J127: 0 | Y127: 3450
A128: 127 | B128: علي محمد أحمد قبصي | C128: 211376 | D128: 515 | H128: 3550 | I128: 100 | J128: 0 | Y128: 3550
A129: 128 | B129: أحمد محمد أحمد قبصي | C129: 354 | D129: 247 | H129: 3450 | I129: 100 | J129: 0 | Y129: 3450
A130: 129 | B130: نشوان محمد أحمد قبصي | C130: 205948 | D130: 620 | H130: 3400 | I130: 100 | J130: 0 | Y130: 3400
A131: 130 | B131: رزق محمد قبصي | C131: 0 | D131: 232 | H131: 1950 | I131: 100 | J131: 0 | Y131: 1950
A132: 131 | B132: سمير محمد قبصي | C132: 320319 | D132: 119 | H132: 2800 | I132: 100 | J132: 0 | Y132: 2800
A133: 132 | B133: إبراهيم سعيد زيد | C133: 0 | D133: 225 | H133: 4150 | I133: 100 | J133: 0 | Y133: 4150
A134: 133 | B134: محمد عبدالله زيد | C134: 0 | D134: 227 | H134: 4400 | I134: 100 | J134: 0 | Y134: 4400
A135: 134 | B135: سعيد زيد حكيمي | C135: 215226 | D135: 11416 | H135: 1050 | I135: 100 | J135: 0 | Y135: 1050
A136: 135 | B136: أحمد عبدالله زيد | C136: 12064 | D136: 10342 | H136: 3900 | I136: 100 | J136: 0 | Y136: 3900
A137: 136 | B137: عوض محمد قاسم قحيم | C137: 204006 | D137: 1249 | H137: 800 | I137: 100 | J137: 0 | Y137: 800
A138: 137 | B138: مجيد محمد قاسم قحيم | C138: 2959 | D138: 542 | H138: 5550 | I138: 100 | J138: 0 | Y138: 5550
A139: 138 | B139: صدام محمد قاسم | C139: 210984 | D139: 628 | H139: 0 | I139: 100 | J139: 0 | Y139: 0
A140: 139 | B140: أحمد زيد حكيمي | C140: 206063 | D140: 740 | H140: 5000 | I140: 100 | J140: 0 | Y140: 5000
A141: 140 | B141: علي عبدالله زيد | C141: 213406 | D141: 998 | H141: 5450 | I141: 100 | J141: 0 | Y141: 5450
A142: 141 | B142: عبدالله محمد علي قحيم | C142: 214766 | D142: 1505 | H142: 5200 | I142: 100 | J142: 0 | Y142: 5200
A143: 142 | B143: علي بن علي عوض مدردر | C143: 0 | D143: 32 | H143: 1550 | I143: 100 | J143: 0 | Y143: 1550
A144: 143 | B144: بديع عوض علي مدردر | C144: 212529 | D144: 1062 | H144: 4000 | I144: 100 | J144: 0 | Y144: 4000
A145: 144 | B145: حبيب أحمد علي مدردر | C145: 214623 | D145: 889 | H145: 2800 | I145: 100 | J145: 0 | Y145: 2800
A146: 145 | B146: محمد أحمد علي مدردر | C146: 210452 | D146: 405 | H146: 2800 | I146: 100 | J146: 0 | Y146: 2800
A147: 146 | B147: مصعب سعيد مدردر | C147: 210916 | D147: 588 | H147: 4450 | I147: 100 | J147: 0 | Y147: 4450
A148: 147 | B148: علي عبدالله علي قحيم | C148: 8102008 | D148: 148 | H148: 4300 | I148: 100 | J148: 0 | Y148: 4300
A149: 148 | B149: تقي محمد علي قحيم | C149: 140887 | D149: 78 | H149: 2300 | I149: 100 | J149: 0 | Y149: 2300
A150: 149 | B150: صلاح محمد علي قحيم | C150: 211616 | D150: 724 | H150: 6050 | I150: 100 | J150: 0 | Y150: 6050
A151: 150 | B151: علي أحمد علي قحيم | C151: 214699 | D151: 38 | H151: 3350 | I151: 100 | J151: 0 | Y151: 3350
A152: 151 | B152: عبده علي هواش | C152: 4980 | D152: 245 | H152: 2800 | I152: 100 | J152: 0 | Y152: 2800
A153: 152 | B153: سعيدعلي علي محلي | C153: 215707 | D153: 1088 | H153: 5200 | I153: 100 | J153: 0 | Y153: 5200
A154: 153 | B154: أحمد علي علي محلي | C154: 210766 | D154: 1499 | H154: 1350 | I154: 100 | J154: 0 | Y154: 1350
A155: 154 | B155: محمد علي علي محلي | C155: 215439 | D155: 434 | H155: 2550 | I155: 100 | J155: 0 | Y155: 2550
A156: 155 | B156: عبده سعيد سراجي | C156: 215549 | D156: 758 | H156: 4700 | I156: 100 | J156: 0 | Y156: 4700
A157: 156 | B157: عبدالله علي علي محلي | C157: 214676 | D157: 752 | H157: 1600 | I157: 100 | J157: 0 | Y157: 1600
A158: 157 | B158: محمد حيدر علي محلي | C158: 213116 | D158: 63 | H158: 6450 | I158: 100 | J158: 0 | Y158: 6450
A159: 158 | B159: فضل يوسف محلي | C159: 11480 | D159: 504 | H159: 1200 | I159: 100 | J159: 0 | Y159: 1200
A160: 159 | B160: علي زيد حكيمي | C160: 212538 | D160: 923 | H160: 11100 | I160: 100 | J160: 0 | Y160: 11100
A161: 160 | B161: يوسف علي محلي | C161: 211683 | D161: 507 | H161: 1350 | I161: 100 | J161: 0 | Y161: 1350
A162: 161 | B162: أحمد حيدر علي محلي | C162: 888990 | D162: 294 | H162: 2350 | I162: 100 | J162: 0 | Y162: 2350
A163: 162 | B163: علي حيدر علي محلي | C163: 215295 | D163: 802 | H163: 4300 | I163: 100 | J163: 0 | Y163: 4300
A164: 163 | B164: مسجد أحمد حيدر علي | C164: 0 | D164: 115 | H164: 2850 | I164: 100 | J164: 0 | Y164: 2850
A165: 164 | B165: نبيل عبدالله زايد | C165: 12153 | D165: 251 | H165: 6400 | I165: 100 | J165: 0 | Y165: 6400
A166: 165 | B166: حيدر سعيد سالم حكيمي | C166: 205778 | D166: 1284 | H166: 4950 | I166: 100 | J166: 0 | Y166: 4950
A167: 166 | B167: عبدالله علي عميره | C167: 705591 | D167: 955 | H167: 11750 | I167: 100 | J167: 0 | Y167: 11750
A168: 167 | B168: محمد علي عبدالله عميره | C168: 705527 | D168: 77 | H168: 19500 | I168: 100 | J168: 0 | Y168: 19500
A169: 168 | B169: علي سعيد عميره | C169: 700869 | D169: 305 | H169: 9650 | I169: 100 | J169: 0 | Y169: 9650
A170: 169 | B170: صديق هايل عميره | C170: 705530 | D170: 1260 | H170: 265050 | I170: 100 | J170: 0 | Y170: 265050
A171: 170 | B171: بديع علي عبدالله عميره | C171: 0 | D171: 145 | H171: 6200 | I171: 100 | J171: 0 | Y171: 6200
A172: 171 | B172: محمد ناجي عميره | C172: 0 | D172: 68 | H172: 4850 | I172: 100 | J172: 0 | Y172: 4850
A173: 172 | B173: فؤاد سعيد عميره | C173: 708088 | D173: 1040 | H173: 3050 | I173: 100 | J173: 0 | Y173: 3050
A174: 173 | B174: سعيد يحيى صديفي | C174: 0 | D174: 1449 | H174: 5350 | I174: 100 | J174: 0 | Y174: 5350
A175: 174 | B175: واتح يحيى صديفي | C175: 215666 | D175: 11368 | H175: 2700 | I175: 100 | J175: 0 | Y175: 2700
A176: 175 | B176: عبداللطيف يحيى صديفي | C176: 0 | D176: 85 | H176: 2700 | I176: 100 | J176: 0 | Y176: 2700
A177: 176 | B177: سالم راجح محمد صديفي | C177: 211249 | D177: 1218 | H177: 3600 | I177: 100 | J177: 0 | Y177: 3600
A178: 177 | B178: الزراعي راجح محمد صديفي | C178: 211665 | D178: 996 | H178: 5050 | I178: 100 | J178: 0 | Y178: 5050
A179: 178 | B179: سعيد راجح صديفي | C179: 0 | D179: 12 | H179: 100 | I179: 100 | J179: 0 | Y179: 100
A180: 179 | B180: عبده يحيى صديفي | C180: 214829 | D180: 873 | H180: 3600 | I180: 100 | J180: 0 | Y180: 3600
A181: 180 | B181: همام يحيى صديفي | C181: 0 | D181: 80121 | H181: 3800 | I181: 100 | J181: 0 | Y181: 3800
A182: 181 | B182: عبدالله محمد حكيمي | C182: 3738237 | D182: 412 | H182: 6950 | I182: 100 | J182: 0 | Y182: 6950
A183: 182 | B183: خليل سالم خشب | C183: 215354 | D183: 385 | H183: 1200 | I183: 100 | J183: 0 | Y183: 1200
A184: 183 | B184: علاوي سعيد حكيمي | C184: 3738220 | D184: 445 | H184: 3800 | I184: 100 | J184: 0 | Y184: 3800
A185: 184 | B185: أحمد علي هكي | C185: 215226 | D185: 1187 | H185: 7450 | I185: 100 | J185: 0 | Y185: 7450
A186: 185 | B186: أنور حمادي قحيم | C186: 0 | D186: 10 | H186: 1250 | I186: 100 | J186: 0 | Y186: 1250
A187: 186 | B187: محمد محمد ثابت قحيم | C187: 0 | D187: 19 | H187: 950 | I187: 100 | J187: 0 | Y187: 950
A188: 187 | B188: أحمد علي قلقلي | C188: 211687 | D188: 638 | H188: 1350 | I188: 100 | J188: 0 | Y188: 1350
A189: 188 | B189: محمد علي قلقلي | C189: 0 | D189: 45 | H189: 2700 | I189: 100 | J189: 0 | Y189: 2700
A190: 189 | B190: علي عبدالله زوقري | C190: 1470295 | D190: 38 | H190: 1100 | I190: 100 | J190: 0 | Y190: 1100
A191: 190 | B191: محمد بن محمد زوقري | C191: 215360 | D191: 610 | H191: 1100 | I191: 100 | J191: 0 | Y191: 1100
A192: 191 | B192: حمدي أحمد علي زوقري | C192: 26812 | D192: 59 | H192: 600 | I192: 100 | J192: 0 | Y192: 600
A193: 192 | B193: ذاكر يحيى محمد زوقري | C193: 1134 | D193: 184 | H193: 5050 | I193: 100 | J193: 0 | Y193: 5050
A194: 193 | B194: عبده محمد زوقري | C194: 211236 | D194: 1040 | H194: 2350 | I194: 100 | J194: 0 | Y194: 2350
A195: 194 | B195: يحيى محمد زوقري | C195: 211088 | D195: 81267 | H195: 3300 | I195: 100 | J195: 0 | Y195: 3300
A196: 195 | B196: عبده يحيى محمد زوقري | C196: 211397 | D196: 440 | H196: 350 | I196: 100 | J196: 0 | Y196: 350
A197: 196 | B197: مجد علي زوقري | C197: 24470 | D197: 423 | H197: 2100 | I197: 100 | J197: 0 | Y197: 2100
A198: 197 | B198: عبدالله علي محمد زوقري | C198: 24067 | D198: 174 | H198: 4900 | I198: 100 | J198: 0 | Y198: 4900
A199: 198 | B199: علي عبدالله زوقري | C199: 212844 | D199: 306 | H199: 400 | I199: 100 | J199: 0 | Y199: 400
A200: 199 | B200: عبده علي محمد زوقري | C200: 212932 | D200: 763 | H200: 1600 | I200: 100 | J200: 0 | Y200: 1600
... 46 more rows

Sheet ورقة1
